Body Name,Organisational Unit,Business Unit No.,Business Unit Description,Expense Code,Expense Code Description,GL Date,Document No.,Invoice No.,Invoiced Value,Supplier Name,Address Book No.,Proclass Details Level 1,Thomson Classification Description
SHEFFIELD CITY COUNCIL        ,RESOURCES                     ,18032,MOORFOOT LEARNING CENTRE      ,8490,OTHER PROFESSIONAL FEES       ,03/10/2016,4086607,ERS INVOICE143621        ,314.00,STEPHEN JONES                           ,559438,,TRAINING SERVICES             
SHEFFIELD CITY COUNCIL        ,PLACE                         ,97551,COUNCIL HSG ACQUISITIONS PROG ,1194,OTHER FEES                    ,03/10/2016,4086608,ERS INVOICE143622        ,"75,250.00",OXLEY & COWARD SOLICITORS               ,320707,,SOLICITORS                    
SHEFFIELD CITY COUNCIL        ,CYPF                          ,33142,CITY DEAL - FRAMEWORKS        ,9120,OTHER AGENCIES                ,03/10/2016,4086609,ERS INVOICE143623        ,"2,576.06",DONCASTER ROTH & DIST (MOTOR TRADES)GTA ,204434,,TRAINING CENTRES              
SHEFFIELD CITY COUNCIL        ,CYPF                          ,33142,CITY DEAL - FRAMEWORKS        ,9120,OTHER AGENCIES                ,03/10/2016,4086610,ERS INVOICE143624        ,"4,759.23",ESG SKILLS LIMITD                       ,594139,,TRAINING SERVICES             
SHEFFIELD CITY COUNCIL        ,CYPF                          ,33142,CITY DEAL - FRAMEWORKS        ,9120,OTHER AGENCIES                ,03/10/2016,4086611,ERS INVOICE143625        ,"8,401.99",FLOORTRAIN (GB) LTD                     ,590381,,TRAINING SERVICES             
SHEFFIELD CITY COUNCIL        ,CYPF                          ,33142,CITY DEAL - FRAMEWORKS        ,9120,OTHER AGENCIES                ,03/10/2016,4086612,ERS INVOICE143626        ,"2,040.27",FRESH TRAINING SERVICES (UK) LTD        ,633049,,TRAINING SERVICES             
SHEFFIELD CITY COUNCIL        ,CYPF                          ,33142,CITY DEAL - FRAMEWORKS        ,9120,OTHER AGENCIES                ,03/10/2016,4086613,ERS INVOICE143627        ,"5,247.82",GTG SERVICES LTD                        ,590382,,TRAINING SERVICES             
SHEFFIELD CITY COUNCIL        ,CYPF                          ,33142,CITY DEAL - FRAMEWORKS        ,9120,OTHER AGENCIES                ,03/10/2016,4086614,ERS INVOICE143628        ,"11,640.90",INTEGRITY IT SOLUTIONS LIMITED          ,624668,,EDUCATIONAL TRAINING PROVIDERS
SHEFFIELD CITY COUNCIL        ,CYPF                          ,33142,CITY DEAL - FRAMEWORKS        ,9120,OTHER AGENCIES                ,03/10/2016,4086615,ERS INVOICE143629        ,"1,895.92",HIT TRAINING LTD                        ,589036,,TRAINING SERVICES             
SHEFFIELD CITY COUNCIL        ,CYPF                          ,33142,CITY DEAL - FRAMEWORKS        ,9120,OTHER AGENCIES                ,03/10/2016,4086616,ERS INVOICE143630        ,"5,275.98",LOGISTICS AND DISTRIBUTION TRAINING LTD ,631290,,TRAINING SERVICES             
SHEFFIELD CITY COUNCIL        ,CYPF                          ,33142,CITY DEAL - FRAMEWORKS        ,9120,OTHER AGENCIES                ,03/10/2016,4086617,ERS INVOICE143631        ,948.65,LINDEN MANAGEMENT (UK) LIMITED          ,632842,,TRAINING CONSULTANTS          
SHEFFIELD CITY COUNCIL        ,CYPF                          ,33142,CITY DEAL - FRAMEWORKS        ,9120,OTHER AGENCIES                ,03/10/2016,4086618,ERS INVOICE143632        ,"2,321.35",PROGRESSIVE CARE LTD                    ,343548,,CHILDREN'S HOMES              
SHEFFIELD CITY COUNCIL        ,CYPF                          ,33142,CITY DEAL - FRAMEWORKS        ,9120,OTHER AGENCIES                ,03/10/2016,4086619,ERS INVOICE143633        ,"4,334.72",ROTHERHAM COLLEGE OF ARTS & TECHNOLOGY  ,301110,,SCHOOLS & COLLEGES - FURTHER E
SHEFFIELD CITY COUNCIL        ,CYPF                          ,33142,CITY DEAL - FRAMEWORKS        ,9120,OTHER AGENCIES                ,03/10/2016,4086620,ERS INVOICE143634        ,"6,140.02",TAGADVANCE LTD                          ,622638,,TRAINING SERVICES             
SHEFFIELD CITY COUNCIL        ,RESOURCES                     ,17153,MEMBERS ALLOWANCES            ,8440,FEE EXPENSES                  ,03/10/2016,4086621,ERS INVOICE143635        ,385.00,INFORMATION COMMISSIONER                ,347771,,INFORMATION SERVICES          
SHEFFIELD CITY COUNCIL        ,RESOURCES                     ,19347,CLAIMS                        ,8740,EMPLOYERS LIABILITY           ,03/10/2016,4086775,ERS INVOICE143636        ,"2,740.00",THOMPSONS CLIENT ACCOUNT                ,505870,,SOLICITORS                    
SHEFFIELD CITY COUNCIL        ,CYPF                          ,38208,0-4 HEALTHY WEIGHT SERVICE    ,5750,TRAINING EXPENDITURE          ,03/10/2016,4086782,ERS INVOICE143643        ,350.00,JULIE ROBERTS -TRAINING                 ,632115,,TRAINING SERVICES             
SHEFFIELD CITY COUNCIL        ,CYPF                          ,38208,0-4 HEALTHY WEIGHT SERVICE    ,5750,TRAINING EXPENDITURE          ,03/10/2016,4086783,ERS INVOICE143644        ,600.00,SUSAN RUSSELL                           ,598744,,TRAINING SERVICES             
SHEFFIELD CITY COUNCIL        ,COMMUNITIES                   ,49648,SAFER COMMUNITIES PARTNERSHIP ,9120,OTHER AGENCIES                ,03/10/2016,4065110,KS0004                   ,"2,507.01",YOUNG WOMENS HOUSING PROJECT            ,301584,,CHARITIES & VOLUNTARY ORGANISA
SHEFFIELD CITY COUNCIL        ,COMMUNITIES                   ,49648,SAFER COMMUNITIES PARTNERSHIP ,9120,OTHER AGENCIES                ,03/10/2016,4065112,KS0005                   ,"1,904.25",YOUNG WOMENS HOUSING PROJECT            ,301584,,CHARITIES & VOLUNTARY ORGANISA
SHEFFIELD CITY COUNCIL        ,PLACE                         ,92828,SAFETY CAMERA DIGITAL UPGRADE ,1178,INFR OTHER                    ,03/10/2016,4069148,91057649,"39,742.60",CUBIC TRANSPORTATION SYSTEMS (ITMS) LTD ,621037,,TRANSPORT CONSULTANTS         
SHEFFIELD CITY COUNCIL        ,RESOURCES                     ,12024,REPLACEMENT FINANCE SYSTEM    ,8460,CONSULTANTS FEES              ,03/10/2016,4074715,3741,"90,677.25",MOORE STEPHENS INSIGHT LIMITED          ,424598,,BUSINESS & MANAGEMENT CONSULTA
SHEFFIELD CITY COUNCIL        ,PLACE                         ,22255,SHEAF CATCHMENT FLOOD SCHEME  ,9610,MEDIA SERVICES                ,03/10/2016,4076119,RRY020052                ,"2,599.46",COMMUNICORP UK LTD                      ,427629,,RADIO & TELEVISION STATIONS   
SHEFFIELD CITY COUNCIL        ,PLACE                         ,25094,PARKS OPS SOUTH & SOUTH EAST  ,8060,MATERIALS AND SUPPLIES GENERAL,03/10/2016,4078385,161230,315.00,BOB WILD GRASS MACHINERY LTD            ,203417,,LAWNMOWERS & GARDEN MACHINERY 
SHEFFIELD CITY COUNCIL        ,PLACE                         ,25094,PARKS OPS SOUTH & SOUTH EAST  ,8060,MATERIALS AND SUPPLIES GENERAL,03/10/2016,4080451,SI/03078954              ,574.00,NOMIX ENVIRO                            ,207128,,CHEMICALS & ALLIED PRODUCTS   
SHEFFIELD CITY COUNCIL        ,COMMUNITIES                   ,47009,MINOR WORKS & ADAPTATIONS     ,6030,DAY TO DAY REPAIRS            ,03/10/2016,4080798,10003315,"2,079.54",KIER SERVICES MAINTENANCE EAST (KSME)   ,591748,,CONSTRUCTION CONTRACTORS - GEN
SHEFFIELD CITY COUNCIL        ,PLACE                         ,28106,CHINA BID                     ,7140,PUBLIC TRANSPORT COSTS        ,03/10/2016,4080802,01/6453017               ,672.94,CLARITY TRAVEL MANAGEMENT               ,202987,,TRAVEL AGENTS & HOLIDAY COMPAN
SHEFFIELD CITY COUNCIL        ,CYPF                          ,33089,CISOSS                        ,7140,PUBLIC TRANSPORT COSTS        ,03/10/2016,4080807,01/6421136               ,288.90,CLARITY TRAVEL MANAGEMENT               ,202987,,TRAVEL AGENTS & HOLIDAY COMPAN
SHEFFIELD CITY COUNCIL        ,PLACE                         ,28106,CHINA BID                     ,7140,PUBLIC TRANSPORT COSTS        ,03/10/2016,4080813,01/6454777               ,"1,052.40",CLARITY TRAVEL MANAGEMENT               ,202987,,TRAVEL AGENTS & HOLIDAY COMPAN
SHEFFIELD CITY COUNCIL        ,COMMUNITIES                   ,47009,MINOR WORKS & ADAPTATIONS     ,6030,REPAIRS AND MTCE - RESPONSIVE ,03/10/2016,4080839,9597,299.00,T & T CONSTRUCTION                      ,208772,,CONSTRUCTION CONTRACTORS - GEN
SHEFFIELD CITY COUNCIL        ,RESOURCES                     ,90083,FRA 15-16 FIRTH PK CLK TWR [R],1148,SURVEY COSTS                  ,03/10/2016,4080872,I1034/QE/0916/SCC001     ,595.00,QUALSURV INTERNATIONAL LTD              ,569165,,ASBESTOS SURVEYS & REMOVALS   
SHEFFIELD CITY COUNCIL        ,COMMUNITIES                   ,49355,AREA SOUTH WEST               ,8010,ESTATES EQUIP PURCHASE & REPAI,03/10/2016,4081687,928162273,600.00,ARCO LTD                                ,203022,,SAFETY EQUIPMENT & CLOTHING   
SHEFFIELD CITY COUNCIL        ,CYPF                          ,36033,SOCIAL CARE TAXIS             ,7060,EXTERNAL VEHICLE HIRE         ,03/10/2016,4081795,SCC/SOC-0816             ,894.00,TRAVELLERS TAXIS                        ,573383,,TAXIS & PRIVATE HIRE          
SHEFFIELD CITY COUNCIL        ,CYPF                          ,36033,SOCIAL CARE TAXIS             ,7060,EXTERNAL VEHICLE HIRE         ,03/10/2016,4082467,24,"1,530.00",M M KHALIQ T/AS ACE MINIBUS TRAVEL      ,598946,,TAXIS & PRIVATE HIRE          
SHEFFIELD CITY COUNCIL        ,PLACE                         ,25001,GRAVES PARK - ANIMAL FARM INC ,8060,MATERIALS AND SUPPLIES GENERAL,03/10/2016,4082873,289,397.50,WHITTAKERS GROUND CARE                  ,401131,,LANDSCAPE CONTRACTORS & GARDEN
SHEFFIELD CITY COUNCIL        ,PLACE                         ,25001,GRAVES PARK - ANIMAL FARM INC ,8060,MATERIALS AND SUPPLIES GENERAL,03/10/2016,4083046,413137,378.41,ARGO FEEDS LTD                          ,203028,,PET FOODS & ANIMAL FEEDS      
SHEFFIELD CITY COUNCIL        ,PLACE                         ,22049,ENERGY -SCHEME                ,6150,ELECTRICITY - INVOICE         ,03/10/2016,4083089,2714-019                 ,"94,313.02",NPOWER NORTHERN LTD                     ,207191,,ELECTRICITY COMPANIES         
SHEFFIELD CITY COUNCIL        ,PLACE                         ,22245,HIGHWAY MAINTENANCE GENERAL   ,5750,TRAINING EXPENDITURE          ,03/10/2016,4083546,2016/615                 ,"1,350.00",SAFESCOPE LTD                           ,637314,,HEALTH & SAFETY TRAINING      
SHEFFIELD CITY COUNCIL        ,CYPF                          ,36033,SOCIAL CARE TAXIS             ,7060,EXTERNAL VEHICLE HIRE         ,03/10/2016,4083556,20652,408.50,NORTHERN TAXIS LIMITED                  ,301182,,TAXIS & PRIVATE HIRE          
SHEFFIELD CITY COUNCIL        ,PLACE                         ,25012,NORFOLK (HERITAGE) PARK (CITY),8550,OTHER SERVICES                ,03/10/2016,4083584,5239/49                  ,642.00,OAKDALE T & G IRRIGATION                ,481715,,IRRIGATION SYSTEMS            
SHEFFIELD CITY COUNCIL        ,PLACE                         ,25094,PARKS OPS SOUTH & SOUTH EAST  ,6370,GROUNDS MTCE AND ARBORICULTURE,03/10/2016,4083680,ASF/5929/SCC             ,"1,890.00",AVANTI STEEL FABRICATIONS               ,203151,,STEEL FABRICATORS & ERECTORS  
SHEFFIELD CITY COUNCIL        ,COMMUNITIES                   ,49190,CITY WIDE ALARM - GENERAL     ,6030,REPAIRS TO TENANTED PROPERTIES,03/10/2016,4083710,INV/50301346             ,262.20,TUNSTALL HEALTHCARE (UK) LTD            ,209178,,TELECOMMUNICATIONS EQUIPMENT &
SHEFFIELD CITY COUNCIL        ,CYPF                          ,39282,CARE PROCEEDINGS (LEGAL FEES) ,8470,LEGAL FEES                    ,03/10/2016,4084315,12752,324.00,FORENSIC TESTING SERVICE LTD            ,557750,,MEDICAL & DENTAL LABORATORIES 
SHEFFIELD CITY COUNCIL        ,CYPF                          ,39282,CARE PROCEEDINGS (LEGAL FEES) ,8470,LEGAL FEES                    ,03/10/2016,4084316,12769,287.65,FORENSIC TESTING SERVICE LTD            ,557750,,MEDICAL & DENTAL LABORATORIES 
SHEFFIELD CITY COUNCIL        ,RESOURCES                     ,15139,TRANSPORT FLEET MANAGEMENT    ,8070,STOCKS AND STORES             ,03/10/2016,4084319,I08705393                ,"4,455.00",WFL (UK) LTD HALL FUELS                 ,633989,,FUEL DEALERS                  
SHEFFIELD CITY COUNCIL        ,CYPF                          ,39282,CARE PROCEEDINGS (LEGAL FEES) ,8470,LEGAL FEES                    ,03/10/2016,4084563,986693,450.00,KATE MORLEY                             ,599526,,BARRISTERS                    
SHEFFIELD CITY COUNCIL        ,CYPF                          ,33141,CITY DEAL                     ,8440,FEE EXPENSES                  ,03/10/2016,4084575,SL0071209                ,361.69,SYPTE                                   ,599106,,BUS & COACH OPERATORS & STATIO
SHEFFIELD CITY COUNCIL        ,CYPF                          ,39282,CARE PROCEEDINGS (LEGAL FEES) ,8470,LEGAL FEES                    ,03/10/2016,4084620,12887,278.34,FORENSIC TESTING SERVICE LTD            ,557750,,MEDICAL & DENTAL LABORATORIES 
SHEFFIELD CITY COUNCIL        ,PLACE                         ,25095,PARKS OPERATIONS WEST         ,8550,OTHER SERVICES                ,03/10/2016,4084640,1304,600.00,RIVER STEWARDSHIP COMPANY LTD           ,547441,,CHARITIES & VOLUNTARY ORGANISA
SHEFFIELD CITY COUNCIL        ,PLACE                         ,97147,ADAPTATIONS                   ,1157,DWELLINGS MAIN CONTRACT       ,03/10/2016,4084655,1036897,"1,625.00",CLARK & PARTNERS LTD                    ,203928,,DISABILITY EQUIPMENT - MNFRS &
SHEFFIELD CITY COUNCIL        ,PLACE                         ,97147,ADAPTATIONS                   ,1157,DWELLINGS MAIN CONTRACT       ,03/10/2016,4084662,1036801,"1,625.00",CLARK & PARTNERS LTD                    ,203928,,DISABILITY EQUIPMENT - MNFRS &
SHEFFIELD CITY COUNCIL        ,RESOURCES                     ,15138,GENERAL ADMINISTRATION        ,8440,FEE EXPENSES                  ,03/10/2016,4084664,1617/1066                ,"2,448.00",APSE                                    ,337036,,BUSINESS & TRADE ORGANISATIONS
SHEFFIELD CITY COUNCIL        ,RESOURCES                     ,15138,GENERAL ADMINISTRATION        ,6030,REPAIRS AND MTCE - RESPONSIVE ,03/10/2016,4084677,54051,340.00,MHH CONTRACTING LTD                     ,205329,,EXCAVATION & GROUNDWORK CONTRA
SHEFFIELD CITY COUNCIL        ,CYPF                          ,33018,100 APPRENTICES               ,9120,OTHER AGENCIES                ,03/10/2016,4084758,SCC002                   ,284.62,SAVVY FOODS LTD                         ,636729,,FOOD PRODUCTS - MNFRS         
SHEFFIELD CITY COUNCIL        ,CYPF                          ,33018,100 APPRENTICES               ,9120,OTHER AGENCIES                ,03/10/2016,4084759,MA2                      ,309.37,BUCKNELL WHITEHOUSE LTD                 ,623806,,ACCOUNTANTS                   
SHEFFIELD CITY COUNCIL        ,CYPF                          ,33018,100 APPRENTICES               ,9120,OTHER AGENCIES                ,03/10/2016,4084761,CC2                      ,309.37,BUCKNELL WHITEHOUSE LTD                 ,623806,,ACCOUNTANTS                   
SHEFFIELD CITY COUNCIL        ,CYPF                          ,33018,100 APPRENTICES               ,9120,OTHER AGENCIES                ,03/10/2016,4084762,CC1                      ,532.12,BUCKNELL WHITEHOUSE LTD                 ,623806,,ACCOUNTANTS                   
SHEFFIELD CITY COUNCIL        ,CYPF                          ,33018,100 APPRENTICES               ,9120,OTHER AGENCIES                ,03/10/2016,4084766,SSC24                    ,335.00,MONICA F HEWITT FLORIST LTD             ,599522,,FLORISTS                      
SHEFFIELD CITY COUNCIL        ,CYPF                          ,33018,100 APPRENTICES               ,9120,OTHER AGENCIES                ,03/10/2016,4084767,2,330.00,PARK HOUSE WORKS LIMITED                ,637639,,FISHING & ANGLING EQUIPMENT   
SHEFFIELD CITY COUNCIL        ,CYPF                          ,33018,100 APPRENTICES               ,9120,OTHER AGENCIES                ,03/10/2016,4084769,8522,269.01,DEARNESIDE FABRICATIONS LTD             ,461947,,STEEL FABRICATORS & ERECTORS  
SHEFFIELD CITY COUNCIL        ,CYPF                          ,33018,100 APPRENTICES               ,9120,OTHER AGENCIES                ,03/10/2016,4084770,1,660.00,PREMIUM KITCHEN INSTALLATIONS           ,635371,,KITCHEN PLANNERS & FURNISHERS 
SHEFFIELD CITY COUNCIL        ,CYPF                          ,33141,CITY DEAL                     ,8440,FEE EXPENSES                  ,03/10/2016,4084776,10122,292.50,THE STUDIO ACADEMY LTD                  ,618670,,TRAINING SERVICES             
SHEFFIELD CITY COUNCIL        ,CYPF                          ,33141,CITY DEAL                     ,8440,FEE EXPENSES                  ,03/10/2016,4084777,10123,292.50,THE STUDIO ACADEMY LTD                  ,618670,,TRAINING SERVICES             
SHEFFIELD CITY COUNCIL        ,CYPF                          ,33141,CITY DEAL                     ,8440,FEE EXPENSES                  ,03/10/2016,4085829,10124,544.00,THE STUDIO ACADEMY LTD                  ,618670,,TRAINING SERVICES             
SHEFFIELD CITY COUNCIL        ,PLACE                         ,25095,PARKS OPERATIONS WEST         ,8550,OTHER SERVICES                ,03/10/2016,4085838,5/1323/25LM/40826        ,385.00,WILDSCAPES LTD                          ,472494,,LANDSCAPE ARCHITECTS & DESIGNE
SHEFFIELD CITY COUNCIL        ,PLACE                         ,24417,CRYSTAL PEAKS                 ,6210,RENTS                         ,03/10/2016,4085844,00000004/45599/45598     ,"7,250.00",BRITEL FUND TRUSTEES LTD                ,566694,,LETTING AGENTS                
SHEFFIELD CITY COUNCIL        ,PLACE                         ,24417,CRYSTAL PEAKS                 ,6270,SERVICE / PFI UNITARY CHARGE  ,03/10/2016,4085844,00000004/45599/45598     ,"41,029.64",BRITEL FUND TRUSTEES LTD                ,566694,,LETTING AGENTS                
SHEFFIELD CITY COUNCIL        ,COMMUNITIES                   ,49364,SUPPORTED HOUSING             ,8050,FURNITURE PURCHASES           ,03/10/2016,4085846,TK1149841                ,"4,109.14",THOMAS KNEALE & CO LTD                  ,441585,,TEXTILE MANUFACTURING         
SHEFFIELD CITY COUNCIL        ,PLACE                         ,25092,PARKS OPS EAST & NORTH EAST   ,8060,MATERIALS AND SUPPLIES GENERAL,03/10/2016,4085878,38540,331.62,GROUNDSMAN TOOLS AND SUPPLIES LLP       ,554773,,GARDEN TOOLS                  
SHEFFIELD CITY COUNCIL        ,COMMUNITIES                   ,49153,OTHER REPAIRS & FEES          ,6030,OTHER RESPONSIVE REPAIRS      ,03/10/2016,4085879,65486294000000X          ,738.20,YORKSHIRE WATER                         ,362345,,WATER COMPANIES               
SHEFFIELD CITY COUNCIL        ,COMMUNITIES                   ,49153,OTHER REPAIRS & FEES          ,6030,REPAIRS AND MTCE - RESPONSIVE ,03/10/2016,4085881,6.54874E+14,"1,112.37",YORKSHIRE WATER                         ,362345,,WATER COMPANIES               
SHEFFIELD CITY COUNCIL        ,COMMUNITIES                   ,49153,OTHER REPAIRS & FEES          ,6030,OTHER RESPONSIVE REPAIRS      ,03/10/2016,4085882,6.54875E+14,489.63,YORKSHIRE WATER                         ,362345,,WATER COMPANIES               
SHEFFIELD CITY COUNCIL        ,CYPF                          ,36023,CATERING CONTRACT             ,8440,FEE EXPENSES                  ,03/10/2016,4085904,1978803,607.50,G4S CASH SOLUTIONS (UK) LTD             ,208285,,SECURITY SERVICES             
SHEFFIELD CITY COUNCIL        ,PLACE                         ,93110,BB2 CHESTERFIELD RD KBR       ,1146,L&B PROFESSIONAL FEES         ,03/10/2016,4085905,AR/KH/001/16             ,"2,313.25",ROGERSON HILTON LIMITED                 ,625924,,SURVEYORS - LAND              
SHEFFIELD CITY COUNCIL        ,PLACE                         ,23014,SHEFFIELD TRADING STANDARDS   ,8440,FEE EXPENSES                  ,03/10/2016,4085906,371371,450.00,KINGS CHAMBERS                          ,567569,,LEGAL SERVICES                
SHEFFIELD CITY COUNCIL        ,CYPF                          ,39282,CARE PROCEEDINGS (LEGAL FEES) ,8470,LEGAL FEES                    ,03/10/2016,4085907,INV-2904                 ,972.00,FORESIGHT CLINICAL SERVICES LTD         ,638279,,LEGAL SERVICES                
SHEFFIELD CITY COUNCIL        ,COMMUNITIES                   ,49484,HOME OWNERSHIP & BUSINESS MANA,8470,LEGAL FEES                    ,03/10/2016,4085908,55357,350.00,JUSTIN BATES                            ,570293,,BARRISTERS                    
SHEFFIELD CITY COUNCIL        ,COMMUNITIES                   ,49376,MAINTENANCE PARTNERSHIP       ,8470,LEGAL FEES                    ,03/10/2016,4085909,212823,500.00,REDACTED PERSONAL DATA,317078,,BARRISTERS                    
SHEFFIELD CITY COUNCIL        ,CYPF                          ,39282,CARE PROCEEDINGS (LEGAL FEES) ,8470,LEGAL FEES                    ,03/10/2016,4085911,1013957,450.00,HANNAH WALKER                           ,576053,,BARRISTERS                    
SHEFFIELD CITY COUNCIL        ,RESOURCES                     ,18041,RECRUITMENT ADVERTISING       ,5720,RECRUIT. ADV. - INVOICE       ,03/10/2016,4085934,20846363,"1,682.00",ESTATES GAZETTE                         ,316364,,NEWSPAPER & MAGAZINE PUBLISHER
SHEFFIELD CITY COUNCIL        ,RESOURCES                     ,11021,COURT COSTS & BR ADMIN GRANT  ,8470,LEGAL FEES                    ,03/10/2016,4085936,676661,562.50,NO 5 CHAMBERS LTD (COLLECTION ACC)      ,620025,,BARRISTERS                    
SHEFFIELD CITY COUNCIL        ,COMMUNITIES                   ,47009,MINOR WORKS & ADAPTATIONS     ,6020,REPAIRS AND MTCE - PROGRAMMED ,03/10/2016,4085941,V144                     ,"1,415.00",REDACTED PERSONAL DATA,459864,,BUILDING SERVICES             
SHEFFIELD CITY COUNCIL        ,COMMUNITIES                   ,47009,MINOR WORKS & ADAPTATIONS     ,6030,REPAIRS AND MTCE - RESPONSIVE ,03/10/2016,4085942,V143                     ,926.00,REDACTED PERSONAL DATA,459864,,BUILDING SERVICES             
SHEFFIELD CITY COUNCIL        ,PLACE                         ,25001,GRAVES PARK - ANIMAL FARM INC ,8060,MATERIALS AND SUPPLIES GENERAL,03/10/2016,4085943,413922,323.76,ARGO FEEDS LTD                          ,203028,,PET FOODS & ANIMAL FEEDS      
SHEFFIELD CITY COUNCIL        ,COMMUNITIES                   ,49852,SCHOOLS LIBRARY SERVICE       ,8080,LIBRARY MATERIALS             ,03/10/2016,4085946,1605257,"1,253.40",PETERS LTD                              ,312836,,BOOKSELLERS                   
SHEFFIELD CITY COUNCIL        ,COMMUNITIES                   ,49852,SCHOOLS LIBRARY SERVICE       ,8080,LIBRARY MATERIALS             ,03/10/2016,4085951,1605365,"1,236.30",PETERS LTD                              ,312836,,BOOKSELLERS                   
SHEFFIELD CITY COUNCIL        ,COMMUNITIES                   ,49852,SCHOOLS LIBRARY SERVICE       ,8080,LIBRARY MATERIALS             ,03/10/2016,4085953,1605756,864.90,PETERS LTD                              ,312836,,BOOKSELLERS                   
SHEFFIELD CITY COUNCIL        ,RESOURCES                     ,15184,CSSR INVOICE                  ,6030,REPAIRS AND MTCE - RESPONSIVE ,03/10/2016,4086087,16030497,"255,639.97",KIER FACILITIES SERVICES LTD            ,521631,,FACILITIES MANAGEMENT         
SHEFFIELD CITY COUNCIL        ,RESOURCES                     ,90081,FRA 15-16 STOCKSBRIDGE YC [R] ,1161,NC&A MAIN CONTRACT            ,03/10/2016,4086105,RE05108/1                ,"47,554.11",RF JOINERY AND SHOPFITTING LTD          ,588787,,JOINERS & CARPENTERS          
SHEFFIELD CITY COUNCIL        ,RESOURCES                     ,90083,FRA 15-16 FIRTH PK CLK TWR [R],1161,NC&A MAIN CONTRACT            ,03/10/2016,4086105,RE05108/1                ,"25,317.01",RF JOINERY AND SHOPFITTING LTD          ,588787,,JOINERS & CARPENTERS          
SHEFFIELD CITY COUNCIL        ,CYPF                          ,90744,FEL CAPITAL                   ,1188,T&E OTHER CAPITAL COSTS       ,03/10/2016,4086112,SCC/CAP/DCN/08/2016      ,"10,150.70",ACTIVE COMMUNITY TRUST T/A              ,304968,,NURSERIES & CRECHES           
SHEFFIELD CITY COUNCIL        ,CYPF                          ,90744,FEL CAPITAL                   ,1188,T&E OTHER CAPITAL COSTS       ,03/10/2016,4086113,SCC/CAP/DCN/10/2016      ,"6,090.42",ACTIVE COMMUNITY TRUST T/A              ,304968,,NURSERIES & CRECHES           
SHEFFIELD CITY COUNCIL        ,CYPF                          ,90744,FEL CAPITAL                   ,1188,T&E OTHER CAPITAL COSTS       ,03/10/2016,4086114,SCC/CAP/DCN/11/2016      ,"4,780.28",ACTIVE COMMUNITY TRUST T/A              ,304968,,NURSERIES & CRECHES           
SHEFFIELD CITY COUNCIL        ,RESOURCES                     ,15203,CLIENT CONSULTATION STAFFING  ,8350,MISCELLANEOUS EXPENSES        ,03/10/2016,4086223,ASSL/16/25               ,"1,300.19",ACADEMY SERVICES SHEFFIELD LTD          ,438883,,LEASING SERVICES              
SHEFFIELD CITY COUNCIL        ,CYPF                          ,39282,CARE PROCEEDINGS (LEGAL FEES) ,8470,LEGAL FEES                    ,03/10/2016,4086235,10302,315.12,J L HARPHAM LTD                         ,205900,,LEGAL SERVICES                
SHEFFIELD CITY COUNCIL        ,RESOURCES                     ,11079,CORPORATE CLEANING CONTRACT   ,9620,FINANCIAL PROCESSES           ,03/10/2016,4086486,CO055249                 ,"138,807.34",CORDANT CLEANING LIMITED                ,634397,,CLEANING SERVICES - COMMERCIAL
SHEFFIELD CITY COUNCIL        ,RESOURCES                     ,15133,STANIFORTH ROAD WORKSHOPS     ,8110,"CLOTHING, UNIFORM AND LAUNDRY ",03/10/2016,4086530,SN2479312                ,378.24,BERENDSEN UK LTD                        ,330548,,LINEN HIRE SERVICES           
SHEFFIELD CITY COUNCIL        ,CYPF                          ,33112,LDD PLACEMENTS AUG16-JUL17    ,9120,OTHER AGENCIES                ,03/10/2016,4086546,NR001                    ,600.00,ONBOARD SHEFFIELD SKATEPARK             ,598407,Unclassified Non Trade,OUT OF SCOPE FOR SIC MONITORIN
SHEFFIELD CITY COUNCIL        ,CYPF                          ,33112,LDD PLACEMENTS AUG16-JUL17    ,9120,OTHER AGENCIES                ,03/10/2016,4086547,NR001                    ,420.00,ONBOARD SHEFFIELD SKATEPARK             ,598407,Unclassified Non Trade,OUT OF SCOPE FOR SIC MONITORIN
SHEFFIELD CITY COUNCIL        ,RESOURCES                     ,15213,CORPORATE MAIL                ,8570,POSTAGE & DELIVERY            ,03/10/2016,4086234,9053031985,"8,783.13",ROYAL MAIL GROUP LTD                    ,295326,,DELIVERY SERVICES             
SHEFFIELD CITY COUNCIL        ,PLACE                         ,24062,MGMT OF SRQ PROPERTIES        ,6150,ELECTRICITY                   ,03/10/2016,4086243,600621273,"4,457.10",BRITISH GAS BUSINESS                    ,466029,,GAS COMPANIES                 
SHEFFIELD CITY COUNCIL        ,PLACE                         ,21022,WISEWOOD SPORTS CENTRE        ,8060,MATERIALS AND SUPPLIES GENERAL,03/10/2016,4086490,4791761,703.65,PRS FOR MUSIC                           ,514881,,MUSIC PUBLISHERS              
SHEFFIELD CITY COUNCIL        ,COMMUNITIES                   ,46039,ADULT SOCIAL CARE PURCHASING  ,9180,DAYCARE                       ,03/10/2016,4086268,J1656769 250916          ,381.60,REDACTED PERSONAL DATA,622499,Unclassified Non Trade,OUT OF SCOPE FOR SIC MONITORIN
SHEFFIELD CITY COUNCIL        ,COMMUNITIES                   ,46039,ADULT SOCIAL CARE PURCHASING  ,9180,DAYCARE                       ,03/10/2016,4086303,J1659573 250916          ,288.00,REDACTED PERSONAL DATA,623633,Unclassified Non Trade,OUT OF SCOPE FOR SIC MONITORIN
SHEFFIELD CITY COUNCIL        ,COMMUNITIES                   ,42034,PURCHASING LEARNING DISABILITI,9180,RESPITE                       ,03/10/2016,4086304,J1659577 250916          ,428.60,REDACTED PERSONAL DATA,636909,Unclassified Non Trade,OUT OF SCOPE FOR SIC MONITORIN
SHEFFIELD CITY COUNCIL        ,COMMUNITIES                   ,44001,PURCHASING                    ,9180,RESPITE                       ,03/10/2016,4086308,J1662272 250916          ,300.02,REDACTED PERSONAL DATA,328101,,HOME CARE SERVICES            
SHEFFIELD CITY COUNCIL        ,COMMUNITIES                   ,44001,PURCHASING                    ,9180,RESPITE                       ,03/10/2016,4086309,J1662275 250916          ,257.16,REDACTED PERSONAL DATA,369406,,HOME CARE SERVICES            
SHEFFIELD CITY COUNCIL        ,COMMUNITIES                   ,42034,PURCHASING LEARNING DISABILITI,9180,RESPITE                       ,03/10/2016,4086318,J1664453 250916          ,428.60,REDACTED PERSONAL DATA,526062,,HOME CARE SERVICES            
SHEFFIELD CITY COUNCIL        ,COMMUNITIES                   ,42034,PURCHASING LEARNING DISABILITI,9180,RESPITE                       ,03/10/2016,4086319,J1664455 250916          ,257.16,REDACTED PERSONAL DATA,543677,Unclassified Non Trade,OUT OF SCOPE FOR SIC MONITORIN
SHEFFIELD CITY COUNCIL        ,COMMUNITIES                   ,46039,ADULT SOCIAL CARE PURCHASING  ,9190,DIRECT PAYMENTS               ,03/10/2016,4086329,J1664461                 ,"1,589.59",REDACTED PERSONAL DATA,503655,Social Community Care,CAREFIRST DIRECT PAYMENTS     
SHEFFIELD CITY COUNCIL        ,COMMUNITIES                   ,46039,ADULT SOCIAL CARE PURCHASING  ,9190,DIRECT PAYMENTS               ,03/10/2016,4086331,J1664461                 ,353.43,REDACTED PERSONAL DATA,514835,Social Community Care,CAREFIRST DIRECT PAYMENTS     
SHEFFIELD CITY COUNCIL        ,COMMUNITIES                   ,46039,ADULT SOCIAL CARE PURCHASING  ,9190,DIRECT PAYMENTS               ,03/10/2016,4086332,J1664461                 ,"2,300.00",REDACTED PERSONAL DATA,515241,Social Community Care,CAREFIRST DIRECT PAYMENTS     
SHEFFIELD CITY COUNCIL        ,COMMUNITIES                   ,46039,ADULT SOCIAL CARE PURCHASING  ,9190,DIRECT PAYMENTS               ,03/10/2016,4086333,J1664461                 ,401.10,REDACTED PERSONAL DATA,530704,Social Community Care,CAREFIRST DIRECT PAYMENTS     
SHEFFIELD CITY COUNCIL        ,COMMUNITIES                   ,46039,ADULT SOCIAL CARE PURCHASING  ,9190,DIRECT PAYMENTS               ,03/10/2016,4086334,J1664461                 ,441.82,PEOPLEPLUS GROUP LIMITED                ,547567,,TRAINING SERVICES             
SHEFFIELD CITY COUNCIL        ,COMMUNITIES                   ,44001,PURCHASING                    ,9190,DIRECT PAYMENTS               ,03/10/2016,4086335,J1664461                 ,531.86,REDACTED PERSONAL DATA,547984,Social Community Care,CAREFIRST DIRECT PAYMENTS     
SHEFFIELD CITY COUNCIL        ,COMMUNITIES                   ,44001,PURCHASING                    ,4260,DIRECT PAYMENTS               ,03/10/2016,4086337,J1664461                 ,"1,298.88",REDACTED PERSONAL DATA,556296,,CHARITIES & VOLUNTARY ORGANISA
SHEFFIELD CITY COUNCIL        ,COMMUNITIES                   ,44001,PURCHASING                    ,9190,DIRECT PAYMENTS               ,03/10/2016,4086337,J1664461                 ,"9,902.30",REDACTED PERSONAL DATA,556296,,CHARITIES & VOLUNTARY ORGANISA
SHEFFIELD CITY COUNCIL        ,COMMUNITIES                   ,42034,PURCHASING LEARNING DISABILITI,9190,DIRECT PAYMENTS               ,03/10/2016,4086338,J1664461                 ,"2,027.60",REDACTED PERSONAL DATA,556454,Social Community Care,CAREFIRST DIRECT PAYMENTS     
SHEFFIELD CITY COUNCIL        ,COMMUNITIES                   ,42034,PURCHASING LEARNING DISABILITI,9190,DIRECT PAYMENTS               ,03/10/2016,4086339,J1664461                 ,"3,404.60",REDACTED PERSONAL DATA,556890,Social Community Care,CAREFIRST DIRECT PAYMENTS     
SHEFFIELD CITY COUNCIL        ,COMMUNITIES                   ,46039,ADULT SOCIAL CARE PURCHASING  ,9190,DIRECT PAYMENTS               ,03/10/2016,4086340,J1664461                 ,"2,978.12",REDACTED PERSONAL DATA,562178,Social Community Care,CAREFIRST DIRECT PAYMENTS     
SHEFFIELD CITY COUNCIL        ,COMMUNITIES                   ,46039,ADULT SOCIAL CARE PURCHASING  ,9190,DIRECT PAYMENTS               ,03/10/2016,4086342,J1664461                 ,"2,705.92",SY CARE & SUPPORT SHEFFIELD             ,585426,Social Community Care,CAREFIRST DIRECT PAYMENTS     
SHEFFIELD CITY COUNCIL        ,COMMUNITIES                   ,44001,PURCHASING                    ,9190,DIRECT PAYMENTS               ,03/10/2016,4086343,J1664461                 ,594.54,THE ROWAN ORGANISATION MANAGED ACCOUNTS ,585750,Social Community Care,CAREFIRST DIRECT PAYMENTS     
SHEFFIELD CITY COUNCIL        ,CYPF                          ,39148,DIRECT PAYMENTS               ,9190,DIRECT PAYMENTS               ,03/10/2016,4086344,J1664461                 ,324.60,REDACTED PERSONAL DATA,592512,Social Community Care,CAREFIRST DIRECT PAYMENTS     
SHEFFIELD CITY COUNCIL        ,COMMUNITIES                   ,44001,PURCHASING                    ,9190,DIRECT PAYMENTS               ,03/10/2016,4086345,J1664461                 ,299.00,REDACTED PERSONAL DATA,598818,Social Community Care,CAREFIRST DIRECT PAYMENTS     
SHEFFIELD CITY COUNCIL        ,CYPF                          ,39148,DIRECT PAYMENTS               ,9190,DIRECT PAYMENTS               ,03/10/2016,4086346,J1664461                 ,437.00,PARKSIDE PAYROLL LIMITED                ,616773,Social Community Care,CAREFIRST DIRECT PAYMENTS     
SHEFFIELD CITY COUNCIL        ,COMMUNITIES                   ,44001,PURCHASING                    ,9190,DIRECT PAYMENTS               ,03/10/2016,4086347,J1664461                 ,"1,362.36",SHEFFIELD HEALTH & SOCIAL CARE          ,631483,Unclassified Non Trade,OUT OF SCOPE FOR SIC MONITORIN
SHEFFIELD CITY COUNCIL        ,COMMUNITIES                   ,46039,ADULT SOCIAL CARE PURCHASING  ,9190,DIRECT PAYMENTS               ,03/10/2016,4086348,J1664461                 ,317.48,REDACTED PERSONAL DATA,635470,Social Community Care,CAREFIRST DIRECT PAYMENTS     
SHEFFIELD CITY COUNCIL        ,COMMUNITIES                   ,42034,PURCHASING LEARNING DISABILITI,9190,DIRECT PAYMENTS               ,03/10/2016,4086349,J1664461                 ,973.57,REDACTED PERSONAL DATA,637748,Social Community Care,CAREFIRST DIRECT PAYMENTS     
SHEFFIELD CITY COUNCIL        ,COMMUNITIES                   ,46039,ADULT SOCIAL CARE PURCHASING  ,9190,DIRECT PAYMENTS               ,03/10/2016,4086350,J1664461                 ,"1,290.00",REDACTED PERSONAL DATA,638616,Social Community Care,CAREFIRST DIRECT PAYMENTS     
SHEFFIELD CITY COUNCIL        ,COMMUNITIES                   ,46039,ADULT SOCIAL CARE PURCHASING  ,9190,DIRECT PAYMENTS               ,03/10/2016,4086352,J1664461                 ,322.29,REDACTED PERSONAL DATA,638651,Social Community Care,CAREFIRST DIRECT PAYMENTS     
SHEFFIELD CITY COUNCIL        ,COMMUNITIES                   ,42034,PURCHASING LEARNING DISABILITI,9250,INDEPENDENT DAY CARE          ,03/10/2016,4086353,38246,300.00,SHEFFIELD COMMUNITY TRANSPORT           ,296356,,CHARITIES & VOLUNTARY ORGANISA
SHEFFIELD CITY COUNCIL        ,COMMUNITIES                   ,42034,PURCHASING LEARNING DISABILITI,9190,CITYWIDE SPOT                 ,03/10/2016,4086355,0.3273,"4,147.80",ABBEYCARE & NURSING HOME LTD            ,518411,,RESIDENTIAL CARE HOMES        
SHEFFIELD CITY COUNCIL        ,COMMUNITIES                   ,42034,PURCHASING LEARNING DISABILITI,9190,FUNDED HOME SUPPORT           ,03/10/2016,4086355,0.3273,"1,568.00",ABBEYCARE & NURSING HOME LTD            ,518411,,RESIDENTIAL CARE HOMES        
SHEFFIELD CITY COUNCIL        ,COMMUNITIES                   ,42034,PURCHASING LEARNING DISABILITI,9190,FUNDED HOME SUPPORT           ,03/10/2016,4086356,3078950,"1,614.12",MENCAP HOMECARE                         ,361858,,CHARITIES & VOLUNTARY ORGANISA
SHEFFIELD CITY COUNCIL        ,COMMUNITIES                   ,42034,PURCHASING LEARNING DISABILITI,9240,SUPPORTED LIVING CARE         ,03/10/2016,4086357,355371,"1,546.68",UNITED RESPONSE                         ,329604,,CHARITIES & VOLUNTARY ORGANISA
SHEFFIELD CITY COUNCIL        ,COMMUNITIES                   ,42034,PURCHASING LEARNING DISABILITI,9240,SUPPORTED LIVING CARE         ,03/10/2016,4086358,355400,"1,579.49",UNITED RESPONSE                         ,329604,,CHARITIES & VOLUNTARY ORGANISA
SHEFFIELD CITY COUNCIL        ,COMMUNITIES                   ,42034,PURCHASING LEARNING DISABILITI,9240,FUNDED NURSING CARE (IN       ,03/10/2016,4086359,355439,996.14,UNITED RESPONSE                         ,329604,,CHARITIES & VOLUNTARY ORGANISA
SHEFFIELD CITY COUNCIL        ,COMMUNITIES                   ,42034,PURCHASING LEARNING DISABILITI,9240,SUPPORTED LIVING CARE         ,03/10/2016,4086359,355439,"4,061.00",UNITED RESPONSE                         ,329604,,CHARITIES & VOLUNTARY ORGANISA
SHEFFIELD CITY COUNCIL        ,COMMUNITIES                   ,42034,PURCHASING LEARNING DISABILITI,9240,SUPPORTED LIVING CARE         ,03/10/2016,4086360,355452,844.68,UNITED RESPONSE                         ,329604,,CHARITIES & VOLUNTARY ORGANISA
SHEFFIELD CITY COUNCIL        ,COMMUNITIES                   ,42034,PURCHASING LEARNING DISABILITI,9240,SUPPORTED LIVING CARE         ,03/10/2016,4086361,355456,"3,240.00",UNITED RESPONSE                         ,329604,,CHARITIES & VOLUNTARY ORGANISA
SHEFFIELD CITY COUNCIL        ,COMMUNITIES                   ,42034,PURCHASING LEARNING DISABILITI,9230,CCSP TRANSPORT                ,03/10/2016,4086363,38243,300.00,SHEFFIELD COMMUNITY TRANSPORT           ,296356,,CHARITIES & VOLUNTARY ORGANISA
SHEFFIELD CITY COUNCIL        ,COMMUNITIES                   ,46039,ADULT SOCIAL CARE PURCHASING  ,9190,CITYWIDE SPOT                 ,03/10/2016,4086366,3078951,870.24,MENCAP HOMECARE                         ,361858,,CHARITIES & VOLUNTARY ORGANISA
SHEFFIELD CITY COUNCIL        ,COMMUNITIES                   ,42034,PURCHASING LEARNING DISABILITI,9230,CCSP TRANSPORT                ,03/10/2016,4086367,38250,300.00,SHEFFIELD COMMUNITY TRANSPORT           ,296356,,CHARITIES & VOLUNTARY ORGANISA
SHEFFIELD CITY COUNCIL        ,COMMUNITIES                   ,42034,PURCHASING LEARNING DISABILITI,9240,SUPPORTED LIVING CARE         ,03/10/2016,4086369,D100012927               ,621.60,LIFEWAYS COMMUNITY CARE LTD             ,622326,,SOCIAL SERVICES               
SHEFFIELD CITY COUNCIL        ,COMMUNITIES                   ,42034,PURCHASING LEARNING DISABILITI,9240,FUNDED NURSING CARE (IN       ,03/10/2016,4086369,D100012927               ,527.40,LIFEWAYS COMMUNITY CARE LTD             ,622326,,SOCIAL SERVICES               
SHEFFIELD CITY COUNCIL        ,COMMUNITIES                   ,42034,PURCHASING LEARNING DISABILITI,9240,SUPPORTED LIVING CARE         ,03/10/2016,4086370,D100012928               ,621.60,LIFEWAYS COMMUNITY CARE LTD             ,622326,,SOCIAL SERVICES               
SHEFFIELD CITY COUNCIL        ,COMMUNITIES                   ,42034,PURCHASING LEARNING DISABILITI,9240,SUPPORTED LIVING CARE         ,03/10/2016,4086371,D100012929               ,466.20,LIFEWAYS COMMUNITY CARE LTD             ,622326,,SOCIAL SERVICES               
SHEFFIELD CITY COUNCIL        ,COMMUNITIES                   ,42034,PURCHASING LEARNING DISABILITI,9240,SUPPORTED LIVING CARE         ,03/10/2016,4086372,3078952,"2,014.84",MENCAP HOMECARE                         ,361858,,CHARITIES & VOLUNTARY ORGANISA
SHEFFIELD CITY COUNCIL        ,COMMUNITIES                   ,42034,PURCHASING LEARNING DISABILITI,9240,SUPPORTED LIVING CARE         ,03/10/2016,4086373,3078953,853.76,MENCAP HOMECARE                         ,361858,,CHARITIES & VOLUNTARY ORGANISA
SHEFFIELD CITY COUNCIL        ,COMMUNITIES                   ,46039,ADULT SOCIAL CARE PURCHASING  ,9190,CITYWIDE SPOT                 ,03/10/2016,4086374,3078954,"1,841.80",MENCAP HOMECARE                         ,361858,,CHARITIES & VOLUNTARY ORGANISA
SHEFFIELD CITY COUNCIL        ,COMMUNITIES                   ,42034,PURCHASING LEARNING DISABILITI,9190,CITYWIDE SPOT                 ,03/10/2016,4086375,3078955,905.64,MENCAP HOMECARE                         ,361858,,CHARITIES & VOLUNTARY ORGANISA
SHEFFIELD CITY COUNCIL        ,COMMUNITIES                   ,42034,PURCHASING LEARNING DISABILITI,9190,CITYWIDE SPOT                 ,03/10/2016,4086376,3078956,671.60,MENCAP HOMECARE                         ,361858,,CHARITIES & VOLUNTARY ORGANISA
SHEFFIELD CITY COUNCIL        ,COMMUNITIES                   ,42034,PURCHASING LEARNING DISABILITI,9190,CITYWIDE SPOT                 ,03/10/2016,4086377,3078957,"1,568.68",MENCAP HOMECARE                         ,361858,,CHARITIES & VOLUNTARY ORGANISA
SHEFFIELD CITY COUNCIL        ,COMMUNITIES                   ,42034,PURCHASING LEARNING DISABILITI,9240,SUPPORTED LIVING CARE         ,03/10/2016,4086378,3078958,"2,771.68",MENCAP HOMECARE                         ,361858,,CHARITIES & VOLUNTARY ORGANISA
SHEFFIELD CITY COUNCIL        ,COMMUNITIES                   ,46039,ADULT SOCIAL CARE PURCHASING  ,9190,CITYWIDE SPOT                 ,03/10/2016,4086379,3078959,452.96,MENCAP HOMECARE                         ,361858,,CHARITIES & VOLUNTARY ORGANISA
SHEFFIELD CITY COUNCIL        ,COMMUNITIES                   ,42034,PURCHASING LEARNING DISABILITI,9190,CITYWIDE SPOT                 ,03/10/2016,4086380,3077581,853.76,MENCAP HOMECARE                         ,361858,,CHARITIES & VOLUNTARY ORGANISA
SHEFFIELD CITY COUNCIL        ,COMMUNITIES                   ,42034,PURCHASING LEARNING DISABILITI,9190,FUNDED HOME SUPPORT           ,03/10/2016,4086381,3078960,"2,801.40",MENCAP HOMECARE                         ,361858,,CHARITIES & VOLUNTARY ORGANISA
SHEFFIELD CITY COUNCIL        ,COMMUNITIES                   ,42034,PURCHASING LEARNING DISABILITI,9190,CITYWIDE SPOT                 ,03/10/2016,4086382,3078961,853.76,MENCAP HOMECARE                         ,361858,,CHARITIES & VOLUNTARY ORGANISA
SHEFFIELD CITY COUNCIL        ,COMMUNITIES                   ,42034,PURCHASING LEARNING DISABILITI,9190,CITYWIDE SPOT                 ,03/10/2016,4086383,3078962,"2,065.84",MENCAP HOMECARE                         ,361858,,CHARITIES & VOLUNTARY ORGANISA
SHEFFIELD CITY COUNCIL        ,COMMUNITIES                   ,42034,PURCHASING LEARNING DISABILITI,9240,SUPPORTED LIVING CARE         ,03/10/2016,4086384,3078963,"2,771.68",MENCAP HOMECARE                         ,361858,,CHARITIES & VOLUNTARY ORGANISA
SHEFFIELD CITY COUNCIL        ,COMMUNITIES                   ,42034,PURCHASING LEARNING DISABILITI,9190,CITYWIDE SPOT                 ,03/10/2016,4086385,3078964,"2,344.80",MENCAP HOMECARE                         ,361858,,CHARITIES & VOLUNTARY ORGANISA
SHEFFIELD CITY COUNCIL        ,COMMUNITIES                   ,42034,PURCHASING LEARNING DISABILITI,9190,CITYWIDE SPOT                 ,03/10/2016,4086386,3078965,853.76,MENCAP HOMECARE                         ,361858,,CHARITIES & VOLUNTARY ORGANISA
SHEFFIELD CITY COUNCIL        ,COMMUNITIES                   ,42034,PURCHASING LEARNING DISABILITI,9190,CITYWIDE SPOT                 ,03/10/2016,4086387,3078966,853.76,MENCAP HOMECARE                         ,361858,,CHARITIES & VOLUNTARY ORGANISA
SHEFFIELD CITY COUNCIL        ,COMMUNITIES                   ,46039,ADULT SOCIAL CARE PURCHASING  ,9190,CITYWIDE SPOT                 ,03/10/2016,4086388,3078967,746.92,MENCAP HOMECARE                         ,361858,,CHARITIES & VOLUNTARY ORGANISA
SHEFFIELD CITY COUNCIL        ,COMMUNITIES                   ,42034,PURCHASING LEARNING DISABILITI,9190,CITYWIDE SPOT                 ,03/10/2016,4086389,3078968,853.76,MENCAP HOMECARE                         ,361858,,CHARITIES & VOLUNTARY ORGANISA
SHEFFIELD CITY COUNCIL        ,COMMUNITIES                   ,42034,PURCHASING LEARNING DISABILITI,9190,CITYWIDE SPOT                 ,03/10/2016,4086390,3078969,853.76,MENCAP HOMECARE                         ,361858,,CHARITIES & VOLUNTARY ORGANISA
SHEFFIELD CITY COUNCIL        ,COMMUNITIES                   ,42034,PURCHASING LEARNING DISABILITI,9190,CITYWIDE SPOT                 ,03/10/2016,4086391,3077582,"1,033.08",MENCAP HOMECARE                         ,361858,,CHARITIES & VOLUNTARY ORGANISA
SHEFFIELD CITY COUNCIL        ,COMMUNITIES                   ,42034,PURCHASING LEARNING DISABILITI,9240,SUPPORTED LIVING CARE         ,03/10/2016,4086392,3078970,"1,067.20",MENCAP HOMECARE                         ,361858,,CHARITIES & VOLUNTARY ORGANISA
SHEFFIELD CITY COUNCIL        ,COMMUNITIES                   ,42034,PURCHASING LEARNING DISABILITI,9240,SUPPORTED LIVING CARE         ,03/10/2016,4086393,3078971,426.88,MENCAP HOMECARE                         ,361858,,CHARITIES & VOLUNTARY ORGANISA
SHEFFIELD CITY COUNCIL        ,COMMUNITIES                   ,42034,PURCHASING LEARNING DISABILITI,9240,SUPPORTED LIVING CARE         ,03/10/2016,4086394,3078972,767.32,MENCAP HOMECARE                         ,361858,,CHARITIES & VOLUNTARY ORGANISA
SHEFFIELD CITY COUNCIL        ,COMMUNITIES                   ,42034,PURCHASING LEARNING DISABILITI,9190,CITYWIDE SPOT                 ,03/10/2016,4086395,3078973,853.76,MENCAP HOMECARE                         ,361858,,CHARITIES & VOLUNTARY ORGANISA
SHEFFIELD CITY COUNCIL        ,COMMUNITIES                   ,42034,PURCHASING LEARNING DISABILITI,9190,CITYWIDE SPOT                 ,03/10/2016,4086396,3078974,853.76,MENCAP HOMECARE                         ,361858,,CHARITIES & VOLUNTARY ORGANISA
SHEFFIELD CITY COUNCIL        ,COMMUNITIES                   ,42034,PURCHASING LEARNING DISABILITI,9190,CITYWIDE SPOT                 ,03/10/2016,4086397,3078975,853.76,MENCAP HOMECARE                         ,361858,,CHARITIES & VOLUNTARY ORGANISA
SHEFFIELD CITY COUNCIL        ,COMMUNITIES                   ,42034,PURCHASING LEARNING DISABILITI,9190,CITYWIDE SPOT                 ,03/10/2016,4086398,3078976,426.88,MENCAP HOMECARE                         ,361858,,CHARITIES & VOLUNTARY ORGANISA
SHEFFIELD CITY COUNCIL        ,COMMUNITIES                   ,42034,PURCHASING LEARNING DISABILITI,9240,SUPPORTED LIVING CARE         ,03/10/2016,4086399,3078977,"1,205.80",MENCAP HOMECARE                         ,361858,,CHARITIES & VOLUNTARY ORGANISA
SHEFFIELD CITY COUNCIL        ,COMMUNITIES                   ,42034,PURCHASING LEARNING DISABILITI,9190,CITYWIDE SPOT                 ,03/10/2016,4086401,3078979,426.88,MENCAP HOMECARE                         ,361858,,CHARITIES & VOLUNTARY ORGANISA
SHEFFIELD CITY COUNCIL        ,COMMUNITIES                   ,42034,PURCHASING LEARNING DISABILITI,9240,SUPPORTED LIVING CARE         ,03/10/2016,4086402,3077755,"1,756.04",MENCAP HOMECARE                         ,361858,,CHARITIES & VOLUNTARY ORGANISA
SHEFFIELD CITY COUNCIL        ,COMMUNITIES                   ,42034,PURCHASING LEARNING DISABILITI,9190,CITYWIDE SPOT                 ,03/10/2016,4086403,3078980,933.80,MENCAP HOMECARE                         ,361858,,CHARITIES & VOLUNTARY ORGANISA
SHEFFIELD CITY COUNCIL        ,COMMUNITIES                   ,42034,PURCHASING LEARNING DISABILITI,9190,CITYWIDE SPOT                 ,03/10/2016,4086404,3078981,693.68,MENCAP HOMECARE                         ,361858,,CHARITIES & VOLUNTARY ORGANISA
SHEFFIELD CITY COUNCIL        ,COMMUNITIES                   ,42034,PURCHASING LEARNING DISABILITI,9190,CITYWIDE SPOT                 ,03/10/2016,4086405,3078982,640.32,MENCAP HOMECARE                         ,361858,,CHARITIES & VOLUNTARY ORGANISA
SHEFFIELD CITY COUNCIL        ,COMMUNITIES                   ,42034,PURCHASING LEARNING DISABILITI,9190,CITYWIDE SPOT                 ,03/10/2016,4086406,3078983,"3,532.08",MENCAP HOMECARE                         ,361858,,CHARITIES & VOLUNTARY ORGANISA
SHEFFIELD CITY COUNCIL        ,COMMUNITIES                   ,42034,PURCHASING LEARNING DISABILITI,9190,CITYWIDE SPOT                 ,03/10/2016,4086407,3078984,677.64,MENCAP HOMECARE                         ,361858,,CHARITIES & VOLUNTARY ORGANISA
SHEFFIELD CITY COUNCIL        ,COMMUNITIES                   ,42034,PURCHASING LEARNING DISABILITI,9190,FUNDED HOME SUPPORT           ,03/10/2016,4086408,3078985,"1,698.20",MENCAP HOMECARE                         ,361858,,CHARITIES & VOLUNTARY ORGANISA
SHEFFIELD CITY COUNCIL        ,COMMUNITIES                   ,42034,PURCHASING LEARNING DISABILITI,9190,CITYWIDE SPOT                 ,03/10/2016,4086409,3078986,"2,207.12",MENCAP HOMECARE                         ,361858,,CHARITIES & VOLUNTARY ORGANISA
SHEFFIELD CITY COUNCIL        ,COMMUNITIES                   ,42034,PURCHASING LEARNING DISABILITI,9190,CITYWIDE SPOT                 ,03/10/2016,4086410,3078987,"1,027.20",MENCAP HOMECARE                         ,361858,,CHARITIES & VOLUNTARY ORGANISA
SHEFFIELD CITY COUNCIL        ,COMMUNITIES                   ,42034,PURCHASING LEARNING DISABILITI,9190,CITYWIDE SPOT                 ,03/10/2016,4086411,3078988,414.52,MENCAP HOMECARE                         ,361858,,CHARITIES & VOLUNTARY ORGANISA
SHEFFIELD CITY COUNCIL        ,COMMUNITIES                   ,42034,PURCHASING LEARNING DISABILITI,9190,FUNDED HOME SUPPORT           ,03/10/2016,4086412,3078989,970.72,MENCAP HOMECARE                         ,361858,,CHARITIES & VOLUNTARY ORGANISA
SHEFFIELD CITY COUNCIL        ,COMMUNITIES                   ,42034,PURCHASING LEARNING DISABILITI,9240,SUPPORTED LIVING CARE         ,03/10/2016,4086413,3077961,853.76,MENCAP HOMECARE                         ,361858,,CHARITIES & VOLUNTARY ORGANISA
SHEFFIELD CITY COUNCIL        ,COMMUNITIES                   ,42034,PURCHASING LEARNING DISABILITI,9190,CITYWIDE SPOT                 ,03/10/2016,4086414,3078990,"1,960.40",MENCAP HOMECARE                         ,361858,,CHARITIES & VOLUNTARY ORGANISA
SHEFFIELD CITY COUNCIL        ,COMMUNITIES                   ,42034,PURCHASING LEARNING DISABILITI,9190,FUNDED HOME SUPPORT           ,03/10/2016,4086415,3078991,"1,120.56",MENCAP HOMECARE                         ,361858,,CHARITIES & VOLUNTARY ORGANISA
SHEFFIELD CITY COUNCIL        ,COMMUNITIES                   ,42034,PURCHASING LEARNING DISABILITI,9240,SUPPORTED LIVING CARE         ,03/10/2016,4086416,3078992,"2,264.76",MENCAP HOMECARE                         ,361858,,CHARITIES & VOLUNTARY ORGANISA
SHEFFIELD CITY COUNCIL        ,COMMUNITIES                   ,42034,PURCHASING LEARNING DISABILITI,9240,SUPPORTED LIVING CARE         ,03/10/2016,4086417,3078993,"2,065.84",MENCAP HOMECARE                         ,361858,,CHARITIES & VOLUNTARY ORGANISA
SHEFFIELD CITY COUNCIL        ,COMMUNITIES                   ,42034,PURCHASING LEARNING DISABILITI,9190,FUNDED HOME SUPPORT           ,03/10/2016,4086418,3078994,"1,787.72",MENCAP HOMECARE                         ,361858,,CHARITIES & VOLUNTARY ORGANISA
SHEFFIELD CITY COUNCIL        ,COMMUNITIES                   ,42034,PURCHASING LEARNING DISABILITI,9240,SUPPORTED LIVING CARE         ,03/10/2016,4086418,3078994,"2,914.64",MENCAP HOMECARE                         ,361858,,CHARITIES & VOLUNTARY ORGANISA
SHEFFIELD CITY COUNCIL        ,COMMUNITIES                   ,42034,PURCHASING LEARNING DISABILITI,9240,SUPPORTED LIVING CARE         ,03/10/2016,4086419,3078995,"1,280.64",MENCAP HOMECARE                         ,361858,,CHARITIES & VOLUNTARY ORGANISA
SHEFFIELD CITY COUNCIL        ,COMMUNITIES                   ,42034,PURCHASING LEARNING DISABILITI,9240,SUPPORTED LIVING CARE         ,03/10/2016,4086420,3078996,426.88,MENCAP HOMECARE                         ,361858,,CHARITIES & VOLUNTARY ORGANISA
SHEFFIELD CITY COUNCIL        ,COMMUNITIES                   ,42034,PURCHASING LEARNING DISABILITI,9240,SUPPORTED LIVING CARE         ,03/10/2016,4086421,3078997,"1,280.64",MENCAP HOMECARE                         ,361858,,CHARITIES & VOLUNTARY ORGANISA
SHEFFIELD CITY COUNCIL        ,COMMUNITIES                   ,46039,ADULT SOCIAL CARE PURCHASING  ,9190,FUNDED HOME SUPPORT           ,03/10/2016,4086422,3078998,280.12,MENCAP HOMECARE                         ,361858,,CHARITIES & VOLUNTARY ORGANISA
SHEFFIELD CITY COUNCIL        ,COMMUNITIES                   ,42034,PURCHASING LEARNING DISABILITI,9240,FUNDED NURSING CARE (IN       ,03/10/2016,4086423,3078999,"1,000.20",MENCAP HOMECARE                         ,361858,,CHARITIES & VOLUNTARY ORGANISA
SHEFFIELD CITY COUNCIL        ,COMMUNITIES                   ,42034,PURCHASING LEARNING DISABILITI,9240,SUPPORTED LIVING CARE         ,03/10/2016,4086423,3078999,"1,560.48",MENCAP HOMECARE                         ,361858,,CHARITIES & VOLUNTARY ORGANISA
SHEFFIELD CITY COUNCIL        ,COMMUNITIES                   ,42034,PURCHASING LEARNING DISABILITI,9240,SUPPORTED LIVING CARE         ,03/10/2016,4086424,3077962,"4,449.44",MENCAP HOMECARE                         ,361858,,CHARITIES & VOLUNTARY ORGANISA
SHEFFIELD CITY COUNCIL        ,COMMUNITIES                   ,42034,PURCHASING LEARNING DISABILITI,9240,FUNDED NURSING CARE (IN       ,03/10/2016,4086424,3077962,"1,787.20",MENCAP HOMECARE                         ,361858,,CHARITIES & VOLUNTARY ORGANISA
SHEFFIELD CITY COUNCIL        ,COMMUNITIES                   ,42034,PURCHASING LEARNING DISABILITI,9190,CITYWIDE SPOT                 ,03/10/2016,4086425,3079000,"6,887.88",MENCAP HOMECARE                         ,361858,,CHARITIES & VOLUNTARY ORGANISA
SHEFFIELD CITY COUNCIL        ,COMMUNITIES                   ,42034,PURCHASING LEARNING DISABILITI,9240,SUPPORTED LIVING CARE         ,03/10/2016,4086427,3079002,"7,220.72",MENCAP HOMECARE                         ,361858,,CHARITIES & VOLUNTARY ORGANISA
SHEFFIELD CITY COUNCIL        ,COMMUNITIES                   ,42034,PURCHASING LEARNING DISABILITI,9240,FUNDED NURSING CARE (IN       ,03/10/2016,4086428,3079003,"2,140.92",MENCAP HOMECARE                         ,361858,,CHARITIES & VOLUNTARY ORGANISA
SHEFFIELD CITY COUNCIL        ,COMMUNITIES                   ,42034,PURCHASING LEARNING DISABILITI,9240,SUPPORTED LIVING CARE         ,03/10/2016,4086429,3079004,"1,865.12",MENCAP HOMECARE                         ,361858,,CHARITIES & VOLUNTARY ORGANISA
SHEFFIELD CITY COUNCIL        ,COMMUNITIES                   ,42034,PURCHASING LEARNING DISABILITI,9190,CITYWIDE SPOT                 ,03/10/2016,4086430,3079005,"1,652.00",MENCAP HOMECARE                         ,361858,,CHARITIES & VOLUNTARY ORGANISA
SHEFFIELD CITY COUNCIL        ,COMMUNITIES                   ,42034,PURCHASING LEARNING DISABILITI,9240,SUPPORTED LIVING CARE         ,03/10/2016,4086431,3079006,747.04,MENCAP HOMECARE                         ,361858,,CHARITIES & VOLUNTARY ORGANISA
SHEFFIELD CITY COUNCIL        ,COMMUNITIES                   ,42034,PURCHASING LEARNING DISABILITI,9240,FUNDED NURSING CARE (IN       ,03/10/2016,4086431,3079006,"1,654.16",MENCAP HOMECARE                         ,361858,,CHARITIES & VOLUNTARY ORGANISA
SHEFFIELD CITY COUNCIL        ,COMMUNITIES                   ,42034,PURCHASING LEARNING DISABILITI,9190,FUNDED HOME SUPPORT           ,03/10/2016,4086432,3079187,"1,777.44",MENCAP HOMECARE                         ,361858,,CHARITIES & VOLUNTARY ORGANISA
SHEFFIELD CITY COUNCIL        ,COMMUNITIES                   ,42034,PURCHASING LEARNING DISABILITI,9190,CITYWIDE SPOT                 ,03/10/2016,4086433,3079896,"1,996.16",MENCAP HOMECARE                         ,361858,,CHARITIES & VOLUNTARY ORGANISA
SHEFFIELD CITY COUNCIL        ,COMMUNITIES                   ,42034,PURCHASING LEARNING DISABILITI,9240,SUPPORTED LIVING CARE         ,03/10/2016,4086434,3078242,"5,416.04",MENCAP HOMECARE                         ,361858,,CHARITIES & VOLUNTARY ORGANISA
SHEFFIELD CITY COUNCIL        ,COMMUNITIES                   ,44001,PURCHASING                    ,9190,CITYWIDE SPOT                 ,03/10/2016,4086435,1830001954,"2,749.92",CRAEGMOOR FITZWILLIAM LODGE PRIORY      ,567316,,RESIDENTIAL CARE HOMES        
SHEFFIELD CITY COUNCIL        ,COMMUNITIES                   ,44001,PURCHASING                    ,9190,CITYWIDE SPOT                 ,03/10/2016,4086436,21433,709.72,ST ANNE'S COMMUNITY SERVICES            ,351501,,HOME SUPPORT SERVICES         
SHEFFIELD CITY COUNCIL        ,COMMUNITIES                   ,42034,PURCHASING LEARNING DISABILITI,9240,SUPPORTED LIVING CARE         ,03/10/2016,4086444,3078948,"1,400.60",MENCAP HOMECARE                         ,361858,,CHARITIES & VOLUNTARY ORGANISA
SHEFFIELD CITY COUNCIL        ,COMMUNITIES                   ,42034,PURCHASING LEARNING DISABILITI,9240,SUPPORTED LIVING CARE         ,03/10/2016,4086446,3270,"4,212.60",ABBEYCARE & NURSING HOME LTD            ,518411,,RESIDENTIAL CARE HOMES        
SHEFFIELD CITY COUNCIL        ,COMMUNITIES                   ,46039,ADULT SOCIAL CARE PURCHASING  ,9240,SUPPORTED LIVING CARE         ,03/10/2016,4086447,3275,"4,164.96",ABBEYCARE & NURSING HOME LTD            ,518411,,RESIDENTIAL CARE HOMES        
SHEFFIELD CITY COUNCIL        ,COMMUNITIES                   ,42034,PURCHASING LEARNING DISABILITI,9240,SUPPORTED LIVING CARE         ,03/10/2016,4086448,3282,542.40,ABBEYCARE & NURSING HOME LTD            ,518411,,RESIDENTIAL CARE HOMES        
SHEFFIELD CITY COUNCIL        ,COMMUNITIES                   ,42034,PURCHASING LEARNING DISABILITI,9240,SUPPORTED LIVING CARE         ,03/10/2016,4086449,351693,"3,240.00",UNITED RESPONSE                         ,329604,,CHARITIES & VOLUNTARY ORGANISA
SHEFFIELD CITY COUNCIL        ,COMMUNITIES                   ,42034,PURCHASING LEARNING DISABILITI,9240,SUPPORTED LIVING CARE         ,03/10/2016,4086450,354773,"1,724.00",UNITED RESPONSE                         ,329604,,CHARITIES & VOLUNTARY ORGANISA
SHEFFIELD CITY COUNCIL        ,COMMUNITIES                   ,42034,PURCHASING LEARNING DISABILITI,9240,SUPPORTED LIVING CARE         ,03/10/2016,4086451,354774,"2,264.00",UNITED RESPONSE                         ,329604,,CHARITIES & VOLUNTARY ORGANISA
SHEFFIELD CITY COUNCIL        ,COMMUNITIES                   ,42034,PURCHASING LEARNING DISABILITI,9190,CITYWIDE SPOT                 ,03/10/2016,4086452,354779,"1,824.72",UNITED RESPONSE                         ,329604,,CHARITIES & VOLUNTARY ORGANISA
SHEFFIELD CITY COUNCIL        ,COMMUNITIES                   ,42034,PURCHASING LEARNING DISABILITI,9190,CITYWIDE SPOT                 ,03/10/2016,4086456,354880,"1,782.00",UNITED RESPONSE                         ,329604,,CHARITIES & VOLUNTARY ORGANISA
SHEFFIELD CITY COUNCIL        ,COMMUNITIES                   ,42034,PURCHASING LEARNING DISABILITI,9240,SUPPORTED LIVING CARE         ,03/10/2016,4086457,354929,756.00,UNITED RESPONSE                         ,329604,,CHARITIES & VOLUNTARY ORGANISA
SHEFFIELD CITY COUNCIL        ,COMMUNITIES                   ,42034,PURCHASING LEARNING DISABILITI,9240,SUPPORTED LIVING CARE         ,03/10/2016,4086458,354930,810.00,UNITED RESPONSE                         ,329604,,CHARITIES & VOLUNTARY ORGANISA
SHEFFIELD CITY COUNCIL        ,COMMUNITIES                   ,42034,PURCHASING LEARNING DISABILITI,9240,FUNDED NURSING CARE (IN       ,03/10/2016,4086459,355022,810.00,UNITED RESPONSE                         ,329604,,CHARITIES & VOLUNTARY ORGANISA
SHEFFIELD CITY COUNCIL        ,COMMUNITIES                   ,42034,PURCHASING LEARNING DISABILITI,9240,SUPPORTED LIVING CARE         ,03/10/2016,4086460,355240,972.00,UNITED RESPONSE                         ,329604,,CHARITIES & VOLUNTARY ORGANISA
SHEFFIELD CITY COUNCIL        ,COMMUNITIES                   ,42034,PURCHASING LEARNING DISABILITI,9190,CITYWIDE SPOT                 ,03/10/2016,4086461,355287,972.00,UNITED RESPONSE                         ,329604,,CHARITIES & VOLUNTARY ORGANISA
SHEFFIELD CITY COUNCIL        ,COMMUNITIES                   ,42034,PURCHASING LEARNING DISABILITI,9190,CITYWIDE SPOT                 ,03/10/2016,4086463,355322,372.08,UNITED RESPONSE                         ,329604,,CHARITIES & VOLUNTARY ORGANISA
SHEFFIELD CITY COUNCIL        ,COMMUNITIES                   ,42034,PURCHASING LEARNING DISABILITI,9240,SUPPORTED LIVING CARE         ,03/10/2016,4086464,35536,801.66,UNITED RESPONSE                         ,329604,,CHARITIES & VOLUNTARY ORGANISA
SHEFFIELD CITY COUNCIL        ,COMMUNITIES                   ,42034,PURCHASING LEARNING DISABILITI,9240,SUPPORTED LIVING CARE         ,03/10/2016,4086465,355368,891.84,UNITED RESPONSE                         ,329604,,CHARITIES & VOLUNTARY ORGANISA
SHEFFIELD CITY COUNCIL        ,CYPF                          ,39238,WEST SA - CIN S17             ,9270,NO RECOURSE TO PUBLIC FUNDS   ,03/10/2016,4086323,I PUSKAS                 ,378.00,HAMILTON HOUSE NURSERY & PRE-SCHOOL LTD ,339524,,NURSERIES & CRECHES           
SHEFFIELD CITY COUNCIL        ,COMMUNITIES                   ,46039,ADULT SOCIAL CARE PURCHASING  ,9210,CONTINUING NURSING CARE       ,03/10/2016,4086322,J1664459 091016          ,"4,222.03",WESTBOURNE HOUSE                        ,362111,,NURSING HOMES                 
SHEFFIELD CITY COUNCIL        ,PLACE                         ,23036,CORONIAL SERVICES             ,8440,WITNESS FEES                  ,04/10/2016,4088602,ERS INVOICE143645        ,"1,400.00",JOSEPH MEAGHER                          ,637803,,DOCTORS                       
SHEFFIELD CITY COUNCIL        ,PLACE                         ,23036,CORONIAL SERVICES             ,7150,CAR ALLOWANCES                ,04/10/2016,4088603,ERS INVOICE143646        ,324.90,REDACTED PERSONAL DATA,623574,Unclassified Non Trade,OUT OF SCOPE FOR SIC MONITORIN
SHEFFIELD CITY COUNCIL        ,PLACE                         ,23036,CORONIAL SERVICES             ,8440,WITNESS FEES                  ,04/10/2016,4088604,ERS INVOICE143647        ,"2,000.00",DUNCAN HARRISS CONSULTING LTD           ,638659,,LEGAL SERVICES                
SCR COMBINED AUTHORITY        ,CA LEP                        ,30322,APPRENTICE GRANT              ,8440,FEE EXPENSES                  ,04/10/2016,4088605,ERS INVOICE143648        ,450.00,CULTRIX LTD                             ,625926,,WEB SITE DESIGN               
SHEFFIELD CITY COUNCIL        ,CYPF                          ,33142,CITY DEAL - FRAMEWORKS        ,9120,OTHER AGENCIES                ,04/10/2016,4088606,ERS INVOICE143649        ,445.86,SLIC TRAINING (INTERNATIONAL) LIMITED   ,590038,,TRAINING SERVICES             
SHEFFIELD CITY COUNCIL        ,CYPF                          ,39357,SHORT BREAKS FUNDING FOR DISAB,8440,FEE EXPENSES                  ,04/10/2016,4088607,ERS INVOICE143650        ,400.00,REDACTED PERSONAL DATA,574006,Unclassified Non Trade,OUT OF SCOPE FOR SIC MONITORIN
SHEFFIELD CITY COUNCIL        ,CYPF                          ,39357,SHORT BREAKS FUNDING FOR DISAB,8440,FEE EXPENSES                  ,04/10/2016,4088608,ERS INVOICE143651        ,400.00,REDACTED PERSONAL DATA,589290,Unclassified Non Trade,OUT OF SCOPE FOR SIC MONITORIN
SHEFFIELD CITY COUNCIL        ,CYPF                          ,39357,SHORT BREAKS FUNDING FOR DISAB,8440,FEE EXPENSES                  ,04/10/2016,4088609,ERS INVOICE143652        ,400.00,REDACTED PERSONAL DATA,513717,Unclassified Non Trade,OUT OF SCOPE FOR SIC MONITORIN
SHEFFIELD CITY COUNCIL        ,CYPF                          ,39357,SHORT BREAKS FUNDING FOR DISAB,8440,FEE EXPENSES                  ,04/10/2016,4088610,ERS INVOICE143653        ,400.00,REDACTED PERSONAL DATA,570397,Unclassified Non Trade,OUT OF SCOPE FOR SIC MONITORIN
SHEFFIELD CITY COUNCIL        ,CYPF                          ,39357,SHORT BREAKS FUNDING FOR DISAB,8440,FEE EXPENSES                  ,04/10/2016,4088611,ERS INVOICE143654        ,390.05,REDACTED PERSONAL DATA,577007,Unclassified Non Trade,OUT OF SCOPE FOR SIC MONITORIN
SHEFFIELD CITY COUNCIL        ,CYPF                          ,39357,SHORT BREAKS FUNDING FOR DISAB,8440,FEE EXPENSES                  ,04/10/2016,4088612,ERS INVOICE143655        ,400.00,REDACTED PERSONAL DATA,571557,Unclassified Non Trade,OUT OF SCOPE FOR SIC MONITORIN
SHEFFIELD CITY COUNCIL        ,CYPF                          ,39357,SHORT BREAKS FUNDING FOR DISAB,8440,FEE EXPENSES                  ,04/10/2016,4088613,ERS INVOICE143656        ,400.00,REDACTED PERSONAL DATA,571540,Unclassified Non Trade,OUT OF SCOPE FOR SIC MONITORIN
SHEFFIELD CITY COUNCIL        ,CYPF                          ,39357,SHORT BREAKS FUNDING FOR DISAB,8440,FEE EXPENSES                  ,04/10/2016,4088614,ERS INVOICE143657        ,400.00,REDACTED PERSONAL DATA,536890,Unclassified Non Trade,OUT OF SCOPE FOR SIC MONITORIN
SHEFFIELD CITY COUNCIL        ,CYPF                          ,39357,SHORT BREAKS FUNDING FOR DISAB,8440,FEE EXPENSES                  ,04/10/2016,4088615,ERS INVOICE143658        ,400.00,REDACTED PERSONAL DATA,558758,Unclassified Non Trade,OUT OF SCOPE FOR SIC MONITORIN
SHEFFIELD CITY COUNCIL        ,CYPF                          ,39357,SHORT BREAKS FUNDING FOR DISAB,8440,FEE EXPENSES                  ,04/10/2016,4088616,ERS INVOICE143659        ,400.00,REDACTED PERSONAL DATA,585451,Unclassified Non Trade,OUT OF SCOPE FOR SIC MONITORIN
SHEFFIELD CITY COUNCIL        ,CYPF                          ,39357,SHORT BREAKS FUNDING FOR DISAB,8440,FEE EXPENSES                  ,04/10/2016,4088617,ERS INVOICE143660        ,400.00,REDACTED PERSONAL DATA,561331,Unclassified Non Trade,OUT OF SCOPE FOR SIC MONITORIN
SHEFFIELD CITY COUNCIL        ,CYPF                          ,39357,SHORT BREAKS FUNDING FOR DISAB,8440,FEE EXPENSES                  ,04/10/2016,4088618,ERS INVOICE143661        ,400.00,REDACTED PERSONAL DATA,537216,Unclassified Non Trade,OUT OF SCOPE FOR SIC MONITORIN
SHEFFIELD CITY COUNCIL        ,CYPF                          ,39357,SHORT BREAKS FUNDING FOR DISAB,8440,FEE EXPENSES                  ,04/10/2016,4088623,ERS INVOICE143666        ,400.00,REDACTED PERSONAL DATA,574212,Unclassified Non Trade,OUT OF SCOPE FOR SIC MONITORIN
SHEFFIELD CITY COUNCIL        ,CYPF                          ,39357,SHORT BREAKS FUNDING FOR DISAB,8440,FEE EXPENSES                  ,04/10/2016,4088626,ERS INVOICE143669        ,400.00,REDACTED PERSONAL DATA,512755,Unclassified Non Trade,OUT OF SCOPE FOR SIC MONITORIN
SHEFFIELD CITY COUNCIL        ,PLACE                         ,23036,CORONIAL SERVICES             ,8440,WITNESS FEES                  ,04/10/2016,4088627,ERS INVOICE143670        ,875.00,MARTIN SHUTKEVER LTD                    ,638672,,DOCTORS                       
SHEFFIELD CITY COUNCIL        ,CYPF                          ,39491,SSCB                          ,8490,OTHER PROFESSIONAL FEES       ,04/10/2016,4088668,ERS INVOICE143714        ,"1,287.40",JANE HAYWOOD                            ,633258,,CONFERENCE SERVICES           
SHEFFIELD CITY COUNCIL        ,RESOURCES                     ,12009,STRATEGIC FINANCE             ,5810,COMPENSATION PAYMENTS         ,04/10/2016,4088695,ERS INVOICE143741        ,"7,498.00",REDACTED PERSONAL DATA,638760,Unclassified Non Trade,OUT OF SCOPE FOR SIC MONITORIN
SHEFFIELD CITY COUNCIL        ,RESOURCES                     ,12009,STRATEGIC FINANCE             ,5810,COMPENSATION PAYMENTS         ,04/10/2016,4088703,ERS INVOICE143749        ,"4,526.00",REDACTED PERSONAL DATA,638761,Unclassified Non Trade,OUT OF SCOPE FOR SIC MONITORIN
SHEFFIELD CITY COUNCIL        ,COMMUNITIES                   ,42034,PURCHASING LEARNING DISABILITI,5810,COMPENSATION PAYMENTS         ,04/10/2016,4088704,ERS INVOICE143750        ,350.00,REDACTED PERSONAL DATA,638750,Unclassified Non Trade,OUT OF SCOPE FOR SIC MONITORIN
SHEFFIELD CITY COUNCIL        ,RESOURCES                     ,12009,STRATEGIC FINANCE             ,5810,COMPENSATION PAYMENTS         ,04/10/2016,4088705,ERS INVOICE143751        ,"6,097.00",REDACTED PERSONAL DATA,638762,Unclassified Non Trade,OUT OF SCOPE FOR SIC MONITORIN
SHEFFIELD CITY COUNCIL        ,RESOURCES                     ,12009,STRATEGIC FINANCE             ,5810,COMPENSATION PAYMENTS         ,04/10/2016,4088707,ERS INVOICE143753        ,"2,530.00",REDACTED PERSONAL DATA,638758,Unclassified Non Trade,OUT OF SCOPE FOR SIC MONITORIN
SHEFFIELD CITY COUNCIL        ,PLACE                         ,28100,BUSINESS GROWTH TEAM          ,8240,CONFERENCE EXPENSES           ,04/10/2016,4088810,ERS INVOICE143754        ,"1,503.25",CH AND CO CATERING LIMITED              ,634858,,CATERERS                      
SCR COMBINED AUTHORITY        ,CA LEP                        ,30400,NORTHERN POWERHOUSE           ,8460,CONSULTANTS FEES              ,04/10/2016,4088811,ERS INVOICE143755        ,"16,120.00",MERSEYTRAVEL                            ,630133,,LOCAL GOVERNMENT              
SHEFFIELD CITY COUNCIL        ,COMMUNITIES                   ,49363,OLDER PERSONS LIVING          ,8560,HOUSING AREA CONSULT ALLOWANCE,04/10/2016,4088812,ERS INVOICE143756        ,"1,000.00",HEELEY CITY FARM                        ,301277,,CHARITIES & VOLUNTARY ORGANISA
SHEFFIELD CITY COUNCIL        ,COMMUNITIES                   ,49363,OLDER PERSONS LIVING          ,8560,HOUSING AREA CONSULT ALLOWANCE,04/10/2016,4088813,ERS INVOICE143757        ,"2,000.00",ENRICHMENT FOR THE ELDERLY LTD          ,620241,,COMMUNITY PROJECTS            
SHEFFIELD CITY COUNCIL        ,PLACE                         ,97394,HULL - HUMBER SUB REGION HAL  ,1194,OTHER FEES                    ,04/10/2016,4088814,ERS INVOICE143758        ,"14,000.00",REDACTED PERSONAL DATA,552626,Unclassified Non Trade,OUT OF SCOPE FOR SIC MONITORIN
SCR COMBINED AUTHORITY        ,CA LEP                        ,30322,APPRENTICE GRANT              ,8440,FEE EXPENSES                  ,04/10/2016,4088815,ERS INVOICE143759        ,"1,120.00",CHROME HAIR LTD                         ,637977,,HAIRDRESSERS - UNISEX         
SCR COMBINED AUTHORITY        ,CA LEP                        ,30322,APPRENTICE GRANT              ,8440,FEE EXPENSES                  ,04/10/2016,4088816,ERS INVOICE143760        ,"1,120.00",DP DOORS & SHUTTERS LTD                 ,456133,,DOORS & SHUTTERS - SALES & INS
SCR COMBINED AUTHORITY        ,CA LEP                        ,30322,APPRENTICE GRANT              ,8440,FEE EXPENSES                  ,04/10/2016,4088817,ERS INVOICE143761        ,"1,120.00",BLYTH METALS LTD                        ,637978,,STEEL MNFRS                   
SCR COMBINED AUTHORITY        ,CA LEP                        ,30322,APPRENTICE GRANT              ,8440,FEE EXPENSES                  ,04/10/2016,4088818,ERS INVOICE143762        ,"1,420.00",CLEARFLOW PLUMBING                      ,635642,,PLUMBERS                      
SCR COMBINED AUTHORITY        ,CA LEP                        ,30322,APPRENTICE GRANT              ,8440,FEE EXPENSES                  ,04/10/2016,4088819,ERS INVOICE143763        ,"1,120.00",VANILLA BY SARA BARLOW                  ,638139,,HAIRDRESSERS & HAIR STYLISTS -
SCR COMBINED AUTHORITY        ,CA LEP                        ,30322,APPRENTICE GRANT              ,8440,FEE EXPENSES                  ,04/10/2016,4088820,ERS INVOICE143764        ,"1,120.00",CRAVEN WILDSMITH                        ,637759,,PROPERTY & ESTATE MANAGEMENT  
SCR COMBINED AUTHORITY        ,CA LEP                        ,30322,APPRENTICE GRANT              ,8440,FEE EXPENSES                  ,04/10/2016,4088821,ERS INVOICE143765        ,"1,120.00",BEARING WAREHOUSE LTD                   ,638699,,BEARINGS STOCKISTS            
SCR COMBINED AUTHORITY        ,CA LEP                        ,30322,APPRENTICE GRANT              ,8440,FEE EXPENSES                  ,04/10/2016,4088822,ERS INVOICE143766        ,"1,120.00",D & J AUTOS                             ,635986,,CAR BODY REPAIRS              
SCR COMBINED AUTHORITY        ,CA LEP                        ,30322,APPRENTICE GRANT              ,8440,FEE EXPENSES                  ,04/10/2016,4088823,ERS INVOICE143767        ,"1,120.00",SPECIALISED LASER PRODUCTS LTD          ,637984,,LASER CUTTING SERVICES        
SCR COMBINED AUTHORITY        ,CA LEP                        ,30322,APPRENTICE GRANT              ,8440,FEE EXPENSES                  ,04/10/2016,4088824,ERS INVOICE143768        ,"2,000.00",MAGENTA SIGNS                           ,638914,,SIGN WRITERS                  
SCR COMBINED AUTHORITY        ,CA LEP                        ,30322,APPRENTICE GRANT              ,8440,FEE EXPENSES                  ,04/10/2016,4088825,ERS INVOICE143769        ,"1,420.00",K MORETON JOINERY                       ,636447,,CARPENTERS & JOINERS          
SCR COMBINED AUTHORITY        ,CA LEP                        ,30322,APPRENTICE GRANT              ,8440,FEE EXPENSES                  ,04/10/2016,4088826,ERS INVOICE143770        ,"1,120.00",LIGHT AND SHADE UK LTD                  ,637985,,CURTAINS - RETAILERS & MAKERS 
SCR COMBINED AUTHORITY        ,CA LEP                        ,30322,APPRENTICE GRANT              ,8440,FEE EXPENSES                  ,04/10/2016,4088827,ERS INVOICE143771        ,"1,120.00",MINI KICKS LIMITED                      ,637206,,SPORTS COACHING & INSTRUCTION 
SCR COMBINED AUTHORITY        ,CA LEP                        ,30322,APPRENTICE GRANT              ,8440,FEE EXPENSES                  ,04/10/2016,4088828,ERS INVOICE143772        ,"1,120.00",CASA BELLA SORELLA                      ,637438,,HAIRDRESSERS - UNISEX         
SCR COMBINED AUTHORITY        ,CA LEP                        ,30322,APPRENTICE GRANT              ,8440,FEE EXPENSES                  ,04/10/2016,4088829,ERS INVOICE143773        ,"1,120.00",FLAWLESS HAIRDRESSING STUDIO            ,637472,,HAIRDRESSERS - UNISEX         
SCR COMBINED AUTHORITY        ,CA LEP                        ,30322,APPRENTICE GRANT              ,8440,FEE EXPENSES                  ,04/10/2016,4088830,ERS INVOICE143774        ,"1,120.00",WICKED HAIR AND BEAUTY                  ,637712,,BEAUTY SALONS                 
SCR COMBINED AUTHORITY        ,CA LEP                        ,30322,APPRENTICE GRANT              ,8440,FEE EXPENSES                  ,04/10/2016,4088831,ERS INVOICE143775        ,"1,500.00",1ST SAFARI DAY NURSERIES LTD            ,434494,,NURSERIES & CRECHES           
SCR COMBINED AUTHORITY        ,CA LEP                        ,30322,APPRENTICE GRANT              ,8440,FEE EXPENSES                  ,04/10/2016,4088832,ERS INVOICE143776        ,"1,420.00",RH PLASTERING CONTRACTORS LTD           ,636189,,"PLASTERERS, SCREEDERS & DRY LI"
SCR COMBINED AUTHORITY        ,CA LEP                        ,30322,APPRENTICE GRANT              ,8440,FEE EXPENSES                  ,04/10/2016,4088833,ERS INVOICE143777        ,"1,500.00",WIZZ KIDS                               ,311930,,PLAYGROUPS & PRE-SCHOOL EDUCAT
SCR COMBINED AUTHORITY        ,CA LEP                        ,30322,APPRENTICE GRANT              ,8440,FEE EXPENSES                  ,04/10/2016,4088834,ERS INVOICE143778        ,"1,120.00",ENVIRONMENTAL MONITORING SOLUTIONS LIMIT,595913,,ENVIRONMENTAL CONSULTANTS     
SCR COMBINED AUTHORITY        ,CA LEP                        ,30322,APPRENTICE GRANT              ,8440,FEE EXPENSES                  ,04/10/2016,4088835,ERS INVOICE143779        ,"1,120.00",BRODER METALS GROUP LTD                 ,567071,,STEEL STOCKHOLDERS            
SCR COMBINED AUTHORITY        ,CA LEP                        ,30322,APPRENTICE GRANT              ,8440,FEE EXPENSES                  ,04/10/2016,4088836,ERS INVOICE143780        ,"1,420.00",LORD & DOWNING LTD                      ,636041,,"PLASTERERS, SCREEDERS & DRY LI"
SHEFFIELD CITY COUNCIL        ,CYPF                          ,33142,CITY DEAL - FRAMEWORKS        ,9120,OTHER AGENCIES                ,04/10/2016,4088837,ERS INVOICE143781        ,"3,908.06",THE STUDIO ACADEMY LTD                  ,618670,,TRAINING SERVICES             
SHEFFIELD CITY COUNCIL        ,CYPF                          ,33142,CITY DEAL - FRAMEWORKS        ,9120,OTHER AGENCIES                ,04/10/2016,4088838,ERS INVOICE143782        ,675.85,WAYS2WORK (DONCASTER) LIMITED           ,633302,,TRAINING SERVICES             
SHEFFIELD CITY COUNCIL        ,CYPF                          ,33142,CITY DEAL - FRAMEWORKS        ,9120,OTHER AGENCIES                ,04/10/2016,4088839,ERS INVOICE143783        ,"1,745.94",XTOL DEVELOPMENT SERVICES LTD           ,589597,,TRAINING CENTRES              
SHEFFIELD CITY COUNCIL        ,CYPF                          ,33142,CITY DEAL - FRAMEWORKS        ,9120,OTHER AGENCIES                ,04/10/2016,4088840,ERS INVOICE143784        ,"6,771.66",YORKSHIRE FITNESS AND LEISURE LTD       ,621711,,"HEALTH CLUBS, GYMNASIUMS & BEA"
SHEFFIELD CITY COUNCIL        ,CYPF                          ,33142,CITY DEAL - FRAMEWORKS        ,9120,OTHER AGENCIES                ,04/10/2016,4088841,ERS INVOICE143785        ,"6,160.70",ENGAGE TRAINING & DEVELOPMENT LTD       ,595727,,TRAINING SERVICES             
SHEFFIELD CITY COUNCIL        ,CYPF                          ,33007,VSP DELIVER                   ,9120,OTHER AGENCIES                ,04/10/2016,4088842,ERS INVOICE143786        ,"2,021.00",A MIND APART THEATRE COMPANY LTD        ,508180,,DRAMA SCHOOLS                 
SHEFFIELD CITY COUNCIL        ,CYPF                          ,33007,VSP DELIVER                   ,9120,OTHER AGENCIES                ,04/10/2016,4088843,ERS INVOICE143787        ,"1,175.50",SHEFFIELD INDUSTRIAL MUSEUMS TRUST LTD  ,307272,,MUSEUMS                       
SHEFFIELD CITY COUNCIL        ,CYPF                          ,33007,VSP DELIVER                   ,9120,OTHER AGENCIES                ,04/10/2016,4088844,ERS INVOICE143788        ,"3,852.50",DONCASTER ROTH & DIST (MOTOR TRADES)GTA ,204434,,TRAINING CENTRES              
SHEFFIELD CITY COUNCIL        ,CYPF                          ,33007,VSP DELIVER                   ,9120,OTHER AGENCIES                ,04/10/2016,4088845,ERS INVOICE143789        ,"1,435.50",HEELEY CITY FARM                        ,301277,,CHARITIES & VOLUNTARY ORGANISA
SHEFFIELD CITY COUNCIL        ,CYPF                          ,33007,VSP DELIVER                   ,9120,OTHER AGENCIES                ,04/10/2016,4088846,ERS INVOICE143790        ,"1,734.00",HEELEY DEVELOPMENT TRUST                ,363241,,CHARITIES & VOLUNTARY ORGANISA
SHEFFIELD CITY COUNCIL        ,CYPF                          ,33007,VSP DELIVER                   ,9120,OTHER AGENCIES                ,04/10/2016,4088847,ERS INVOICE143791        ,"3,053.00",IN2CHANGE SOUTH YORKS LTD               ,558793,,CHARITIES & VOLUNTARY ORGANISA
SHEFFIELD CITY COUNCIL        ,CYPF                          ,33007,VSP DELIVER                   ,9120,OTHER AGENCIES                ,04/10/2016,4088848,ERS INVOICE143792        ,344.00,THE MUSICAL WORKS                       ,368576,,COMMUNITY PROJECTS            
SHEFFIELD CITY COUNCIL        ,CYPF                          ,33007,VSP DELIVER                   ,9120,OTHER AGENCIES                ,04/10/2016,4088849,ERS INVOICE143793        ,"1,261.50",NACRO                                   ,297575,,CHARITIES & VOLUNTARY ORGANISA
SHEFFIELD CITY COUNCIL        ,CYPF                          ,33007,VSP DELIVER                   ,9120,OTHER AGENCIES                ,04/10/2016,4088850,ERS INVOICE143794        ,"1,849.00",ONBOARD SHEFFIELD SKATEPARK             ,598407,Unclassified Non Trade,OUT OF SCOPE FOR SIC MONITORIN
SHEFFIELD CITY COUNCIL        ,CYPF                          ,33007,VSP DELIVER                   ,9120,OTHER AGENCIES                ,04/10/2016,4088851,ERS INVOICE143795        ,268.00,WHITE ROSE SCHOOLS LTD                  ,334662,,BEAUTY SCHOOLS                
SHEFFIELD CITY COUNCIL        ,CYPF                          ,33007,VSP DELIVER                   ,9120,OTHER AGENCIES                ,04/10/2016,4088852,ERS INVOICE143796        ,"3,096.00",SHARKS BASKETBALL LTD                   ,540033,,SPORTS CLUBS & ASSOCIATIONS   
SHEFFIELD CITY COUNCIL        ,CYPF                          ,33007,VSP DELIVER                   ,9120,OTHER AGENCIES                ,04/10/2016,4088853,ERS INVOICE143797        ,"2,752.00",SHEFFIELD WEDNESDAY ACADEMY             ,461589,,SPORTS CLUBS & ASSOCIATIONS   
SHEFFIELD CITY COUNCIL        ,CYPF                          ,33007,VSP DELIVER                   ,9120,OTHER AGENCIES                ,04/10/2016,4088854,ERS INVOICE143798        ,"3,483.00",BOYS AND GIRLS CLUBS OF SOUTH YORKSHIRE ,431967,,YOUTH ORGANISATIONS & CENTRES 
SHEFFIELD CITY COUNCIL        ,CYPF                          ,33007,VSP DELIVER                   ,9120,OTHER AGENCIES                ,04/10/2016,4088855,ERS INVOICE143799        ,"1,131.00",SYREETA MAKE UP ACADEMY                 ,613037,,BEAUTY SCHOOLS                
SHEFFIELD CITY COUNCIL        ,CYPF                          ,33007,VSP DELIVER                   ,9120,OTHER AGENCIES                ,04/10/2016,4088856,ERS INVOICE143800        ,"2,541.00",SYTG LTD                                ,306547,,TRAINING CENTRES              
SHEFFIELD CITY COUNCIL        ,CYPF                          ,33007,VSP DELIVER                   ,9120,OTHER AGENCIES                ,04/10/2016,4088857,ERS INVOICE143801        ,"1,703.50",WHIRLOW HALL FARM TRUST LTD             ,318019,,CHARITIES & VOLUNTARY ORGANISA
SHEFFIELD CITY COUNCIL        ,CYPF                          ,32190,C & F CITYWIDE CONTRACTS      ,8440,FEE EXPENSES                  ,04/10/2016,4072849,282,"61,875.00",REDACTED PERSONAL DATA,503588,,HOME CARE SERVICES            
SHEFFIELD CITY COUNCIL        ,PLACE                         ,21314,CCRAC RADIOS                  ,8010,EQUIPMENT PURCHASE AND REPAIR ,04/10/2016,4075700,209886,753.00,D C R S                                 ,310853,,RADIO COMMUNICATION EQUIPMENT 
SHEFFIELD CITY COUNCIL        ,PLACE                         ,23080,PORTFOLIO LEADERSHIP          ,8460,CONSULTANTS FEES              ,04/10/2016,4075879,HWI10560                 ,"2,500.00",SHEFFIELD HALLAM UNIVERSITY ENTERPRISES ,300693,,UNIVERSITIES & MEDICAL SCHOOLS
SHEFFIELD CITY COUNCIL        ,CYPF                          ,32183,GOVERNOR SUPPORT TEAM         ,8270,SUBSCRIPTIONS                 ,04/10/2016,4077656,44017,288.00,NATIONAL GOVERNORS ASSOCIATION          ,336961,,CHARITIES & VOLUNTARY ORGANISA
SHEFFIELD CITY COUNCIL        ,PLACE                         ,21314,CCRAC RADIOS                  ,8010,EQUIPMENT PURCHASE AND REPAIR ,04/10/2016,4077929,210231,268.00,D C R S                                 ,310853,,RADIO COMMUNICATION EQUIPMENT 
SHEFFIELD CITY COUNCIL        ,COMMUNITIES                   ,49466,REGISTRATION & REGULATION     ,8350,MISCELLANEOUS EXPENSES        ,04/10/2016,4080461,158599,500.00,BANKHOUSE CHAMBERS                      ,569284,,BARRISTERS                    
SHEFFIELD CITY COUNCIL        ,CYPF                          ,39101,EAST SERVICE AREA CSS         ,6030,REPAIRS AND MTCE - RESPONSIVE ,04/10/2016,4081214,INV077940                ,672.00,CONSTANT SECURITY SERVICES LIMITED      ,501937,,SECURITY SERVICES             
SHEFFIELD CITY COUNCIL        ,CYPF                          ,32190,C & F CITYWIDE CONTRACTS      ,9120,OTHER AGENCIES                ,04/10/2016,4081227,233993,"10,500.00",SHELTER                                 ,361160,,CHARITIES & VOLUNTARY ORGANISA
SHEFFIELD CITY COUNCIL        ,COMMUNITIES                   ,46084,VEHICLE MANAGEMENT            ,7020,VEHICLE FUEL COSTS            ,04/10/2016,4081278,E2007250138              ,413.89,ALLSTAR BUSINESS SOLUTIONS LTD          ,444333,,CAR & TRUCK LEASING & CONTRACT
SHEFFIELD CITY COUNCIL        ,CYPF                          ,39444,POLICY & SERVICE IMPROVEMENT  ,8440,FEE EXPENSES                  ,04/10/2016,4081815,SSS0816                  ,"1,875.00",JULIE ARCHER TRAINER AND CONSULTANT LTD ,633257,,TRAINING CONSULTANTS          
SHEFFIELD CITY COUNCIL        ,COMMUNITIES                   ,46087,REABLEMENT MANAGEMENT         ,8010,EQUIPMENT PURCHASE AND REPAIR ,04/10/2016,4081839,928184041,740.34,ARCO LTD                                ,203022,,SAFETY EQUIPMENT & CLOTHING   
SHEFFIELD CITY COUNCIL        ,RESOURCES                     ,15232,VACANT PROPERTIES             ,8350,MISCELLANEOUS EXPENSES        ,04/10/2016,4082407,4234,"15,000.00",SHARROW COMMUNITY FORUM                 ,318379,,COMMUNITY PROJECTS            
SHEFFIELD CITY COUNCIL        ,CYPF                          ,33062,FEML AUG 15 - JUL 16          ,8010,EQUIPMENT PURCHASE AND REPAIR ,04/10/2016,4082878,26074,"2,645.60",BUZZBASE LTD                            ,460082,,EDUCATIONAL EQUIPMENT & SUPPLI
SHEFFIELD CITY COUNCIL        ,PLACE                         ,25076,SHEFFIELD HOMES TREES         ,6370,GROUNDS MTCE AND ARBORICULTURE,04/10/2016,4082987,1939,550.00,DRONFIELD TREE SERVICES LTD             ,405525,,TREE WORK & FORESTRY SERVICES 
SHEFFIELD CITY COUNCIL        ,CYPF                          ,38009,POST 16 TRAVEL PASSES         ,9430,16+ TRAVEL DISCRETIONARY      ,04/10/2016,4083014,SL0071236                ,"8,445.60",SYPTE                                   ,208757,,BUS & COACH OPERATORS & STATIO
SHEFFIELD CITY COUNCIL        ,COMMUNITIES                   ,49153,OTHER REPAIRS & FEES          ,6030,BURGLAR ALARM REPAIRS         ,04/10/2016,4083076,VSL1053                  ,"2,590.50",VIGIL SECURITY SYSTEMS LTD              ,440317,,BURGLAR & INTRUDER ALARM SYSTE
SHEFFIELD CITY COUNCIL        ,COMMUNITIES                   ,49153,OTHER REPAIRS & FEES          ,6030,BURGLAR ALARM REPAIRS         ,04/10/2016,4083077,VSL1052                  ,"1,977.80",VIGIL SECURITY SYSTEMS LTD              ,440317,,BURGLAR & INTRUDER ALARM SYSTE
SHEFFIELD CITY COUNCIL        ,PLACE                         ,25072,WOODLANDS                     ,6370,GROUNDS MTCE AND ARBORICULTURE,04/10/2016,4083500,394,500.00,HN WOODLAND & ESTATE MANAGEMENT         ,317072,,TREE WORK & FORESTRY SERVICES 
SHEFFIELD CITY COUNCIL        ,PLACE                         ,25072,WOODLANDS                     ,6370,GROUNDS MTCE AND ARBORICULTURE,04/10/2016,4083504,392,300.00,HN WOODLAND & ESTATE MANAGEMENT         ,317072,,TREE WORK & FORESTRY SERVICES 
SHEFFIELD CITY COUNCIL        ,PLACE                         ,25072,WOODLANDS                     ,6370,GROUNDS MTCE AND ARBORICULTURE,04/10/2016,4083505,391,680.00,HN WOODLAND & ESTATE MANAGEMENT         ,317072,,TREE WORK & FORESTRY SERVICES 
SHEFFIELD CITY COUNCIL        ,PLACE                         ,23037,MEDICO LEGAL CENTRE           ,8010,EQUIPMENT PURCHASE AND REPAIR ,04/10/2016,4083548,CD261516                 ,572.80,SWANN-MORTON LIMITED                    ,315216,,MEDICAL EQUIPMENT MNFRS       
SHEFFIELD CITY COUNCIL        ,PLACE                         ,21314,CCRAC RADIOS                  ,8010,EQUIPMENT PURCHASE AND REPAIR ,04/10/2016,4083616,210345,268.00,D C R S                                 ,310853,,RADIO COMMUNICATION EQUIPMENT 
SHEFFIELD CITY COUNCIL        ,COMMUNITIES                   ,49352,AREA NORTH                    ,8560,HOUSING AREA CONSULT ALLOWANCE,04/10/2016,4083624,FOR9665                  ,555.00,FORWARD ENVIRONMENTAL LIMITED           ,440387,,PEST & VERMIN CONTROL         
SHEFFIELD CITY COUNCIL        ,COMMUNITIES                   ,49352,AREA NORTH                    ,8560,HOUSING AREA CONSULT ALLOWANCE,04/10/2016,4083627,FOR9664                  ,540.00,FORWARD ENVIRONMENTAL LIMITED           ,440387,,PEST & VERMIN CONTROL         
SHEFFIELD CITY COUNCIL        ,PLACE                         ,22077,AFFORDABLE HOUSING            ,8440,FEE EXPENSES                  ,04/10/2016,4084037,2.5E+13,851.50,VALUATION OFFICE AGENCY                 ,511469,,CENTRAL GOVERNMENT            
SHEFFIELD CITY COUNCIL        ,COMMUNITIES                   ,46091,APS - MANOR CENTRE            ,8030,EQUIPMENT MAINTENANCE CONTRACT,04/10/2016,4084197,INV077954                ,"2,220.66",CONSTANT SECURITY SERVICES LIMITED      ,571090,,SECURITY SERVICES             
SHEFFIELD CITY COUNCIL        ,CYPF                          ,32048,SCHOOL SPORTS                 ,6280,HIRE OF PREMISES              ,04/10/2016,4084224,SI-C058-100169330        ,"1,084.20",PLACES FOR PEOPLE LEISURE LTD           ,620946,,LEISURE & RECREATION CENTRES  
SHEFFIELD CITY COUNCIL        ,CYPF                          ,32048,SCHOOL SPORTS                 ,6280,HIRE OF PREMISES              ,04/10/2016,4084225,729,369.00,MYLNHURST SPORTS EDUCATION AND LEISURE  ,518580,,SCHOOLS - LOCAL AUTHORITY     
SHEFFIELD CITY COUNCIL        ,CYPF                          ,39513,CITY WIDE SEN                 ,9050,OTHER LOCAL AUTHORITIES       ,04/10/2016,4084244,GS00129                  ,"2,456.34",GREENACRE SCHOOL                        ,565968,,SCHOOLS - LOCAL AUTHORITY     
SHEFFIELD CITY COUNCIL        ,CYPF                          ,39515,SEN ASSESSMENT & PLACEMENT TEA,8390,STATIONERY                    ,04/10/2016,4084299,92365,380.35,APPLETREE INDUSTRY LTD T/A RAILEX       ,445430,,STATIONERY MNFRS              
SHEFFIELD CITY COUNCIL        ,CYPF                          ,39282,CARE PROCEEDINGS (LEGAL FEES) ,8470,LEGAL FEES                    ,04/10/2016,4084554,999308,"1,550.00",JUSTINE COLE                            ,594124,,BARRISTERS                    
SHEFFIELD CITY COUNCIL        ,CYPF                          ,39282,CARE PROCEEDINGS (LEGAL FEES) ,8470,LEGAL FEES                    ,04/10/2016,4084556,1013192,600.00,JUSTINE COLE                            ,594124,,BARRISTERS                    
SHEFFIELD CITY COUNCIL        ,CYPF                          ,39282,CARE PROCEEDINGS (LEGAL FEES) ,8470,LEGAL FEES                    ,04/10/2016,4084557,1014148,600.00,REDACTED PERSONAL DATA,504926,,BARRISTERS                    
SHEFFIELD CITY COUNCIL        ,CYPF                          ,39282,CARE PROCEEDINGS (LEGAL FEES) ,8470,LEGAL FEES                    ,04/10/2016,4084558,1010102,600.00,REDACTED PERSONAL DATA,504926,,BARRISTERS                    
SHEFFIELD CITY COUNCIL        ,CYPF                          ,39282,CARE PROCEEDINGS (LEGAL FEES) ,8470,LEGAL FEES                    ,04/10/2016,4084561,988300,600.00,REDACTED PERSONAL DATA,487888,,BARRISTERS                    
SHEFFIELD CITY COUNCIL        ,CYPF                          ,39282,CARE PROCEEDINGS (LEGAL FEES) ,8470,LEGAL FEES                    ,04/10/2016,4084562,1011394,600.00,FIONA WALKER                            ,629808,,BARRISTERS                    
SHEFFIELD CITY COUNCIL        ,CYPF                          ,39282,CARE PROCEEDINGS (LEGAL FEES) ,8470,LEGAL FEES                    ,04/10/2016,4084565,997583,600.00,LOUISE STANBURY                         ,616298,,BARRISTERS                    
SHEFFIELD CITY COUNCIL        ,CYPF                          ,39282,CARE PROCEEDINGS (LEGAL FEES) ,8470,LEGAL FEES                    ,04/10/2016,4084566,986600,600.00,LOUISE STANBURY                         ,616298,,BARRISTERS                    
SHEFFIELD CITY COUNCIL        ,CYPF                          ,39282,CARE PROCEEDINGS (LEGAL FEES) ,8470,LEGAL FEES                    ,04/10/2016,4084568,1011178,600.00,REDACTED PERSONAL DATA,465151,,BARRISTERS                    
SHEFFIELD CITY COUNCIL        ,CYPF                          ,39282,CARE PROCEEDINGS (LEGAL FEES) ,8470,LEGAL FEES                    ,04/10/2016,4084571,1010875,950.00,REDACTED PERSONAL DATA,487888,,BARRISTERS                    
SHEFFIELD CITY COUNCIL        ,COMMUNITIES                   ,49190,CITY WIDE ALARM - GENERAL     ,6030,REPAIRS TO TENANTED PROPERTIES,04/10/2016,4084645,INV/50301430             ,262.20,TUNSTALL HEALTHCARE (UK) LTD            ,209178,,TELECOMMUNICATIONS EQUIPMENT &
SHEFFIELD CITY COUNCIL        ,CYPF                          ,39515,SEN ASSESSMENT & PLACEMENT TEA,8440,FEE EXPENSES                  ,04/10/2016,4084663,300816-01                ,395.00,COLLIS MEDIATION LTD                    ,620707,,MEDIATION                     
SHEFFIELD CITY COUNCIL        ,CYPF                          ,39515,SEN ASSESSMENT & PLACEMENT TEA,8440,FEE EXPENSES                  ,04/10/2016,4084668,260816-01                ,395.00,COLLIS MEDIATION LTD                    ,620707,,MEDIATION                     
SHEFFIELD CITY COUNCIL        ,CYPF                          ,39282,CARE PROCEEDINGS (LEGAL FEES) ,8470,LEGAL FEES                    ,04/10/2016,4084669,1014560,600.00,JUSTINE COLE                            ,594124,,BARRISTERS                    
SHEFFIELD CITY COUNCIL        ,CYPF                          ,39515,SEN ASSESSMENT & PLACEMENT TEA,8440,FEE EXPENSES                  ,04/10/2016,4084670,240816-01                ,408.50,COLLIS MEDIATION LTD                    ,620707,,MEDIATION                     
SHEFFIELD CITY COUNCIL        ,CYPF                          ,39512,SEN TRANSPORT                 ,7140,PUBLIC TRANSPORT COSTS        ,04/10/2016,4084695,114192856,"1,455.30",ROTHERHAM MBC                           ,329721,,LOCAL GOVERNMENT              
SHEFFIELD CITY COUNCIL        ,COMMUNITIES                   ,46084,VEHICLE MANAGEMENT            ,7020,VEHICLE FUEL COSTS            ,04/10/2016,4084954,E2006679087              ,484.41,ALLSTAR BUSINESS SOLUTIONS LTD          ,444333,,CAR & TRUCK LEASING & CONTRACT
SHEFFIELD CITY COUNCIL        ,PLACE                         ,21302,PEACE GARDENS                 ,8060,MATERIALS AND SUPPLIES GENERAL,04/10/2016,4084956,"106,050",389.40,CODNOR HORTICULTURAL SUPPLIES LTD       ,320732,,HORTICULTURAL EQUIPMENT & SUPP
SHEFFIELD CITY COUNCIL        ,CYPF                          ,39444,POLICY & SERVICE IMPROVEMENT  ,8440,FEE EXPENSES                  ,04/10/2016,4085812,212,850.00,DO THE WRITE THING LTD                  ,508899,,CHARITIES & VOLUNTARY ORGANISA
SHEFFIELD CITY COUNCIL        ,RESOURCES                     ,12004,FINANCE LEADERSHIP TEAM       ,5750,TRAINING EXPENDITURE          ,04/10/2016,4085864,5190482,"1,772.00",CIPFA                                   ,360709,,INSTITUTES - PROFESSIONAL     
SHEFFIELD CITY COUNCIL        ,RESOURCES                     ,12004,FINANCE LEADERSHIP TEAM       ,5750,TRAINING EXPENDITURE          ,04/10/2016,4085865,5190619,"1,944.75",CIPFA                                   ,360709,,INSTITUTES - PROFESSIONAL     
SHEFFIELD CITY COUNCIL        ,RESOURCES                     ,12004,FINANCE LEADERSHIP TEAM       ,5750,TRAINING EXPENDITURE          ,04/10/2016,4085866,5190638,"1,944.75",CIPFA                                   ,360709,,INSTITUTES - PROFESSIONAL     
SHEFFIELD CITY COUNCIL        ,RESOURCES                     ,12004,FINANCE LEADERSHIP TEAM       ,5750,TRAINING EXPENDITURE          ,04/10/2016,4085867,5190673,"1,944.75",CIPFA                                   ,360709,,INSTITUTES - PROFESSIONAL     
SHEFFIELD CITY COUNCIL        ,RESOURCES                     ,12004,FINANCE LEADERSHIP TEAM       ,5750,TRAINING EXPENDITURE          ,04/10/2016,4085868,5190675,"1,944.75",CIPFA                                   ,360709,,INSTITUTES - PROFESSIONAL     
SHEFFIELD CITY COUNCIL        ,RESOURCES                     ,12004,FINANCE LEADERSHIP TEAM       ,5750,TRAINING EXPENDITURE          ,04/10/2016,4085869,5190642,"2,010.00",CIPFA                                   ,360709,,INSTITUTES - PROFESSIONAL     
SHEFFIELD CITY COUNCIL        ,RESOURCES                     ,12004,FINANCE LEADERSHIP TEAM       ,5750,TRAINING EXPENDITURE          ,04/10/2016,4085870,5190496,"1,772.00",CIPFA                                   ,360709,,INSTITUTES - PROFESSIONAL     
SHEFFIELD CITY COUNCIL        ,RESOURCES                     ,12004,FINANCE LEADERSHIP TEAM       ,5750,TRAINING EXPENDITURE          ,04/10/2016,4085871,5190663,"1,944.75",CIPFA                                   ,360709,,INSTITUTES - PROFESSIONAL     
SHEFFIELD CITY COUNCIL        ,RESOURCES                     ,12004,FINANCE LEADERSHIP TEAM       ,5750,TRAINING EXPENDITURE          ,04/10/2016,4085872,5190705,"1,944.75",CIPFA                                   ,360709,,INSTITUTES - PROFESSIONAL     
SHEFFIELD CITY COUNCIL        ,RESOURCES                     ,12004,FINANCE LEADERSHIP TEAM       ,5750,TRAINING EXPENDITURE          ,04/10/2016,4085873,5190495,"1,772.00",CIPFA                                   ,360709,,INSTITUTES - PROFESSIONAL     
SHEFFIELD CITY COUNCIL        ,RESOURCES                     ,12004,FINANCE LEADERSHIP TEAM       ,5750,TRAINING EXPENDITURE          ,04/10/2016,4085874,5190515,"1,772.00",CIPFA                                   ,360709,,INSTITUTES - PROFESSIONAL     
SHEFFIELD CITY COUNCIL        ,PLACE                         ,21307,WINTER GARDEN                 ,6030,REPAIRS AND MTCE - RESPONSIVE ,04/10/2016,4085876,16C7085                  ,261.00,CLEANQUEST                              ,205780,,WINDOW CLEANERS               
SHEFFIELD CITY COUNCIL        ,CYPF                          ,32190,C & F CITYWIDE CONTRACTS      ,9120,OTHER AGENCIES                ,04/10/2016,4085886,20371,"3,500.00",FAMILY ACTION                           ,469656,,COUNSELLING & ADVICE SERVICES 
SHEFFIELD CITY COUNCIL        ,PLACE                         ,21308,MILLENNIUM SQUARE             ,6030,REPAIRS AND MTCE - RESPONSIVE ,04/10/2016,4085903,I58762                   ,450.00,LIFTING GEAR PRODUCTS ENG LTD           ,206415,,LIFTING EQUIPMENT             
SHEFFIELD CITY COUNCIL        ,RESOURCES                     ,12004,FINANCE LEADERSHIP TEAM       ,5750,TRAINING EXPENDITURE          ,04/10/2016,4085932,5190487,"1,772.00",CIPFA                                   ,360709,,INSTITUTES - PROFESSIONAL     
SHEFFIELD CITY COUNCIL        ,PLACE                         ,93410,ANGRAM BANK PARK IMPROVEMENTS ,1161,NC&A MAIN CONTRACT            ,04/10/2016,4085933,477,"34,750.00",VICA SL LTD                             ,634001,,MANUFACTURERS                 
SHEFFIELD CITY COUNCIL        ,PLACE                         ,21351,GROUNDS MAINTENANCE           ,8010,EQUIPMENT PURCHASE AND REPAIR ,04/10/2016,4085939,1/524661                 ,586.98,BUILDERS CENTRE (SHEFFIELD) LTD         ,203585,,BUILDERS' MERCHANTS           
SHEFFIELD CITY COUNCIL        ,COMMUNITIES                   ,49213,GARDEN MAINTENANCE SCHEME     ,8010,EQUIPMENT PURCHASE AND REPAIR ,04/10/2016,4085950,90549204,749.00,AMEY LG LTD                             ,578587,,ROAD CONSTRUCTION CONTRACTORS 
SHEFFIELD CITY COUNCIL        ,CYPF                          ,39282,CARE PROCEEDINGS (LEGAL FEES) ,8470,LEGAL FEES                    ,04/10/2016,4085959,INV-2671                 ,405.00,FORESIGHT CLINICAL SERVICES LTD         ,638279,,LEGAL SERVICES                
SHEFFIELD CITY COUNCIL        ,CYPF                          ,39513,CITY WIDE SEN                 ,9050,OTHER LOCAL AUTHORITIES       ,04/10/2016,4086001,WHSI42                   ,"6,701.35",SHAW EDUCATION TRUST                    ,633931,,SCHOOLS & COLLEGES - GRANT MAI
SHEFFIELD CITY COUNCIL        ,COMMUNITIES                   ,49006,SYRIAN VPR Y&H PARTNERS SCHEME,6210,RENTS                         ,04/10/2016,4086083,9,410.40,ARCHES HOUSING LIMITED                  ,366877,,"HOUSING ASSOCIATIONS, SOCIETIE"
SHEFFIELD CITY COUNCIL        ,COMMUNITIES                   ,49010,GATEWAY PP 16-20              ,6210,RENTS                         ,04/10/2016,4086084,10,550.03,ARCHES HOUSING LIMITED                  ,366877,,"HOUSING ASSOCIATIONS, SOCIETIE"
SHEFFIELD CITY COUNCIL        ,CYPF                          ,38218,ENHANCED SERVICE - NEXPLANON  ,9030,HEALTH                        ,04/10/2016,4086092,C88096_0002              ,855.00,HACKENTHORPE MEDICAL CENTRE             ,581067,,PUBLIC HEALTH SUPPLIERS       
SHEFFIELD CITY COUNCIL        ,CYPF                          ,38218,ENHANCED SERVICE - NEXPLANON  ,9030,HEALTH                        ,04/10/2016,4086093,C88096_0008              ,300.00,HACKENTHORPE MEDICAL CENTRE             ,581067,,PUBLIC HEALTH SUPPLIERS       
SHEFFIELD CITY COUNCIL        ,CYPF                          ,38219,ENHANCED SERVICE - IUCDS      ,9030,HEALTH                        ,04/10/2016,4086093,C88096_0008              ,305.00,HACKENTHORPE MEDICAL CENTRE             ,581067,,PUBLIC HEALTH SUPPLIERS       
SHEFFIELD CITY COUNCIL        ,COMMUNITIES                   ,49350,AREA CENTAL                   ,6030,REPAIRS AND MTCE - RESPONSIVE ,04/10/2016,4086094,18884,"2,475.00",RICHMOND ENVIRONMENTAL SERVICES         ,331472,,DRAIN & SEWER CLEARANCE       
SHEFFIELD CITY COUNCIL        ,CYPF                          ,33064,PROVIDER CONTRACT AUG15-JUL16 ,9120,OTHER AGENCIES                ,04/10/2016,4086095,1585,310.00,MANOR TRAINING & RESOURCE CENTRE LTD    ,455921,,CHARITIES & VOLUNTARY ORGANISA
SHEFFIELD CITY COUNCIL        ,COMMUNITIES                   ,49364,SUPPORTED HOUSING             ,8050,ELECTRICAL GOODS              ,04/10/2016,4086099,23403,"3,625.00",INSTORE DIRECT LTD                      ,634006,,FURNITURE - WHOLESALE         
SHEFFIELD CITY COUNCIL        ,PLACE                         ,94050,SHEFFIELD RETAIL QUARTER 2    ,1194,OTHER FEES                    ,04/10/2016,4086100,342,750.00,GBS                                     ,638290,,BUILDERS                      
SHEFFIELD CITY COUNCIL        ,COMMUNITIES                   ,49006,SYRIAN VPR Y&H PARTNERS SCHEME,6210,RENTS                         ,04/10/2016,4086109,08-Sep-16,551.54,EGPROPERTY                              ,582371,,ACCOMMODATION AGENCIES - RESID
SHEFFIELD CITY COUNCIL        ,CYPF                          ,39567,YOUTH JUSTICE SERVICE         ,9120,OTHER AGENCIES                ,04/10/2016,4086110,88,"42,750.00",REMEDI                                  ,329612,,CHARITIES & VOLUNTARY ORGANISA
SHEFFIELD CITY COUNCIL        ,CYPF                          ,39567,YOUTH JUSTICE SERVICE         ,9120,OTHER AGENCIES                ,04/10/2016,4086111,87,"47,500.00",REMEDI                                  ,329612,,CHARITIES & VOLUNTARY ORGANISA
SHEFFIELD CITY COUNCIL        ,CYPF                          ,39282,CARE PROCEEDINGS (LEGAL FEES) ,8470,LEGAL FEES                    ,04/10/2016,4086238,1010199,600.00,REDACTED PERSONAL DATA,504926,,BARRISTERS                    
SHEFFIELD CITY COUNCIL        ,CYPF                          ,39282,CARE PROCEEDINGS (LEGAL FEES) ,8470,LEGAL FEES                    ,04/10/2016,4086239,1014560,600.00,FIONA WALKER                            ,629808,,BARRISTERS                    
SHEFFIELD CITY COUNCIL        ,CYPF                          ,39282,CARE PROCEEDINGS (LEGAL FEES) ,8470,LEGAL FEES                    ,04/10/2016,4086240,1014282,600.00,REDACTED PERSONAL DATA,544033,,BARRISTERS                    
SHEFFIELD CITY COUNCIL        ,CYPF                          ,39282,CARE PROCEEDINGS (LEGAL FEES) ,8470,LEGAL FEES                    ,04/10/2016,4086330,997105,600.00,REDACTED PERSONAL DATA,465151,,BARRISTERS                    
SHEFFIELD CITY COUNCIL        ,CYPF                          ,39282,CARE PROCEEDINGS (LEGAL FEES) ,8470,LEGAL FEES                    ,04/10/2016,4086470,126812,"1,385.30",CARTER BROWN                            ,417243,,PSYCHOLOGISTS                 
SHEFFIELD CITY COUNCIL        ,RESOURCES                     ,19345,CYPD RISK MANAGEMENT          ,8350,MISCELLANEOUS EXPENSES        ,04/10/2016,4086479,PSI-QPA-83426            ,250.00,Q-PARK UK LTD                           ,490521,,CAR PARKING & GARAGING        
SHEFFIELD CITY COUNCIL        ,RESOURCES                     ,19345,CYPD RISK MANAGEMENT          ,8060,MATERIALS AND SUPPLIES GENERAL,04/10/2016,4086584,961686,485.00,WATERSTONES                             ,321466,,BOOKSELLERS                   
SHEFFIELD CITY COUNCIL        ,RESOURCES                     ,15216,STANIFORTH ROAD DEPOT         ,8540,SECURITY SERVICES             ,04/10/2016,4086596,INV077399                ,"5,668.65",CONSTANT SECURITY SERVICES LIMITED      ,501937,,SECURITY SERVICES             
SHEFFIELD CITY COUNCIL        ,CYPF                          ,39516,DISABLED ACCESS ADAPTATIONS   ,8010,EQUIPMENT PURCHASE AND REPAIR ,04/10/2016,4086623,IEU0007281               ,"2,005.00",HUMANWARE                               ,469073,,DISABILITY EQUIPMENT - MNFRS &
SHEFFIELD CITY COUNCIL        ,CYPF                          ,38059,EY/MAST PREMISES              ,6280,HIRE OF PREMISES              ,04/10/2016,4086669,S131                     ,330.00,HANDSWORTH COMMUNITY NURSERY            ,325463,,NURSERIES & CRECHES           
SHEFFIELD CITY COUNCIL        ,CYPF                          ,38221,C & YP 5-19                   ,9030,HEALTH                        ,04/10/2016,4086673,1017117988,614.20,NHS SUPPLY CHAIN                        ,587523,,PUBLIC HEALTH SUPPLIERS       
SHEFFIELD CITY COUNCIL        ,CYPF                          ,33064,PROVIDER CONTRACT AUG15-JUL16 ,9120,OTHER AGENCIES                ,04/10/2016,4086674,1617_100                 ,625.00,REACH SOUTH SHEFFIELD                   ,394371,,CHARITIES & VOLUNTARY ORGANISA
SHEFFIELD CITY COUNCIL        ,CYPF                          ,33064,PROVIDER CONTRACT AUG15-JUL16 ,9120,OTHER AGENCIES                ,04/10/2016,4086675,1617_78                  ,"1,033.00",REACH SOUTH SHEFFIELD                   ,394371,,CHARITIES & VOLUNTARY ORGANISA
SHEFFIELD CITY COUNCIL        ,CYPF                          ,33064,PROVIDER CONTRACT AUG15-JUL16 ,9120,OTHER AGENCIES                ,04/10/2016,4086676,1617_101                 ,895.00,REACH SOUTH SHEFFIELD                   ,394371,,CHARITIES & VOLUNTARY ORGANISA
SHEFFIELD CITY COUNCIL        ,CYPF                          ,33064,PROVIDER CONTRACT AUG15-JUL16 ,9120,OTHER AGENCIES                ,04/10/2016,4086687,1617_102                 ,589.00,REACH SOUTH SHEFFIELD                   ,394371,,CHARITIES & VOLUNTARY ORGANISA
SHEFFIELD CITY COUNCIL        ,CYPF                          ,33064,PROVIDER CONTRACT AUG15-JUL16 ,9120,OTHER AGENCIES                ,04/10/2016,4086696,1617_103                 ,539.00,REACH SOUTH SHEFFIELD                   ,394371,,CHARITIES & VOLUNTARY ORGANISA
SHEFFIELD CITY COUNCIL        ,CYPF                          ,33064,PROVIDER CONTRACT AUG15-JUL16 ,9120,OTHER AGENCIES                ,04/10/2016,4086697,1617_104                 ,789.00,REACH SOUTH SHEFFIELD                   ,394371,,CHARITIES & VOLUNTARY ORGANISA
SHEFFIELD CITY COUNCIL        ,CYPF                          ,33064,PROVIDER CONTRACT AUG15-JUL16 ,9120,OTHER AGENCIES                ,04/10/2016,4086698,1617_80                  ,385.00,REACH SOUTH SHEFFIELD                   ,394371,,CHARITIES & VOLUNTARY ORGANISA
SHEFFIELD CITY COUNCIL        ,CYPF                          ,33064,PROVIDER CONTRACT AUG15-JUL16 ,9120,OTHER AGENCIES                ,04/10/2016,4086700,1617_79                  ,"1,033.00",REACH SOUTH SHEFFIELD                   ,394371,,CHARITIES & VOLUNTARY ORGANISA
SHEFFIELD CITY COUNCIL        ,CYPF                          ,33064,PROVIDER CONTRACT AUG15-JUL16 ,9120,OTHER AGENCIES                ,04/10/2016,4086703,1617_82                  ,575.00,REACH SOUTH SHEFFIELD                   ,394371,,CHARITIES & VOLUNTARY ORGANISA
SHEFFIELD CITY COUNCIL        ,CYPF                          ,33064,PROVIDER CONTRACT AUG15-JUL16 ,9120,OTHER AGENCIES                ,04/10/2016,4086704,1617_83                  ,575.00,REACH SOUTH SHEFFIELD                   ,394371,,CHARITIES & VOLUNTARY ORGANISA
SHEFFIELD CITY COUNCIL        ,COMMUNITIES                   ,49852,SCHOOLS LIBRARY SERVICE       ,8080,LIBRARY MATERIALS             ,04/10/2016,4086705,1606408,844.08,PETERS LTD                              ,312836,,BOOKSELLERS                   
SHEFFIELD CITY COUNCIL        ,CYPF                          ,33064,PROVIDER CONTRACT AUG15-JUL16 ,9120,OTHER AGENCIES                ,04/10/2016,4086706,1617_84                  ,"1,625.00",REACH SOUTH SHEFFIELD                   ,394371,,CHARITIES & VOLUNTARY ORGANISA
SHEFFIELD CITY COUNCIL        ,CYPF                          ,33064,PROVIDER CONTRACT AUG15-JUL16 ,9120,OTHER AGENCIES                ,04/10/2016,4086708,1617_85                  ,845.00,REACH SOUTH SHEFFIELD                   ,394371,,CHARITIES & VOLUNTARY ORGANISA
SHEFFIELD CITY COUNCIL        ,CYPF                          ,33064,PROVIDER CONTRACT AUG15-JUL16 ,9120,OTHER AGENCIES                ,04/10/2016,4086709,1617_86                  ,335.00,REACH SOUTH SHEFFIELD                   ,394371,,CHARITIES & VOLUNTARY ORGANISA
SHEFFIELD CITY COUNCIL        ,CYPF                          ,33064,PROVIDER CONTRACT AUG15-JUL16 ,9120,OTHER AGENCIES                ,04/10/2016,4086710,1617_87                  ,385.00,REACH SOUTH SHEFFIELD                   ,394371,,CHARITIES & VOLUNTARY ORGANISA
SHEFFIELD CITY COUNCIL        ,COMMUNITIES                   ,49852,SCHOOLS LIBRARY SERVICE       ,7140,PUBLIC TRANSPORT COSTS        ,04/10/2016,4086736,408,"2,800.00",I A DELIVERY SERVICES                   ,407641,,DELIVERY SERVICES             
SHEFFIELD CITY COUNCIL        ,CYPF                          ,33064,PROVIDER CONTRACT AUG15-JUL16 ,9120,OTHER AGENCIES                ,04/10/2016,4086737,1617_91                  ,445.00,REACH SOUTH SHEFFIELD                   ,394371,,CHARITIES & VOLUNTARY ORGANISA
SHEFFIELD CITY COUNCIL        ,CYPF                          ,33064,PROVIDER CONTRACT AUG15-JUL16 ,9120,OTHER AGENCIES                ,04/10/2016,4086739,1617_90                  ,835.00,REACH SOUTH SHEFFIELD                   ,394371,,CHARITIES & VOLUNTARY ORGANISA
SHEFFIELD CITY COUNCIL        ,CYPF                          ,33064,PROVIDER CONTRACT AUG15-JUL16 ,9120,OTHER AGENCIES                ,04/10/2016,4086740,1617_88                  ,589.00,REACH SOUTH SHEFFIELD                   ,394371,,CHARITIES & VOLUNTARY ORGANISA
SHEFFIELD CITY COUNCIL        ,CYPF                          ,33064,PROVIDER CONTRACT AUG15-JUL16 ,9120,OTHER AGENCIES                ,04/10/2016,4086744,1617_97                  ,389.00,REACH SOUTH SHEFFIELD                   ,394371,,CHARITIES & VOLUNTARY ORGANISA
SHEFFIELD CITY COUNCIL        ,CYPF                          ,33064,PROVIDER CONTRACT AUG15-JUL16 ,9120,OTHER AGENCIES                ,04/10/2016,4086745,1617_96                  ,933.00,REACH SOUTH SHEFFIELD                   ,394371,,CHARITIES & VOLUNTARY ORGANISA
SHEFFIELD CITY COUNCIL        ,CYPF                          ,33064,PROVIDER CONTRACT AUG15-JUL16 ,9120,OTHER AGENCIES                ,04/10/2016,4086747,1617_95                  ,933.00,REACH SOUTH SHEFFIELD                   ,394371,,CHARITIES & VOLUNTARY ORGANISA
SHEFFIELD CITY COUNCIL        ,CYPF                          ,33064,PROVIDER CONTRACT AUG15-JUL16 ,9120,OTHER AGENCIES                ,04/10/2016,4086749,1617_92                  ,885.00,REACH SOUTH SHEFFIELD                   ,394371,,CHARITIES & VOLUNTARY ORGANISA
SHEFFIELD CITY COUNCIL        ,CYPF                          ,33064,PROVIDER CONTRACT AUG15-JUL16 ,9120,OTHER AGENCIES                ,04/10/2016,4086750,1617_99                  ,625.00,REACH SOUTH SHEFFIELD                   ,394371,,CHARITIES & VOLUNTARY ORGANISA
SHEFFIELD CITY COUNCIL        ,COMMUNITIES                   ,49852,SCHOOLS LIBRARY SERVICE       ,8080,LIBRARY MATERIALS             ,04/10/2016,4086758,1606649,481.22,PETERS LTD                              ,312836,,BOOKSELLERS                   
SHEFFIELD CITY COUNCIL        ,COMMUNITIES                   ,47009,MINOR WORKS & ADAPTATIONS     ,6030,REPAIRS AND MTCE - RESPONSIVE ,04/10/2016,4086762,3701/16                  ,494.00,PIKE JOINERY LTD                        ,453858,,CARPENTERS & JOINERS          
SHEFFIELD CITY COUNCIL        ,COMMUNITIES                   ,49861,TRAINING                      ,5750,TRAINING EXPENDITURE          ,04/10/2016,4086771,LTH2931                  ,"1,300.00",SHEFFIELD MIND LTD                      ,341804,,CHARITIES & VOLUNTARY ORGANISA
SHEFFIELD CITY COUNCIL        ,CYPF                          ,39267,STEP UP TO SOCIAL WORK        ,8440,FEE EXPENSES                  ,04/10/2016,4086773,410000953,"17,266.40",NORTH YORKSHIRE COUNTY COUNCIL          ,542569,,LOCAL GOVERNMENT              
SHEFFIELD CITY COUNCIL        ,CYPF                          ,38047,HEALTH INTERVENTION & PREVENTI,9030,HEALTH                        ,04/10/2016,4086923,7/2016-17                ,"2,083.00",CLARE ROBINSON PROJECT MANAGEMENT       ,594895,,PUBLIC HEALTH SUPPLIERS       
SHEFFIELD CITY COUNCIL        ,PLACE                         ,22069,TRADED OPERATIONS             ,5750,TRAINING EXPENDITURE          ,04/10/2016,4088434,OP/I148439               ,"1,629.00",RIBA ENTERPRISES LTD                    ,390162,,BOOK PUBLISHERS               
SHEFFIELD CITY COUNCIL        ,PLACE                         ,23037,MEDICO LEGAL CENTRE           ,8440,FEE EXPENSES                  ,04/10/2016,4088449,P03964                   ,"5,100.00",REDACTED PERSONAL DATA,558502,Unclassified Non Trade,OUT OF SCOPE FOR SIC MONITORIN
SHEFFIELD CITY COUNCIL        ,PLACE                         ,94494,BOTANICAL GARDENS EDUCATION   ,1193,CONSULTANTS FEES              ,04/10/2016,4088541,4275,"1,650.00",MASCOT MANAGEMENT LTD                   ,631872,,CONSTRUCTION MANAGEMENT       
SHEFFIELD CITY COUNCIL        ,COMMUNITIES                   ,49006,SYRIAN VPR Y&H PARTNERS SCHEME,6210,RENTS                         ,04/10/2016,4088764,01-Sep-16,715.82,REDACTED PERSONAL DATA,577117,,PROPERTY & ESTATE MANAGEMENT  
SHEFFIELD CITY COUNCIL        ,COMMUNITIES                   ,49003,GATEWAY EXTENSION PROJECT     ,8010,EQUIPMENT PURCHASE AND REPAIR ,04/10/2016,4088765,01-Sep-16,415.56,MCNAUGHTON PROPERTY LTD                 ,586269,Unclassified Non Trade,OUT OF SCOPE FOR SIC MONITORIN
SHEFFIELD CITY COUNCIL        ,PLACE                         ,97552,NEW BUILD COUNCIL HSG PHASE 1 ,1148,SURVEY COSTS                  ,04/10/2016,4088768,24763,800.00,HRS SERVICES LTD                        ,364659,,BUILDING SERVICES             
SHEFFIELD CITY COUNCIL        ,COMMUNITIES                   ,97056,WARM & HEALTHY HOMES          ,1161,NC&A MAIN CONTRACT            ,04/10/2016,4088769,605008-1                 ,"29,257.84",HERBERT T FORREST LTD                   ,636657,,CONSTRUCTION CONTRACTORS - GEN
SHEFFIELD CITY COUNCIL        ,POLICY PERFORMANCE AND COMMS  ,17003,ELECTORAL REGISTRATION        ,8570,POSTAGE & DELIVERY            ,04/10/2016,4086918,9053002996,"1,408.45",ROYAL MAIL GROUP LTD                    ,295326,,DELIVERY SERVICES             
SHEFFIELD CITY COUNCIL        ,POLICY PERFORMANCE AND COMMS  ,17052,LOCAL ELECTIONS               ,8570,POSTAGE & DELIVERY            ,04/10/2016,4086919,9052997270,934.26,ROYAL MAIL GROUP LTD                    ,295326,,DELIVERY SERVICES             
SHEFFIELD CITY COUNCIL        ,COMMUNITIES                   ,42034,PURCHASING LEARNING DISABILITI,9190,FUNDED HOME SUPPORT           ,04/10/2016,4086967,J1666415                 ,"1,150.48",REDACTED PERSONAL DATA,410434,Social Community Care,CAREFIRST DIRECT PAYMENTS     
SHEFFIELD CITY COUNCIL        ,COMMUNITIES                   ,42034,PURCHASING LEARNING DISABILITI,9190,DIRECT PAYMENTS               ,04/10/2016,4086967,J1666415                 ,"5,098.84",REDACTED PERSONAL DATA,410434,Social Community Care,CAREFIRST DIRECT PAYMENTS     
SHEFFIELD CITY COUNCIL        ,COMMUNITIES                   ,46039,ADULT SOCIAL CARE PURCHASING  ,9190,DIRECT PAYMENTS               ,04/10/2016,4086968,J1666415                 ,"1,014.92",REDACTED PERSONAL DATA,615687,Social Community Care,CAREFIRST DIRECT PAYMENTS     
SHEFFIELD CITY COUNCIL        ,COMMUNITIES                   ,46039,ADULT SOCIAL CARE PURCHASING  ,9190,DIRECT PAYMENTS               ,04/10/2016,4086969,J1666415                 ,710.60,REDACTED PERSONAL DATA,616133,Social Community Care,CAREFIRST DIRECT PAYMENTS     
SHEFFIELD CITY COUNCIL        ,COMMUNITIES                   ,42034,PURCHASING LEARNING DISABILITI,9190,DIRECT PAYMENTS               ,04/10/2016,4086970,J1666415                 ,"2,167.52",REDACTED PERSONAL DATA,616142,Social Community Care,CAREFIRST DIRECT PAYMENTS     
SHEFFIELD CITY COUNCIL        ,COMMUNITIES                   ,42034,PURCHASING LEARNING DISABILITI,9190,FUNDED HOME SUPPORT           ,04/10/2016,4086970,J1666415                 ,"1,222.88",REDACTED PERSONAL DATA,616142,Social Community Care,CAREFIRST DIRECT PAYMENTS     
SHEFFIELD CITY COUNCIL        ,COMMUNITIES                   ,46039,ADULT SOCIAL CARE PURCHASING  ,9190,DIRECT PAYMENTS               ,04/10/2016,4086971,J1666415                 ,934.20,REDACTED PERSONAL DATA,616147,Social Community Care,CAREFIRST DIRECT PAYMENTS     
SHEFFIELD CITY COUNCIL        ,COMMUNITIES                   ,46039,ADULT SOCIAL CARE PURCHASING  ,9190,DIRECT PAYMENTS               ,04/10/2016,4086973,J1666415                 ,571.48,REDACTED PERSONAL DATA,616196,Social Community Care,CAREFIRST DIRECT PAYMENTS     
SHEFFIELD CITY COUNCIL        ,COMMUNITIES                   ,46039,ADULT SOCIAL CARE PURCHASING  ,9190,DIRECT PAYMENTS               ,04/10/2016,4086974,J1666415                 ,450.60,REDACTED PERSONAL DATA,616348,Social Community Care,CAREFIRST DIRECT PAYMENTS     
SHEFFIELD CITY COUNCIL        ,COMMUNITIES                   ,42034,PURCHASING LEARNING DISABILITI,9190,DIRECT PAYMENTS               ,04/10/2016,4086976,J1666415                 ,"1,978.44",REDACTED PERSONAL DATA,616552,Social Community Care,CAREFIRST DIRECT PAYMENTS     
SHEFFIELD CITY COUNCIL        ,COMMUNITIES                   ,46039,ADULT SOCIAL CARE PURCHASING  ,9190,DIRECT PAYMENTS               ,04/10/2016,4086977,J1666415                 ,849.16,REDACTED PERSONAL DATA,616635,Social Community Care,CAREFIRST DIRECT PAYMENTS     
SHEFFIELD CITY COUNCIL        ,COMMUNITIES                   ,42034,PURCHASING LEARNING DISABILITI,9190,DIRECT PAYMENTS               ,04/10/2016,4086978,J1666415                 ,"2,265.36",REDACTED PERSONAL DATA,410698,Social Community Care,CAREFIRST DIRECT PAYMENTS     
SHEFFIELD CITY COUNCIL        ,COMMUNITIES                   ,46039,ADULT SOCIAL CARE PURCHASING  ,9190,DIRECT PAYMENTS               ,04/10/2016,4086980,J1666415                 ,"1,392.68",REDACTED PERSONAL DATA,616760,Social Community Care,CAREFIRST DIRECT PAYMENTS     
SHEFFIELD CITY COUNCIL        ,COMMUNITIES                   ,42034,PURCHASING LEARNING DISABILITI,9190,DIRECT PAYMENTS               ,04/10/2016,4086982,J1666415                 ,"16,062.92",PARKSIDE PAYROLL LIMITED                ,616773,Social Community Care,CAREFIRST DIRECT PAYMENTS     
SHEFFIELD CITY COUNCIL        ,COMMUNITIES                   ,42034,PURCHASING LEARNING DISABILITI,9190,FUNDED HOME SUPPORT           ,04/10/2016,4086982,J1666415                 ,"2,354.52",PARKSIDE PAYROLL LIMITED                ,616773,Social Community Care,CAREFIRST DIRECT PAYMENTS     
SHEFFIELD CITY COUNCIL        ,CYPF                          ,39148,DIRECT PAYMENTS               ,9190,DIRECT PAYMENTS               ,04/10/2016,4086982,J1666415                 ,431.92,PARKSIDE PAYROLL LIMITED                ,616773,Social Community Care,CAREFIRST DIRECT PAYMENTS     
SHEFFIELD CITY COUNCIL        ,COMMUNITIES                   ,46039,ADULT SOCIAL CARE PURCHASING  ,9190,DIRECT PAYMENTS               ,04/10/2016,4086982,J1666415                 ,"14,124.84",PARKSIDE PAYROLL LIMITED                ,616773,Social Community Care,CAREFIRST DIRECT PAYMENTS     
SHEFFIELD CITY COUNCIL        ,COMMUNITIES                   ,42034,PURCHASING LEARNING DISABILITI,9190,DIRECT PAYMENTS               ,04/10/2016,4086984,J1666415                 ,479.44,REDACTED PERSONAL DATA,616877,Social Community Care,CAREFIRST DIRECT PAYMENTS     
SHEFFIELD CITY COUNCIL        ,CYPF                          ,39148,DIRECT PAYMENTS               ,9190,DIRECT PAYMENTS               ,04/10/2016,4086985,J1666415                 ,325.20,REDACTED PERSONAL DATA,617069,Social Community Care,CAREFIRST DIRECT PAYMENTS     
SHEFFIELD CITY COUNCIL        ,COMMUNITIES                   ,46039,ADULT SOCIAL CARE PURCHASING  ,9190,DIRECT PAYMENTS               ,04/10/2016,4086986,J1666415                 ,414.20,REDACTED PERSONAL DATA,617082,Social Community Care,CAREFIRST DIRECT PAYMENTS     
SHEFFIELD CITY COUNCIL        ,COMMUNITIES                   ,46039,ADULT SOCIAL CARE PURCHASING  ,9190,DIRECT PAYMENTS               ,04/10/2016,4086988,J1666415                 ,302.60,REDACTED PERSONAL DATA,617138,Social Community Care,CAREFIRST DIRECT PAYMENTS     
SHEFFIELD CITY COUNCIL        ,COMMUNITIES                   ,46039,ADULT SOCIAL CARE PURCHASING  ,9190,DIRECT PAYMENTS               ,04/10/2016,4086990,J1666415                 ,"3,151.96",REDACTED PERSONAL DATA,411406,Social Community Care,CAREFIRST DIRECT PAYMENTS     
SHEFFIELD CITY COUNCIL        ,COMMUNITIES                   ,46039,ADULT SOCIAL CARE PURCHASING  ,9190,DIRECT PAYMENTS               ,04/10/2016,4086992,J1666415                 ,621.40,REDACTED PERSONAL DATA,617222,Social Community Care,CAREFIRST DIRECT PAYMENTS     
SHEFFIELD CITY COUNCIL        ,COMMUNITIES                   ,46039,ADULT SOCIAL CARE PURCHASING  ,9190,DIRECT PAYMENTS               ,04/10/2016,4086993,J1666415                 ,"1,029.00",REDACTED PERSONAL DATA,617408,Social Community Care,CAREFIRST DIRECT PAYMENTS     
SHEFFIELD CITY COUNCIL        ,COMMUNITIES                   ,42034,PURCHASING LEARNING DISABILITI,9190,DIRECT PAYMENTS               ,04/10/2016,4086994,J1666415                 ,"4,891.24",REDACTED PERSONAL DATA,617513,Social Community Care,CAREFIRST DIRECT PAYMENTS     
SHEFFIELD CITY COUNCIL        ,COMMUNITIES                   ,42034,PURCHASING LEARNING DISABILITI,9190,DIRECT PAYMENTS               ,04/10/2016,4086995,J1666415                 ,392.48,REDACTED PERSONAL DATA,617634,Social Community Care,CAREFIRST DIRECT PAYMENTS     
SHEFFIELD CITY COUNCIL        ,COMMUNITIES                   ,42034,PURCHASING LEARNING DISABILITI,9190,DIRECT PAYMENTS               ,04/10/2016,4086998,J1666415                 ,"1,001.08",REDACTED PERSONAL DATA,617984,Social Community Care,CAREFIRST DIRECT PAYMENTS     
SHEFFIELD CITY COUNCIL        ,COMMUNITIES                   ,42034,PURCHASING LEARNING DISABILITI,9190,DIRECT PAYMENTS               ,04/10/2016,4087000,J1666415                 ,"1,829.28",REDACTED PERSONAL DATA,618026,Unclassified Non Trade,OUT OF SCOPE FOR SIC MONITORIN
SHEFFIELD CITY COUNCIL        ,COMMUNITIES                   ,42034,PURCHASING LEARNING DISABILITI,9190,DIRECT PAYMENTS               ,04/10/2016,4087001,J1666415                 ,"4,446.64",REDACTED PERSONAL DATA,412788,Social Community Care,CAREFIRST DIRECT PAYMENTS     
SHEFFIELD CITY COUNCIL        ,CYPF                          ,39148,DIRECT PAYMENTS               ,9190,DIRECT PAYMENTS               ,04/10/2016,4087002,J1666415                 ,268.32,REDACTED PERSONAL DATA,618050,Social Community Care,CAREFIRST DIRECT PAYMENTS     
SHEFFIELD CITY COUNCIL        ,COMMUNITIES                   ,48007,PUBLIC HEALTH DIRECT PAYMENTS ,9190,DIRECT PAYMENTS               ,04/10/2016,4087002,J1666415                 ,392.92,REDACTED PERSONAL DATA,618050,Social Community Care,CAREFIRST DIRECT PAYMENTS     
SHEFFIELD CITY COUNCIL        ,COMMUNITIES                   ,42034,PURCHASING LEARNING DISABILITI,9190,DIRECT PAYMENTS               ,04/10/2016,4087004,J1666415                 ,"1,232.56",REDACTED PERSONAL DATA,618116,Social Community Care,CAREFIRST DIRECT PAYMENTS     
SHEFFIELD CITY COUNCIL        ,COMMUNITIES                   ,46039,ADULT SOCIAL CARE PURCHASING  ,9190,DIRECT PAYMENTS               ,04/10/2016,4087008,J1666415                 ,979.56,REDACTED PERSONAL DATA,618230,Social Community Care,CAREFIRST DIRECT PAYMENTS     
SHEFFIELD CITY COUNCIL        ,COMMUNITIES                   ,42034,PURCHASING LEARNING DISABILITI,9190,DIRECT PAYMENTS               ,04/10/2016,4087009,J1666415                 ,566.20,REDACTED PERSONAL DATA,618233,Social Community Care,CAREFIRST DIRECT PAYMENTS     
SHEFFIELD CITY COUNCIL        ,COMMUNITIES                   ,44001,PURCHASING                    ,9190,DIRECT PAYMENTS               ,04/10/2016,4087010,J1666415                 ,446.52,REDACTED PERSONAL DATA,618243,Social Community Care,CAREFIRST DIRECT PAYMENTS     
SHEFFIELD CITY COUNCIL        ,COMMUNITIES                   ,46039,ADULT SOCIAL CARE PURCHASING  ,9190,DIRECT PAYMENTS               ,04/10/2016,4087011,J1666415                 ,307.20,REDACTED PERSONAL DATA,618271,Social Community Care,CAREFIRST DIRECT PAYMENTS     
SHEFFIELD CITY COUNCIL        ,COMMUNITIES                   ,46039,ADULT SOCIAL CARE PURCHASING  ,9190,DIRECT PAYMENTS               ,04/10/2016,4087012,J1666415                 ,810.32,REDACTED PERSONAL DATA,412791,Social Community Care,CAREFIRST DIRECT PAYMENTS     
SHEFFIELD CITY COUNCIL        ,COMMUNITIES                   ,46039,ADULT SOCIAL CARE PURCHASING  ,9190,DIRECT PAYMENTS               ,04/10/2016,4087013,J1666415                 ,789.52,REDACTED PERSONAL DATA,618272,Social Community Care,CAREFIRST DIRECT PAYMENTS     
SHEFFIELD CITY COUNCIL        ,COMMUNITIES                   ,42034,PURCHASING LEARNING DISABILITI,9190,DIRECT PAYMENTS               ,04/10/2016,4087016,J1666415                 ,728.72,REDACTED PERSONAL DATA,618367,Unclassified Non Trade,OUT OF SCOPE FOR SIC MONITORIN
SHEFFIELD CITY COUNCIL        ,COMMUNITIES                   ,46039,ADULT SOCIAL CARE PURCHASING  ,9190,DIRECT PAYMENTS               ,04/10/2016,4087017,J1666415                 ,"1,016.60",REDACTED PERSONAL DATA,618373,Social Community Care,CAREFIRST DIRECT PAYMENTS     
SHEFFIELD CITY COUNCIL        ,CYPF                          ,39148,DIRECT PAYMENTS               ,9190,DIRECT PAYMENTS               ,04/10/2016,4087018,J1666415                 ,292.72,REDACTED PERSONAL DATA,618375,Social Community Care,CAREFIRST DIRECT PAYMENTS     
SHEFFIELD CITY COUNCIL        ,COMMUNITIES                   ,44001,PURCHASING                    ,9190,DIRECT PAYMENTS               ,04/10/2016,4087020,J1666415                 ,792.12,REDACTED PERSONAL DATA,618409,Social Community Care,CAREFIRST DIRECT PAYMENTS     
SHEFFIELD CITY COUNCIL        ,COMMUNITIES                   ,46039,ADULT SOCIAL CARE PURCHASING  ,9190,DIRECT PAYMENTS               ,04/10/2016,4087021,J1666415                 ,"1,075.88",REDACTED PERSONAL DATA,618498,Unclassified Non Trade,OUT OF SCOPE FOR SIC MONITORIN
SHEFFIELD CITY COUNCIL        ,COMMUNITIES                   ,46039,ADULT SOCIAL CARE PURCHASING  ,9190,DIRECT PAYMENTS               ,04/10/2016,4087022,J1666415                 ,259.20,SMARTPAYE LTD                           ,618500,Social Community Care,CAREFIRST DIRECT PAYMENTS     
SHEFFIELD CITY COUNCIL        ,COMMUNITIES                   ,42034,PURCHASING LEARNING DISABILITI,9190,DIRECT PAYMENTS               ,04/10/2016,4087023,J1666415                 ,"2,058.00",REDACTED PERSONAL DATA,413313,Social Community Care,CAREFIRST DIRECT PAYMENTS     
SHEFFIELD CITY COUNCIL        ,COMMUNITIES                   ,42034,PURCHASING LEARNING DISABILITI,9190,FUNDED HOME SUPPORT           ,04/10/2016,4087023,J1666415                 ,460.00,REDACTED PERSONAL DATA,413313,Social Community Care,CAREFIRST DIRECT PAYMENTS     
SHEFFIELD CITY COUNCIL        ,CYPF                          ,39148,DIRECT PAYMENTS               ,9190,DIRECT PAYMENTS               ,04/10/2016,4087024,J1666415                 ,819.08,REDACTED PERSONAL DATA,618660,Social Community Care,CAREFIRST DIRECT PAYMENTS     
SHEFFIELD CITY COUNCIL        ,COMMUNITIES                   ,46039,ADULT SOCIAL CARE PURCHASING  ,9190,DIRECT PAYMENTS               ,04/10/2016,4087025,J1666415                 ,919.36,REDACTED PERSONAL DATA,618682,Social Community Care,CAREFIRST DIRECT PAYMENTS     
SHEFFIELD CITY COUNCIL        ,COMMUNITIES                   ,44001,PURCHASING                    ,9190,DIRECT PAYMENTS               ,04/10/2016,4087026,J1666415                 ,"1,213.68",REDACTED PERSONAL DATA,618795,Social Community Care,CAREFIRST DIRECT PAYMENTS     
SHEFFIELD CITY COUNCIL        ,COMMUNITIES                   ,44001,PURCHASING                    ,9190,DIRECT PAYMENTS               ,04/10/2016,4087028,J1666415                 ,400.52,REDACTED PERSONAL DATA,618935,Social Community Care,CAREFIRST DIRECT PAYMENTS     
SHEFFIELD CITY COUNCIL        ,COMMUNITIES                   ,44001,PURCHASING                    ,9190,DIRECT PAYMENTS               ,04/10/2016,4087029,J1666415                 ,327.24,REDACTED PERSONAL DATA,618938,Social Community Care,CAREFIRST DIRECT PAYMENTS     
SHEFFIELD CITY COUNCIL        ,COMMUNITIES                   ,42034,PURCHASING LEARNING DISABILITI,9190,DIRECT PAYMENTS               ,04/10/2016,4087030,J1666415                 ,435.20,REDACTED PERSONAL DATA,618947,Social Community Care,CAREFIRST DIRECT PAYMENTS     
SHEFFIELD CITY COUNCIL        ,COMMUNITIES                   ,46039,ADULT SOCIAL CARE PURCHASING  ,9190,DIRECT PAYMENTS               ,04/10/2016,4087031,J1666415                 ,463.52,REDACTED PERSONAL DATA,619358,Social Community Care,CAREFIRST DIRECT PAYMENTS     
SHEFFIELD CITY COUNCIL        ,COMMUNITIES                   ,46039,ADULT SOCIAL CARE PURCHASING  ,9190,DIRECT PAYMENTS               ,04/10/2016,4087032,J1666415                 ,"1,074.20",REDACTED PERSONAL DATA,619362,Social Community Care,CAREFIRST DIRECT PAYMENTS     
SHEFFIELD CITY COUNCIL        ,COMMUNITIES                   ,46039,ADULT SOCIAL CARE PURCHASING  ,9190,DIRECT PAYMENTS               ,04/10/2016,4087033,J1666415                 ,"1,240.48",REDACTED PERSONAL DATA,619364,Social Community Care,CAREFIRST DIRECT PAYMENTS     
SHEFFIELD CITY COUNCIL        ,COMMUNITIES                   ,46039,ADULT SOCIAL CARE PURCHASING  ,9190,DIRECT PAYMENTS               ,04/10/2016,4087034,J1666415                 ,568.20,REDACTED PERSONAL DATA,413562,Social Community Care,CAREFIRST DIRECT PAYMENTS     
SHEFFIELD CITY COUNCIL        ,COMMUNITIES                   ,46039,ADULT SOCIAL CARE PURCHASING  ,9190,DIRECT PAYMENTS               ,04/10/2016,4087035,J1666415                 ,518.00,REDACTED PERSONAL DATA,619365,Social Community Care,CAREFIRST DIRECT PAYMENTS     
SHEFFIELD CITY COUNCIL        ,COMMUNITIES                   ,42034,PURCHASING LEARNING DISABILITI,9190,DIRECT PAYMENTS               ,04/10/2016,4087036,J1666415                 ,"2,185.16",THE MONEY CARER FOUNDATION              ,619366,Social Community Care,CAREFIRST DIRECT PAYMENTS     
SHEFFIELD CITY COUNCIL        ,COMMUNITIES                   ,42034,PURCHASING LEARNING DISABILITI,9190,FUNDED HOME SUPPORT           ,04/10/2016,4087039,J1666415                 ,780.64,REDACTED PERSONAL DATA,619722,Social Community Care,CAREFIRST DIRECT PAYMENTS     
SHEFFIELD CITY COUNCIL        ,COMMUNITIES                   ,42034,PURCHASING LEARNING DISABILITI,9190,DIRECT PAYMENTS               ,04/10/2016,4087042,J1666415                 ,922.32,REDACTED PERSONAL DATA,619753,Social Community Care,CAREFIRST DIRECT PAYMENTS     
SHEFFIELD CITY COUNCIL        ,COMMUNITIES                   ,46039,ADULT SOCIAL CARE PURCHASING  ,9190,DIRECT PAYMENTS               ,04/10/2016,4087043,J1666415                 ,574.60,REDACTED PERSONAL DATA,619756,Social Community Care,CAREFIRST DIRECT PAYMENTS     
SHEFFIELD CITY COUNCIL        ,COMMUNITIES                   ,42034,PURCHASING LEARNING DISABILITI,9190,DIRECT PAYMENTS               ,04/10/2016,4087044,J1666415                 ,408.00,REDACTED PERSONAL DATA,619768,Social Community Care,CAREFIRST DIRECT PAYMENTS     
SHEFFIELD CITY COUNCIL        ,COMMUNITIES                   ,46039,ADULT SOCIAL CARE PURCHASING  ,9190,DIRECT PAYMENTS               ,04/10/2016,4087045,J1666415                 ,862.72,REDACTED PERSONAL DATA,414530,Social Community Care,CAREFIRST DIRECT PAYMENTS     
SHEFFIELD CITY COUNCIL        ,COMMUNITIES                   ,42034,PURCHASING LEARNING DISABILITI,9190,DIRECT PAYMENTS               ,04/10/2016,4087046,J1666415                 ,"2,410.84",REDACTED PERSONAL DATA,619817,Social Community Care,CAREFIRST DIRECT PAYMENTS     
SHEFFIELD CITY COUNCIL        ,COMMUNITIES                   ,42034,PURCHASING LEARNING DISABILITI,9190,FUNDED HOME SUPPORT           ,04/10/2016,4087047,J1666415                 ,"1,865.52",REDACTED PERSONAL DATA,619839,Unclassified Non Trade,OUT OF SCOPE FOR SIC MONITORIN
SHEFFIELD CITY COUNCIL        ,COMMUNITIES                   ,42034,PURCHASING LEARNING DISABILITI,9190,DIRECT PAYMENTS               ,04/10/2016,4087047,J1666415                 ,"1,676.52",REDACTED PERSONAL DATA,619839,Unclassified Non Trade,OUT OF SCOPE FOR SIC MONITORIN
SHEFFIELD CITY COUNCIL        ,CYPF                          ,39148,DIRECT PAYMENTS               ,9190,DIRECT PAYMENTS               ,04/10/2016,4087049,J1666415                 ,318.76,REDACTED PERSONAL DATA,619898,Social Community Care,CAREFIRST DIRECT PAYMENTS     
SHEFFIELD CITY COUNCIL        ,COMMUNITIES                   ,42034,PURCHASING LEARNING DISABILITI,9190,DIRECT PAYMENTS               ,04/10/2016,4087051,J1666415                 ,440.12,REDACTED PERSONAL DATA,619943,Social Community Care,CAREFIRST DIRECT PAYMENTS     
SHEFFIELD CITY COUNCIL        ,COMMUNITIES                   ,42034,PURCHASING LEARNING DISABILITI,9190,DIRECT PAYMENTS               ,04/10/2016,4087052,J1666415                 ,"1,219.12",REDACTED PERSONAL DATA,620066,Social Community Care,CAREFIRST DIRECT PAYMENTS     
SHEFFIELD CITY COUNCIL        ,COMMUNITIES                   ,42034,PURCHASING LEARNING DISABILITI,9190,FUNDED HOME SUPPORT           ,04/10/2016,4087054,J1666415                 ,583.80,REDACTED PERSONAL DATA,620080,Social Community Care,CAREFIRST DIRECT PAYMENTS     
SHEFFIELD CITY COUNCIL        ,COMMUNITIES                   ,42034,PURCHASING LEARNING DISABILITI,9190,DIRECT PAYMENTS               ,04/10/2016,4087054,J1666415                 ,583.80,REDACTED PERSONAL DATA,620080,Social Community Care,CAREFIRST DIRECT PAYMENTS     
SHEFFIELD CITY COUNCIL        ,COMMUNITIES                   ,46039,ADULT SOCIAL CARE PURCHASING  ,9190,DIRECT PAYMENTS               ,04/10/2016,4087056,J1666415                 ,755.12,REDACTED PERSONAL DATA,414760,Social Community Care,CAREFIRST DIRECT PAYMENTS     
SHEFFIELD CITY COUNCIL        ,COMMUNITIES                   ,42034,PURCHASING LEARNING DISABILITI,9190,DIRECT PAYMENTS               ,04/10/2016,4087057,J1666415                 ,896.00,REDACTED PERSONAL DATA,620231,Social Community Care,CAREFIRST DIRECT PAYMENTS     
SHEFFIELD CITY COUNCIL        ,COMMUNITIES                   ,42034,PURCHASING LEARNING DISABILITI,9190,DIRECT PAYMENTS               ,04/10/2016,4087058,J1666415                 ,"1,845.12",REDACTED PERSONAL DATA,620285,Social Community Care,CAREFIRST DIRECT PAYMENTS     
SHEFFIELD CITY COUNCIL        ,COMMUNITIES                   ,42034,PURCHASING LEARNING DISABILITI,9190,DIRECT PAYMENTS               ,04/10/2016,4087059,J1666415                 ,"1,054.80",REDACTED PERSONAL DATA,620336,Social Community Care,CAREFIRST DIRECT PAYMENTS     
SHEFFIELD CITY COUNCIL        ,COMMUNITIES                   ,42034,PURCHASING LEARNING DISABILITI,9190,DIRECT PAYMENTS               ,04/10/2016,4087060,J1666415                 ,800.56,REDACTED PERSONAL DATA,620338,Social Community Care,CAREFIRST DIRECT PAYMENTS     
SHEFFIELD CITY COUNCIL        ,COMMUNITIES                   ,46039,ADULT SOCIAL CARE PURCHASING  ,9190,DIRECT PAYMENTS               ,04/10/2016,4087061,J1666415                 ,633.08,REDACTED PERSONAL DATA,620401,Social Community Care,CAREFIRST DIRECT PAYMENTS     
SHEFFIELD CITY COUNCIL        ,COMMUNITIES                   ,42034,PURCHASING LEARNING DISABILITI,9190,DIRECT PAYMENTS               ,04/10/2016,4087062,J1666415                 ,"2,637.36",REDACTED PERSONAL DATA,620402,Social Community Care,CAREFIRST DIRECT PAYMENTS     
SHEFFIELD CITY COUNCIL        ,COMMUNITIES                   ,46039,ADULT SOCIAL CARE PURCHASING  ,9190,DIRECT PAYMENTS               ,04/10/2016,4087063,J1666415                 ,320.72,REDACTED PERSONAL DATA,620403,Social Community Care,CAREFIRST DIRECT PAYMENTS     
SHEFFIELD CITY COUNCIL        ,COMMUNITIES                   ,42034,PURCHASING LEARNING DISABILITI,9190,DIRECT PAYMENTS               ,04/10/2016,4087064,J1666415                 ,522.00,REDACTED PERSONAL DATA,620404,Social Community Care,CAREFIRST DIRECT PAYMENTS     
SHEFFIELD CITY COUNCIL        ,COMMUNITIES                   ,42034,PURCHASING LEARNING DISABILITI,9190,DIRECT PAYMENTS               ,04/10/2016,4087065,J1666415                 ,830.60,REDACTED PERSONAL DATA,620465,Social Community Care,CAREFIRST DIRECT PAYMENTS     
SHEFFIELD CITY COUNCIL        ,COMMUNITIES                   ,46039,ADULT SOCIAL CARE PURCHASING  ,9190,DIRECT PAYMENTS               ,04/10/2016,4087066,J1666415                 ,980.00,REDACTED PERSONAL DATA,620526,Social Community Care,CAREFIRST DIRECT PAYMENTS     
SHEFFIELD CITY COUNCIL        ,COMMUNITIES                   ,46039,ADULT SOCIAL CARE PURCHASING  ,9190,DIRECT PAYMENTS               ,04/10/2016,4087068,J1666415                 ,502.80,REDACTED PERSONAL DATA,620635,Social Community Care,CAREFIRST DIRECT PAYMENTS     
SHEFFIELD CITY COUNCIL        ,COMMUNITIES                   ,42034,PURCHASING LEARNING DISABILITI,9190,DIRECT PAYMENTS               ,04/10/2016,4087069,J1666415                 ,"2,247.28",REDACTED PERSONAL DATA,620717,Social Community Care,CAREFIRST DIRECT PAYMENTS     
SHEFFIELD CITY COUNCIL        ,COMMUNITIES                   ,46039,ADULT SOCIAL CARE PURCHASING  ,9190,DIRECT PAYMENTS               ,04/10/2016,4087070,J1666415                 ,"1,321.32",REDACTED PERSONAL DATA,620788,Unclassified Non Trade,OUT OF SCOPE FOR SIC MONITORIN
SHEFFIELD CITY COUNCIL        ,COMMUNITIES                   ,46039,ADULT SOCIAL CARE PURCHASING  ,9190,DIRECT PAYMENTS               ,04/10/2016,4087071,J1666415                 ,364.00,REDACTED PERSONAL DATA,620903,Social Community Care,CAREFIRST DIRECT PAYMENTS     
SHEFFIELD CITY COUNCIL        ,CYPF                          ,39148,DIRECT PAYMENTS               ,9190,DIRECT PAYMENTS               ,04/10/2016,4087072,J1666415                 ,345.68,REDACTED PERSONAL DATA,620917,Social Community Care,CAREFIRST DIRECT PAYMENTS     
SHEFFIELD CITY COUNCIL        ,COMMUNITIES                   ,46039,ADULT SOCIAL CARE PURCHASING  ,9190,DIRECT PAYMENTS               ,04/10/2016,4087076,J1666415                 ,867.44,REDACTED PERSONAL DATA,620969,Social Community Care,CAREFIRST DIRECT PAYMENTS     
SHEFFIELD CITY COUNCIL        ,COMMUNITIES                   ,46039,ADULT SOCIAL CARE PURCHASING  ,9190,DIRECT PAYMENTS               ,04/10/2016,4087078,J1666415                 ,755.12,REDACTED PERSONAL DATA,414764,Social Community Care,CAREFIRST DIRECT PAYMENTS     
SHEFFIELD CITY COUNCIL        ,COMMUNITIES                   ,42034,PURCHASING LEARNING DISABILITI,9190,DIRECT PAYMENTS               ,04/10/2016,4087079,J1666415                 ,441.00,REDACTED PERSONAL DATA,621006,Social Community Care,CAREFIRST DIRECT PAYMENTS     
SHEFFIELD CITY COUNCIL        ,COMMUNITIES                   ,46039,ADULT SOCIAL CARE PURCHASING  ,9190,DIRECT PAYMENTS               ,04/10/2016,4087080,J1666415                 ,312.24,REDACTED PERSONAL DATA,621174,Social Community Care,CAREFIRST DIRECT PAYMENTS     
SHEFFIELD CITY COUNCIL        ,COMMUNITIES                   ,46039,ADULT SOCIAL CARE PURCHASING  ,9190,DIRECT PAYMENTS               ,04/10/2016,4087081,J1666415                 ,262.28,REDACTED PERSONAL DATA,621248,Social Community Care,CAREFIRST DIRECT PAYMENTS     
SHEFFIELD CITY COUNCIL        ,COMMUNITIES                   ,42034,PURCHASING LEARNING DISABILITI,9190,DIRECT PAYMENTS               ,04/10/2016,4087082,J1666415                 ,270.40,REDACTED PERSONAL DATA,621280,Social Community Care,CAREFIRST DIRECT PAYMENTS     
SHEFFIELD CITY COUNCIL        ,COMMUNITIES                   ,46039,ADULT SOCIAL CARE PURCHASING  ,9190,DIRECT PAYMENTS               ,04/10/2016,4087083,J1666415                 ,332.24,REDACTED PERSONAL DATA,621299,Social Community Care,CAREFIRST DIRECT PAYMENTS     
SHEFFIELD CITY COUNCIL        ,COMMUNITIES                   ,44001,PURCHASING                    ,9190,DIRECT PAYMENTS               ,04/10/2016,4087084,J1666415                 ,360.00,REDACTED PERSONAL DATA,621300,Social Community Care,CAREFIRST DIRECT PAYMENTS     
SHEFFIELD CITY COUNCIL        ,COMMUNITIES                   ,46039,ADULT SOCIAL CARE PURCHASING  ,9190,DIRECT PAYMENTS               ,04/10/2016,4087085,J1666415                 ,360.00,REDACTED PERSONAL DATA,621301,Social Community Care,CAREFIRST DIRECT PAYMENTS     
SHEFFIELD CITY COUNCIL        ,CYPF                          ,39148,DIRECT PAYMENTS               ,9190,DIRECT PAYMENTS               ,04/10/2016,4087087,J1666415                 ,254.88,REDACTED PERSONAL DATA,621303,Social Community Care,CAREFIRST DIRECT PAYMENTS     
SHEFFIELD CITY COUNCIL        ,COMMUNITIES                   ,48007,PUBLIC HEALTH DIRECT PAYMENTS ,9190,DIRECT PAYMENTS               ,04/10/2016,4087089,J1666415                 ,"6,444.08",REDACTED PERSONAL DATA,415042,Social Community Care,CAREFIRST DIRECT PAYMENTS     
SHEFFIELD CITY COUNCIL        ,COMMUNITIES                   ,42034,PURCHASING LEARNING DISABILITI,9190,DIRECT PAYMENTS               ,04/10/2016,4087090,J1666415                 ,405.04,REDACTED PERSONAL DATA,621318,Social Community Care,CAREFIRST DIRECT PAYMENTS     
SHEFFIELD CITY COUNCIL        ,COMMUNITIES                   ,46039,ADULT SOCIAL CARE PURCHASING  ,9190,DIRECT PAYMENTS               ,04/10/2016,4087092,J1666415                 ,"1,374.12",REDACTED PERSONAL DATA,621671,Social Community Care,CAREFIRST DIRECT PAYMENTS     
SHEFFIELD CITY COUNCIL        ,CYPF                          ,39148,DIRECT PAYMENTS               ,9190,DIRECT PAYMENTS               ,04/10/2016,4087093,J1666415                 ,390.80,REDACTED PERSONAL DATA,621702,Social Community Care,CAREFIRST DIRECT PAYMENTS     
SHEFFIELD CITY COUNCIL        ,COMMUNITIES                   ,42034,PURCHASING LEARNING DISABILITI,9190,DIRECT PAYMENTS               ,04/10/2016,4087094,J1666415                 ,"2,420.48",REDACTED PERSONAL DATA,621816,Social Community Care,CAREFIRST DIRECT PAYMENTS     
SHEFFIELD CITY COUNCIL        ,COMMUNITIES                   ,46039,ADULT SOCIAL CARE PURCHASING  ,9190,DIRECT PAYMENTS               ,04/10/2016,4087095,J1666415                 ,326.60,REDACTED PERSONAL DATA,621835,Social Community Care,CAREFIRST DIRECT PAYMENTS     
SHEFFIELD CITY COUNCIL        ,COMMUNITIES                   ,46039,ADULT SOCIAL CARE PURCHASING  ,9190,DIRECT PAYMENTS               ,04/10/2016,4087096,J1666415                 ,631.44,REDACTED PERSONAL DATA,621911,Social Community Care,CAREFIRST DIRECT PAYMENTS     
SHEFFIELD CITY COUNCIL        ,COMMUNITIES                   ,48007,PUBLIC HEALTH DIRECT PAYMENTS ,9190,DIRECT PAYMENTS               ,04/10/2016,4087097,J1666415                 ,535.80,REDACTED PERSONAL DATA,621967,Social Community Care,CAREFIRST DIRECT PAYMENTS     
SHEFFIELD CITY COUNCIL        ,COMMUNITIES                   ,46039,ADULT SOCIAL CARE PURCHASING  ,9190,DIRECT PAYMENTS               ,04/10/2016,4087098,J1666415                 ,268.68,REDACTED PERSONAL DATA,622173,Social Community Care,CAREFIRST DIRECT PAYMENTS     
SHEFFIELD CITY COUNCIL        ,COMMUNITIES                   ,46039,ADULT SOCIAL CARE PURCHASING  ,9190,DIRECT PAYMENTS               ,04/10/2016,4087099,J1666415                 ,680.72,REDACTED PERSONAL DATA,622387,Social Community Care,CAREFIRST DIRECT PAYMENTS     
SHEFFIELD CITY COUNCIL        ,COMMUNITIES                   ,42034,PURCHASING LEARNING DISABILITI,9190,DIRECT PAYMENTS               ,04/10/2016,4087100,J1666415                 ,"3,382.52",REDACTED PERSONAL DATA,415446,Social Community Care,CAREFIRST DIRECT PAYMENTS     
SHEFFIELD CITY COUNCIL        ,COMMUNITIES                   ,42034,PURCHASING LEARNING DISABILITI,9190,DIRECT PAYMENTS               ,04/10/2016,4087101,J1666415                 ,430.36,REDACTED PERSONAL DATA,622389,Social Community Care,CAREFIRST DIRECT PAYMENTS     
SHEFFIELD CITY COUNCIL        ,COMMUNITIES                   ,42034,PURCHASING LEARNING DISABILITI,9190,DIRECT PAYMENTS               ,04/10/2016,4087103,J1666415                 ,"2,300.00",REDACTED PERSONAL DATA,622559,Social Community Care,CAREFIRST DIRECT PAYMENTS     
SHEFFIELD CITY COUNCIL        ,COMMUNITIES                   ,46039,ADULT SOCIAL CARE PURCHASING  ,9190,DIRECT PAYMENTS               ,04/10/2016,4087105,J1666415                 ,371.48,REDACTED PERSONAL DATA,622562,Social Community Care,CAREFIRST DIRECT PAYMENTS     
SHEFFIELD CITY COUNCIL        ,COMMUNITIES                   ,46039,ADULT SOCIAL CARE PURCHASING  ,9190,DIRECT PAYMENTS               ,04/10/2016,4087106,J1666415                 ,417.48,REDACTED PERSONAL DATA,622575,Social Community Care,CAREFIRST DIRECT PAYMENTS     
SHEFFIELD CITY COUNCIL        ,COMMUNITIES                   ,42034,PURCHASING LEARNING DISABILITI,9190,DIRECT PAYMENTS               ,04/10/2016,4087108,J1666415                 ,345.20,REDACTED PERSONAL DATA,622683,Social Community Care,CAREFIRST DIRECT PAYMENTS     
SHEFFIELD CITY COUNCIL        ,COMMUNITIES                   ,46039,ADULT SOCIAL CARE PURCHASING  ,9190,DIRECT PAYMENTS               ,04/10/2016,4087109,J1666415                 ,"7,009.08",REDACTED PERSONAL DATA,622723,Social Community Care,CAREFIRST DIRECT PAYMENTS     
SHEFFIELD CITY COUNCIL        ,COMMUNITIES                   ,46039,ADULT SOCIAL CARE PURCHASING  ,9190,FUNDED HOME SUPPORT           ,04/10/2016,4087109,J1666415                 ,690.92,REDACTED PERSONAL DATA,622723,Social Community Care,CAREFIRST DIRECT PAYMENTS     
SHEFFIELD CITY COUNCIL        ,COMMUNITIES                   ,46039,ADULT SOCIAL CARE PURCHASING  ,9190,DIRECT PAYMENTS               ,04/10/2016,4087111,J1666415                 ,705.00,REDACTED PERSONAL DATA,415566,Social Community Care,CAREFIRST DIRECT PAYMENTS     
SHEFFIELD CITY COUNCIL        ,COMMUNITIES                   ,46039,ADULT SOCIAL CARE PURCHASING  ,9190,DIRECT PAYMENTS               ,04/10/2016,4087112,J1666415                 ,460.68,REDACTED PERSONAL DATA,622804,Social Community Care,CAREFIRST DIRECT PAYMENTS     
SHEFFIELD CITY COUNCIL        ,COMMUNITIES                   ,46039,ADULT SOCIAL CARE PURCHASING  ,9190,DIRECT PAYMENTS               ,04/10/2016,4087113,J1666415                 ,"1,820.00",REDACTED PERSONAL DATA,622859,Social Community Care,CAREFIRST DIRECT PAYMENTS     
SHEFFIELD CITY COUNCIL        ,COMMUNITIES                   ,46039,ADULT SOCIAL CARE PURCHASING  ,9190,DIRECT PAYMENTS               ,04/10/2016,4087114,J1666415                 ,"2,744.00",REDACTED PERSONAL DATA,622860,Social Community Care,CAREFIRST DIRECT PAYMENTS     
SHEFFIELD CITY COUNCIL        ,COMMUNITIES                   ,48007,PUBLIC HEALTH DIRECT PAYMENTS ,9190,FUNDED HOME SUPPORT           ,04/10/2016,4087114,J1666415                 ,"1,176.00",REDACTED PERSONAL DATA,622860,Social Community Care,CAREFIRST DIRECT PAYMENTS     
SHEFFIELD CITY COUNCIL        ,COMMUNITIES                   ,46039,ADULT SOCIAL CARE PURCHASING  ,9190,DIRECT PAYMENTS               ,04/10/2016,4087115,J1666415                 ,"1,143.32",REDACTED PERSONAL DATA,622861,Social Community Care,CAREFIRST DIRECT PAYMENTS     
SHEFFIELD CITY COUNCIL        ,COMMUNITIES                   ,46039,ADULT SOCIAL CARE PURCHASING  ,9190,DIRECT PAYMENTS               ,04/10/2016,4087116,J1666415                 ,541.44,REDACTED PERSONAL DATA,622866,Social Community Care,CAREFIRST DIRECT PAYMENTS     
SHEFFIELD CITY COUNCIL        ,COMMUNITIES                   ,42034,PURCHASING LEARNING DISABILITI,9190,FUNDED HOME SUPPORT           ,04/10/2016,4087117,J1666415                 ,"2,233.16",REDACTED PERSONAL DATA,622931,Social Community Care,CAREFIRST DIRECT PAYMENTS     
SHEFFIELD CITY COUNCIL        ,COMMUNITIES                   ,42034,PURCHASING LEARNING DISABILITI,9190,DIRECT PAYMENTS               ,04/10/2016,4087117,J1666415                 ,"4,463.88",REDACTED PERSONAL DATA,622931,Social Community Care,CAREFIRST DIRECT PAYMENTS     
SHEFFIELD CITY COUNCIL        ,COMMUNITIES                   ,42034,PURCHASING LEARNING DISABILITI,9190,DIRECT PAYMENTS               ,04/10/2016,4087118,J1666415                 ,636.12,REDACTED PERSONAL DATA,622975,Social Community Care,CAREFIRST DIRECT PAYMENTS     
SHEFFIELD CITY COUNCIL        ,COMMUNITIES                   ,42034,PURCHASING LEARNING DISABILITI,9190,DIRECT PAYMENTS               ,04/10/2016,4087122,J1666415                 ,"4,196.80",REDACTED PERSONAL DATA,415874,Social Community Care,CAREFIRST DIRECT PAYMENTS     
SHEFFIELD CITY COUNCIL        ,COMMUNITIES                   ,42034,PURCHASING LEARNING DISABILITI,9190,DIRECT PAYMENTS               ,04/10/2016,4087123,J1666415                 ,368.24,REDACTED PERSONAL DATA,623217,Social Community Care,CAREFIRST DIRECT PAYMENTS     
SHEFFIELD CITY COUNCIL        ,COMMUNITIES                   ,46039,ADULT SOCIAL CARE PURCHASING  ,9190,DIRECT PAYMENTS               ,04/10/2016,4087125,J1666415                 ,416.56,REDACTED PERSONAL DATA,623262,Social Community Care,CAREFIRST DIRECT PAYMENTS     
SHEFFIELD CITY COUNCIL        ,COMMUNITIES                   ,46039,ADULT SOCIAL CARE PURCHASING  ,9190,DIRECT PAYMENTS               ,04/10/2016,4087126,J1666415                 ,464.72,REDACTED PERSONAL DATA,623263,Social Community Care,CAREFIRST DIRECT PAYMENTS     
SHEFFIELD CITY COUNCIL        ,COMMUNITIES                   ,46039,ADULT SOCIAL CARE PURCHASING  ,9190,DIRECT PAYMENTS               ,04/10/2016,4087127,J1666415                 ,848.40,REDACTED PERSONAL DATA,623289,Social Community Care,CAREFIRST DIRECT PAYMENTS     
SHEFFIELD CITY COUNCIL        ,COMMUNITIES                   ,46039,ADULT SOCIAL CARE PURCHASING  ,9190,DIRECT PAYMENTS               ,04/10/2016,4087129,J1666415                 ,421.48,REDACTED PERSONAL DATA,623309,Social Community Care,CAREFIRST DIRECT PAYMENTS     
SHEFFIELD CITY COUNCIL        ,COMMUNITIES                   ,42034,PURCHASING LEARNING DISABILITI,9190,DIRECT PAYMENTS               ,04/10/2016,4087130,J1666415                 ,"1,395.32",REDACTED PERSONAL DATA,623590,Social Community Care,CAREFIRST DIRECT PAYMENTS     
SHEFFIELD CITY COUNCIL        ,COMMUNITIES                   ,42034,PURCHASING LEARNING DISABILITI,9190,DIRECT PAYMENTS               ,04/10/2016,4087131,J1666415                 ,"1,661.12",REDACTED PERSONAL DATA,623595,Social Community Care,CAREFIRST DIRECT PAYMENTS     
SHEFFIELD CITY COUNCIL        ,COMMUNITIES                   ,46039,ADULT SOCIAL CARE PURCHASING  ,9190,DIRECT PAYMENTS               ,04/10/2016,4087132,J1666415                 ,"1,652.08",REDACTED PERSONAL DATA,623606,Social Community Care,CAREFIRST DIRECT PAYMENTS     
SHEFFIELD CITY COUNCIL        ,COMMUNITIES                   ,42034,PURCHASING LEARNING DISABILITI,9190,FUNDED HOME SUPPORT           ,04/10/2016,4087133,J1666415                 ,357.80,REDACTED PERSONAL DATA,416916,Social Community Care,CAREFIRST DIRECT PAYMENTS     
SHEFFIELD CITY COUNCIL        ,COMMUNITIES                   ,42034,PURCHASING LEARNING DISABILITI,9190,DIRECT PAYMENTS               ,04/10/2016,4087134,J1666415                 ,"1,694.80",REDACTED PERSONAL DATA,623611,Social Community Care,CAREFIRST DIRECT PAYMENTS     
SHEFFIELD CITY COUNCIL        ,COMMUNITIES                   ,44001,PURCHASING                    ,9190,DIRECT PAYMENTS               ,04/10/2016,4087135,J1666415                 ,"4,041.04",REDACTED PERSONAL DATA,623615,Social Community Care,CAREFIRST DIRECT PAYMENTS     
SHEFFIELD CITY COUNCIL        ,COMMUNITIES                   ,46039,ADULT SOCIAL CARE PURCHASING  ,9190,DIRECT PAYMENTS               ,04/10/2016,4087136,J1666415                 ,"2,691.24",REDACTED PERSONAL DATA,623617,Social Community Care,CAREFIRST DIRECT PAYMENTS     
SHEFFIELD CITY COUNCIL        ,COMMUNITIES                   ,42034,PURCHASING LEARNING DISABILITI,9190,DIRECT PAYMENTS               ,04/10/2016,4087137,J1666415                 ,"1,720.76",REDACTED PERSONAL DATA,623618,Social Community Care,CAREFIRST DIRECT PAYMENTS     
SHEFFIELD CITY COUNCIL        ,COMMUNITIES                   ,42034,PURCHASING LEARNING DISABILITI,9190,DIRECT PAYMENTS               ,04/10/2016,4087138,J1666415                 ,"1,460.72",REDACTED PERSONAL DATA,623630,Social Community Care,CAREFIRST DIRECT PAYMENTS     
SHEFFIELD CITY COUNCIL        ,COMMUNITIES                   ,46039,ADULT SOCIAL CARE PURCHASING  ,9190,DIRECT PAYMENTS               ,04/10/2016,4087139,J1666415                 ,964.12,REDACTED PERSONAL DATA,623664,Social Community Care,CAREFIRST DIRECT PAYMENTS     
SHEFFIELD CITY COUNCIL        ,COMMUNITIES                   ,42034,PURCHASING LEARNING DISABILITI,9190,DIRECT PAYMENTS               ,04/10/2016,4087140,J1666415                 ,973.08,REDACTED PERSONAL DATA,623698,Social Community Care,CAREFIRST DIRECT PAYMENTS     
SHEFFIELD CITY COUNCIL        ,COMMUNITIES                   ,42034,PURCHASING LEARNING DISABILITI,9190,DIRECT PAYMENTS               ,04/10/2016,4087141,J1666415                 ,"2,278.48",REDACTED PERSONAL DATA,623768,Social Community Care,CAREFIRST DIRECT PAYMENTS     
SHEFFIELD CITY COUNCIL        ,COMMUNITIES                   ,42034,PURCHASING LEARNING DISABILITI,9190,DIRECT PAYMENTS               ,04/10/2016,4087142,J1666415                 ,"1,044.00",REDACTED PERSONAL DATA,623980,Social Community Care,CAREFIRST DIRECT PAYMENTS     
SHEFFIELD CITY COUNCIL        ,COMMUNITIES                   ,46039,ADULT SOCIAL CARE PURCHASING  ,9190,DIRECT PAYMENTS               ,04/10/2016,4087143,J1666415                 ,"1,926.00",REDACTED PERSONAL DATA,623981,Social Community Care,CAREFIRST DIRECT PAYMENTS     
SHEFFIELD CITY COUNCIL        ,COMMUNITIES                   ,46039,ADULT SOCIAL CARE PURCHASING  ,9190,DIRECT PAYMENTS               ,04/10/2016,4087144,J1666415                 ,"3,041.64",REDACTED PERSONAL DATA,417756,Social Community Care,CAREFIRST DIRECT PAYMENTS     
SHEFFIELD CITY COUNCIL        ,COMMUNITIES                   ,46039,ADULT SOCIAL CARE PURCHASING  ,9190,FUNDED HOME SUPPORT           ,04/10/2016,4087144,J1666415                 ,564.52,REDACTED PERSONAL DATA,417756,Social Community Care,CAREFIRST DIRECT PAYMENTS     
SHEFFIELD CITY COUNCIL        ,COMMUNITIES                   ,46039,ADULT SOCIAL CARE PURCHASING  ,9190,DIRECT PAYMENTS               ,04/10/2016,4087145,J1666415                 ,294.00,REDACTED PERSONAL DATA,623985,Social Community Care,CAREFIRST DIRECT PAYMENTS     
SHEFFIELD CITY COUNCIL        ,COMMUNITIES                   ,46039,ADULT SOCIAL CARE PURCHASING  ,9190,DIRECT PAYMENTS               ,04/10/2016,4087146,J1666415                 ,"1,083.00",REDACTED PERSONAL DATA,623986,Social Community Care,CAREFIRST DIRECT PAYMENTS     
SHEFFIELD CITY COUNCIL        ,COMMUNITIES                   ,46039,ADULT SOCIAL CARE PURCHASING  ,9190,DIRECT PAYMENTS               ,04/10/2016,4087147,J1666415                 ,"1,431.68",REDACTED PERSONAL DATA,623995,Social Community Care,CAREFIRST DIRECT PAYMENTS     
SHEFFIELD CITY COUNCIL        ,COMMUNITIES                   ,42034,PURCHASING LEARNING DISABILITI,9190,DIRECT PAYMENTS               ,04/10/2016,4087149,J1666415                 ,574.00,REDACTED PERSONAL DATA,624197,Social Community Care,CAREFIRST DIRECT PAYMENTS     
SHEFFIELD CITY COUNCIL        ,COMMUNITIES                   ,42034,PURCHASING LEARNING DISABILITI,9190,DIRECT PAYMENTS               ,04/10/2016,4087150,J1666415                 ,485.92,REDACTED PERSONAL DATA,624221,Social Community Care,CAREFIRST DIRECT PAYMENTS     
SHEFFIELD CITY COUNCIL        ,COMMUNITIES                   ,42034,PURCHASING LEARNING DISABILITI,9190,DIRECT PAYMENTS               ,04/10/2016,4087151,J1666415                 ,"2,678.64",NEWFIELD VIEW SUPPORTED LIVING LTD      ,624288,Social Community Care,CAREFIRST DIRECT PAYMENTS     
SHEFFIELD CITY COUNCIL        ,COMMUNITIES                   ,46039,ADULT SOCIAL CARE PURCHASING  ,9190,DIRECT PAYMENTS               ,04/10/2016,4087151,J1666415                 ,"1,751.93",NEWFIELD VIEW SUPPORTED LIVING LTD      ,624288,Social Community Care,CAREFIRST DIRECT PAYMENTS     
SHEFFIELD CITY COUNCIL        ,COMMUNITIES                   ,42034,PURCHASING LEARNING DISABILITI,9190,DIRECT PAYMENTS               ,04/10/2016,4087152,J1666415                 ,288.00,REDACTED PERSONAL DATA,624397,Social Community Care,CAREFIRST DIRECT PAYMENTS     
SHEFFIELD CITY COUNCIL        ,COMMUNITIES                   ,46039,ADULT SOCIAL CARE PURCHASING  ,9190,DIRECT PAYMENTS               ,04/10/2016,4087153,J1666415                 ,520.80,REDACTED PERSONAL DATA,624398,Social Community Care,CAREFIRST DIRECT PAYMENTS     
SHEFFIELD CITY COUNCIL        ,COMMUNITIES                   ,46039,ADULT SOCIAL CARE PURCHASING  ,9190,DIRECT PAYMENTS               ,04/10/2016,4087154,J1666415                 ,"1,013.28",REDACTED PERSONAL DATA,624543,Social Community Care,CAREFIRST DIRECT PAYMENTS     
SHEFFIELD CITY COUNCIL        ,COMMUNITIES                   ,42034,PURCHASING LEARNING DISABILITI,9190,DIRECT PAYMENTS               ,04/10/2016,4087155,J1666415                 ,808.48,REDACTED PERSONAL DATA,417760,Social Community Care,CAREFIRST DIRECT PAYMENTS     
SHEFFIELD CITY COUNCIL        ,COMMUNITIES                   ,46039,ADULT SOCIAL CARE PURCHASING  ,9190,DIRECT PAYMENTS               ,04/10/2016,4087156,J1666415                 ,457.20,REDACTED PERSONAL DATA,624545,Social Community Care,CAREFIRST DIRECT PAYMENTS     
SHEFFIELD CITY COUNCIL        ,COMMUNITIES                   ,46039,ADULT SOCIAL CARE PURCHASING  ,9190,DIRECT PAYMENTS               ,04/10/2016,4087157,J1666415                 ,960.08,REDACTED PERSONAL DATA,624615,Social Community Care,CAREFIRST DIRECT PAYMENTS     
SHEFFIELD CITY COUNCIL        ,COMMUNITIES                   ,46039,ADULT SOCIAL CARE PURCHASING  ,9190,DIRECT PAYMENTS               ,04/10/2016,4087159,J1666415                 ,473.84,REDACTED PERSONAL DATA,624677,Social Community Care,CAREFIRST DIRECT PAYMENTS     
SHEFFIELD CITY COUNCIL        ,COMMUNITIES                   ,46039,ADULT SOCIAL CARE PURCHASING  ,9190,DIRECT PAYMENTS               ,04/10/2016,4087160,J1666415                 ,"2,012.40",REDACTED PERSONAL DATA,624802,Social Community Care,CAREFIRST DIRECT PAYMENTS     
SHEFFIELD CITY COUNCIL        ,COMMUNITIES                   ,42034,PURCHASING LEARNING DISABILITI,9190,DIRECT PAYMENTS               ,04/10/2016,4087161,J1666415                 ,"1,229.28",REDACTED PERSONAL DATA,624851,Social Community Care,CAREFIRST DIRECT PAYMENTS     
SHEFFIELD CITY COUNCIL        ,COMMUNITIES                   ,46039,ADULT SOCIAL CARE PURCHASING  ,9190,DIRECT PAYMENTS               ,04/10/2016,4087164,J1666415                 ,979.88,REDACTED PERSONAL DATA,624919,Social Community Care,CAREFIRST DIRECT PAYMENTS     
SHEFFIELD CITY COUNCIL        ,COMMUNITIES                   ,46039,ADULT SOCIAL CARE PURCHASING  ,9190,DIRECT PAYMENTS               ,04/10/2016,4087165,J1666415                 ,351.12,REDACTED PERSONAL DATA,624945,Social Community Care,CAREFIRST DIRECT PAYMENTS     
SHEFFIELD CITY COUNCIL        ,COMMUNITIES                   ,46039,ADULT SOCIAL CARE PURCHASING  ,9190,DIRECT PAYMENTS               ,04/10/2016,4087166,J1666415                 ,681.68,REDACTED PERSONAL DATA,417763,Social Community Care,CAREFIRST DIRECT PAYMENTS     
SHEFFIELD CITY COUNCIL        ,COMMUNITIES                   ,46039,ADULT SOCIAL CARE PURCHASING  ,9190,DIRECT PAYMENTS               ,04/10/2016,4087167,J1666415                 ,"1,227.08",REDACTED PERSONAL DATA,625008,Social Community Care,CAREFIRST DIRECT PAYMENTS     
SHEFFIELD CITY COUNCIL        ,COMMUNITIES                   ,42034,PURCHASING LEARNING DISABILITI,9190,DIRECT PAYMENTS               ,04/10/2016,4087171,J1666415                 ,"1,867.84",REDACTED PERSONAL DATA,625381,Social Community Care,CAREFIRST DIRECT PAYMENTS     
SHEFFIELD CITY COUNCIL        ,COMMUNITIES                   ,46039,ADULT SOCIAL CARE PURCHASING  ,9190,DIRECT PAYMENTS               ,04/10/2016,4087172,J1666415                 ,692.28,REDACTED PERSONAL DATA,625384,Social Community Care,CAREFIRST DIRECT PAYMENTS     
SHEFFIELD CITY COUNCIL        ,COMMUNITIES                   ,46039,ADULT SOCIAL CARE PURCHASING  ,9190,DIRECT PAYMENTS               ,04/10/2016,4087175,J1666415                 ,684.88,REDACTED PERSONAL DATA,625404,Social Community Care,CAREFIRST DIRECT PAYMENTS     
SHEFFIELD CITY COUNCIL        ,COMMUNITIES                   ,46039,ADULT SOCIAL CARE PURCHASING  ,9190,DIRECT PAYMENTS               ,04/10/2016,4087176,J1666415                 ,694.28,REDACTED PERSONAL DATA,625405,Social Community Care,CAREFIRST DIRECT PAYMENTS     
SHEFFIELD CITY COUNCIL        ,COMMUNITIES                   ,46039,ADULT SOCIAL CARE PURCHASING  ,9190,DIRECT PAYMENTS               ,04/10/2016,4087178,J1666415                 ,"2,058.52",REDACTED PERSONAL DATA,417764,Social Community Care,CAREFIRST DIRECT PAYMENTS     
SHEFFIELD CITY COUNCIL        ,COMMUNITIES                   ,46039,ADULT SOCIAL CARE PURCHASING  ,9190,DIRECT PAYMENTS               ,04/10/2016,4087179,J1666415                 ,"2,016.32",REDACTED PERSONAL DATA,625456,Social Community Care,CAREFIRST DIRECT PAYMENTS     
SHEFFIELD CITY COUNCIL        ,COMMUNITIES                   ,42034,PURCHASING LEARNING DISABILITI,9190,DIRECT PAYMENTS               ,04/10/2016,4087181,J1666415                 ,"1,689.68",REDACTED PERSONAL DATA,625513,Social Community Care,CAREFIRST DIRECT PAYMENTS     
SHEFFIELD CITY COUNCIL        ,COMMUNITIES                   ,42034,PURCHASING LEARNING DISABILITI,9190,DIRECT PAYMENTS               ,04/10/2016,4087182,J1666415                 ,261.60,REDACTED PERSONAL DATA,625525,Social Community Care,CAREFIRST DIRECT PAYMENTS     
SHEFFIELD CITY COUNCIL        ,COMMUNITIES                   ,42034,PURCHASING LEARNING DISABILITI,9190,DIRECT PAYMENTS               ,04/10/2016,4087183,J1666415                 ,345.20,REDACTED PERSONAL DATA,625583,Social Community Care,CAREFIRST DIRECT PAYMENTS     
SHEFFIELD CITY COUNCIL        ,COMMUNITIES                   ,42034,PURCHASING LEARNING DISABILITI,9190,DIRECT PAYMENTS               ,04/10/2016,4087186,J1666415                 ,867.12,REDACTED PERSONAL DATA,625793,Social Community Care,CAREFIRST DIRECT PAYMENTS     
SHEFFIELD CITY COUNCIL        ,COMMUNITIES                   ,42034,PURCHASING LEARNING DISABILITI,9190,FUNDED HOME SUPPORT           ,04/10/2016,4087187,J1666415                 ,432.40,REDACTED PERSONAL DATA,625821,Social Community Care,CAREFIRST DIRECT PAYMENTS     
SHEFFIELD CITY COUNCIL        ,COMMUNITIES                   ,42034,PURCHASING LEARNING DISABILITI,9190,DIRECT PAYMENTS               ,04/10/2016,4087187,J1666415                 ,"1,816.08",REDACTED PERSONAL DATA,625821,Social Community Care,CAREFIRST DIRECT PAYMENTS     
SHEFFIELD CITY COUNCIL        ,COMMUNITIES                   ,46039,ADULT SOCIAL CARE PURCHASING  ,9190,DIRECT PAYMENTS               ,04/10/2016,4087188,J1666415                 ,541.80,REDACTED PERSONAL DATA,625860,Social Community Care,CAREFIRST DIRECT PAYMENTS     
SHEFFIELD CITY COUNCIL        ,COMMUNITIES                   ,46039,ADULT SOCIAL CARE PURCHASING  ,9190,DIRECT PAYMENTS               ,04/10/2016,4087189,J1666415                 ,810.76,REDACTED PERSONAL DATA,418057,Social Community Care,CAREFIRST DIRECT PAYMENTS     
SHEFFIELD CITY COUNCIL        ,COMMUNITIES                   ,42034,PURCHASING LEARNING DISABILITI,9190,DIRECT PAYMENTS               ,04/10/2016,4087190,J1666415                 ,263.68,REDACTED PERSONAL DATA,625918,Social Community Care,CAREFIRST DIRECT PAYMENTS     
SHEFFIELD CITY COUNCIL        ,COMMUNITIES                   ,46039,ADULT SOCIAL CARE PURCHASING  ,9190,DIRECT PAYMENTS               ,04/10/2016,4087191,J1666415                 ,736.00,REDACTED PERSONAL DATA,625919,Social Community Care,CAREFIRST DIRECT PAYMENTS     
SHEFFIELD CITY COUNCIL        ,COMMUNITIES                   ,46039,ADULT SOCIAL CARE PURCHASING  ,9190,DIRECT PAYMENTS               ,04/10/2016,4087192,J1666415                 ,"1,975.72",REDACTED PERSONAL DATA,625931,Social Community Care,CAREFIRST DIRECT PAYMENTS     
SHEFFIELD CITY COUNCIL        ,COMMUNITIES                   ,46039,ADULT SOCIAL CARE PURCHASING  ,9190,DIRECT PAYMENTS               ,04/10/2016,4087194,J1666415                 ,"1,159.04",REDACTED PERSONAL DATA,626025,Social Community Care,CAREFIRST DIRECT PAYMENTS     
SHEFFIELD CITY COUNCIL        ,CYPF                          ,39148,DIRECT PAYMENTS               ,9190,DIRECT PAYMENTS               ,04/10/2016,4087196,J1666415                 ,472.80,REDACTED PERSONAL DATA,626080,Unclassified Non Trade,OUT OF SCOPE FOR SIC MONITORIN
SHEFFIELD CITY COUNCIL        ,COMMUNITIES                   ,46039,ADULT SOCIAL CARE PURCHASING  ,9190,DIRECT PAYMENTS               ,04/10/2016,4087197,J1666415                 ,702.00,REDACTED PERSONAL DATA,626081,Social Community Care,CAREFIRST DIRECT PAYMENTS     
SHEFFIELD CITY COUNCIL        ,COMMUNITIES                   ,46039,ADULT SOCIAL CARE PURCHASING  ,9190,DIRECT PAYMENTS               ,04/10/2016,4087198,J1666415                 ,546.00,REDACTED PERSONAL DATA,626084,Social Community Care,CAREFIRST DIRECT PAYMENTS     
SHEFFIELD CITY COUNCIL        ,COMMUNITIES                   ,46039,ADULT SOCIAL CARE PURCHASING  ,9190,DIRECT PAYMENTS               ,04/10/2016,4087200,J1666415                 ,590.56,REDACTED PERSONAL DATA,626592,Social Community Care,CAREFIRST DIRECT PAYMENTS     
SHEFFIELD CITY COUNCIL        ,COMMUNITIES                   ,42034,PURCHASING LEARNING DISABILITI,9190,DIRECT PAYMENTS               ,04/10/2016,4087201,J1666415                 ,"1,387.80",REDACTED PERSONAL DATA,418197,Social Community Care,CAREFIRST DIRECT PAYMENTS     
SHEFFIELD CITY COUNCIL        ,COMMUNITIES                   ,46039,ADULT SOCIAL CARE PURCHASING  ,9190,DIRECT PAYMENTS               ,04/10/2016,4087202,J1666415                 ,"1,274.00",REDACTED PERSONAL DATA,626701,Social Community Care,CAREFIRST DIRECT PAYMENTS     
SHEFFIELD CITY COUNCIL        ,COMMUNITIES                   ,46039,ADULT SOCIAL CARE PURCHASING  ,9190,DIRECT PAYMENTS               ,04/10/2016,4087203,J1666415                 ,531.56,REDACTED PERSONAL DATA,626881,Social Community Care,CAREFIRST DIRECT PAYMENTS     
SHEFFIELD CITY COUNCIL        ,COMMUNITIES                   ,46039,ADULT SOCIAL CARE PURCHASING  ,9190,DIRECT PAYMENTS               ,04/10/2016,4087205,J1666415                 ,711.28,REDACTED PERSONAL DATA,626886,Social Community Care,CAREFIRST DIRECT PAYMENTS     
SHEFFIELD CITY COUNCIL        ,COMMUNITIES                   ,46039,ADULT SOCIAL CARE PURCHASING  ,9190,DIRECT PAYMENTS               ,04/10/2016,4087207,J1666415                 ,632.12,REDACTED PERSONAL DATA,627530,Social Community Care,CAREFIRST DIRECT PAYMENTS     
SHEFFIELD CITY COUNCIL        ,COMMUNITIES                   ,42034,PURCHASING LEARNING DISABILITI,9190,DIRECT PAYMENTS               ,04/10/2016,4087208,J1666415                 ,707.40,REDACTED PERSONAL DATA,627546,Social Community Care,CAREFIRST DIRECT PAYMENTS     
SHEFFIELD CITY COUNCIL        ,COMMUNITIES                   ,42034,PURCHASING LEARNING DISABILITI,9190,DIRECT PAYMENTS               ,04/10/2016,4087210,J1666415                 ,690.40,REDACTED PERSONAL DATA,627593,Social Community Care,CAREFIRST DIRECT PAYMENTS     
SHEFFIELD CITY COUNCIL        ,COMMUNITIES                   ,42034,PURCHASING LEARNING DISABILITI,9190,DIRECT PAYMENTS               ,04/10/2016,4087212,J1666415                 ,"1,393.28",REDACTED PERSONAL DATA,418488,Social Community Care,CAREFIRST DIRECT PAYMENTS     
SHEFFIELD CITY COUNCIL        ,COMMUNITIES                   ,46039,ADULT SOCIAL CARE PURCHASING  ,9190,DIRECT PAYMENTS               ,04/10/2016,4087214,J1666415                 ,488.00,REDACTED PERSONAL DATA,627809,Social Community Care,CAREFIRST DIRECT PAYMENTS     
SHEFFIELD CITY COUNCIL        ,COMMUNITIES                   ,42034,PURCHASING LEARNING DISABILITI,9190,DIRECT PAYMENTS               ,04/10/2016,4087216,J1666415                 ,"6,034.88",REDACTED PERSONAL DATA,628061,Social Community Care,CAREFIRST DIRECT PAYMENTS     
SHEFFIELD CITY COUNCIL        ,COMMUNITIES                   ,46039,ADULT SOCIAL CARE PURCHASING  ,9190,DIRECT PAYMENTS               ,04/10/2016,4087217,J1666415                 ,707.96,REDACTED PERSONAL DATA,628077,Social Community Care,CAREFIRST DIRECT PAYMENTS     
SHEFFIELD CITY COUNCIL        ,COMMUNITIES                   ,42034,PURCHASING LEARNING DISABILITI,9190,FUNDED HOME SUPPORT           ,04/10/2016,4087218,J1666415                 ,"2,250.00",REDACTED PERSONAL DATA,628080,Social Community Care,CAREFIRST DIRECT PAYMENTS     
SHEFFIELD CITY COUNCIL        ,COMMUNITIES                   ,46039,ADULT SOCIAL CARE PURCHASING  ,9190,DIRECT PAYMENTS               ,04/10/2016,4087220,J1666415                 ,"1,025.00",REDACTED PERSONAL DATA,628164,Social Community Care,CAREFIRST DIRECT PAYMENTS     
SHEFFIELD CITY COUNCIL        ,CYPF                          ,39148,DIRECT PAYMENTS               ,9190,DIRECT PAYMENTS               ,04/10/2016,4087221,J1666415                 ,315.00,REDACTED PERSONAL DATA,628165,Social Community Care,CAREFIRST DIRECT PAYMENTS     
SHEFFIELD CITY COUNCIL        ,COMMUNITIES                   ,42034,PURCHASING LEARNING DISABILITI,9190,DIRECT PAYMENTS               ,04/10/2016,4087223,J1666415                 ,"1,056.44",REDACTED PERSONAL DATA,419371,Social Community Care,CAREFIRST DIRECT PAYMENTS     
SHEFFIELD CITY COUNCIL        ,COMMUNITIES                   ,46039,ADULT SOCIAL CARE PURCHASING  ,9190,DIRECT PAYMENTS               ,04/10/2016,4087225,J1666415                 ,541.80,REDACTED PERSONAL DATA,628355,Social Community Care,CAREFIRST DIRECT PAYMENTS     
SHEFFIELD CITY COUNCIL        ,COMMUNITIES                   ,42034,PURCHASING LEARNING DISABILITI,9190,DIRECT PAYMENTS               ,04/10/2016,4087226,J1666415                 ,250.00,REDACTED PERSONAL DATA,628530,Social Community Care,CAREFIRST DIRECT PAYMENTS     
SHEFFIELD CITY COUNCIL        ,COMMUNITIES                   ,42034,PURCHASING LEARNING DISABILITI,9190,DIRECT PAYMENTS               ,04/10/2016,4087228,J1666415                 ,"5,496.28",REDACTED PERSONAL DATA,628735,Social Community Care,CAREFIRST DIRECT PAYMENTS     
SHEFFIELD CITY COUNCIL        ,COMMUNITIES                   ,46039,ADULT SOCIAL CARE PURCHASING  ,9190,DIRECT PAYMENTS               ,04/10/2016,4087229,J1666415                 ,652.72,REDACTED PERSONAL DATA,628736,Social Community Care,CAREFIRST DIRECT PAYMENTS     
SHEFFIELD CITY COUNCIL        ,COMMUNITIES                   ,42034,PURCHASING LEARNING DISABILITI,9190,DIRECT PAYMENTS               ,04/10/2016,4087230,J1666415                 ,524.52,REDACTED PERSONAL DATA,628949,Unclassified Non Trade,OUT OF SCOPE FOR SIC MONITORIN
SHEFFIELD CITY COUNCIL        ,COMMUNITIES                   ,42034,PURCHASING LEARNING DISABILITI,9190,DIRECT PAYMENTS               ,04/10/2016,4087231,J1666415                 ,"1,376.40",REDACTED PERSONAL DATA,628952,Social Community Care,CAREFIRST DIRECT PAYMENTS     
SHEFFIELD CITY COUNCIL        ,COMMUNITIES                   ,46039,ADULT SOCIAL CARE PURCHASING  ,9190,DIRECT PAYMENTS               ,04/10/2016,4087233,J1666415                 ,"3,431.40",REDACTED PERSONAL DATA,628985,Social Community Care,CAREFIRST DIRECT PAYMENTS     
SHEFFIELD CITY COUNCIL        ,COMMUNITIES                   ,46039,ADULT SOCIAL CARE PURCHASING  ,9190,DIRECT PAYMENTS               ,04/10/2016,4087234,J1666415                 ,555.60,REDACTED PERSONAL DATA,419377,Social Community Care,CAREFIRST DIRECT PAYMENTS     
SHEFFIELD CITY COUNCIL        ,COMMUNITIES                   ,42034,PURCHASING LEARNING DISABILITI,9190,DIRECT PAYMENTS               ,04/10/2016,4087235,J1666415                 ,358.40,REDACTED PERSONAL DATA,628988,Social Community Care,CAREFIRST DIRECT PAYMENTS     
SHEFFIELD CITY COUNCIL        ,COMMUNITIES                   ,42034,PURCHASING LEARNING DISABILITI,9190,DIRECT PAYMENTS               ,04/10/2016,4087236,J1666415                 ,"2,456.80",REDACTED PERSONAL DATA,628989,Social Community Care,CAREFIRST DIRECT PAYMENTS     
SHEFFIELD CITY COUNCIL        ,COMMUNITIES                   ,46039,ADULT SOCIAL CARE PURCHASING  ,9190,DIRECT PAYMENTS               ,04/10/2016,4087238,J1666415                 ,567.60,REDACTED PERSONAL DATA,629064,Social Community Care,CAREFIRST DIRECT PAYMENTS     
SHEFFIELD CITY COUNCIL        ,COMMUNITIES                   ,46039,ADULT SOCIAL CARE PURCHASING  ,9190,DIRECT PAYMENTS               ,04/10/2016,4087240,J1666415                 ,676.00,REDACTED PERSONAL DATA,629246,Social Community Care,CAREFIRST DIRECT PAYMENTS     
SHEFFIELD CITY COUNCIL        ,COMMUNITIES                   ,46039,ADULT SOCIAL CARE PURCHASING  ,9190,DIRECT PAYMENTS               ,04/10/2016,4087243,J1666415                 ,660.64,REDACTED PERSONAL DATA,629505,Social Community Care,CAREFIRST DIRECT PAYMENTS     
SHEFFIELD CITY COUNCIL        ,CYPF                          ,39148,DIRECT PAYMENTS               ,9190,DIRECT PAYMENTS               ,04/10/2016,4087244,J1666415                 ,501.08,REDACTED PERSONAL DATA,629506,Social Community Care,CAREFIRST DIRECT PAYMENTS     
SHEFFIELD CITY COUNCIL        ,COMMUNITIES                   ,46039,ADULT SOCIAL CARE PURCHASING  ,9190,DIRECT PAYMENTS               ,04/10/2016,4087244,J1666415                 ,430.72,REDACTED PERSONAL DATA,629506,Social Community Care,CAREFIRST DIRECT PAYMENTS     
SHEFFIELD CITY COUNCIL        ,COMMUNITIES                   ,42034,PURCHASING LEARNING DISABILITI,9190,DIRECT PAYMENTS               ,04/10/2016,4087245,J1666415                 ,"2,512.68",REDACTED PERSONAL DATA,419380,Social Community Care,CAREFIRST DIRECT PAYMENTS     
SHEFFIELD CITY COUNCIL        ,COMMUNITIES                   ,46039,ADULT SOCIAL CARE PURCHASING  ,9190,DIRECT PAYMENTS               ,04/10/2016,4087246,J1666415                 ,932.96,REDACTED PERSONAL DATA,629550,Social Community Care,CAREFIRST DIRECT PAYMENTS     
SHEFFIELD CITY COUNCIL        ,COMMUNITIES                   ,42034,PURCHASING LEARNING DISABILITI,9190,DIRECT PAYMENTS               ,04/10/2016,4087247,J1666415                 ,"2,292.32",REDACTED PERSONAL DATA,629801,Social Community Care,CAREFIRST DIRECT PAYMENTS     
SHEFFIELD CITY COUNCIL        ,COMMUNITIES                   ,42034,PURCHASING LEARNING DISABILITI,9190,DIRECT PAYMENTS               ,04/10/2016,4087248,J1666415                 ,800.00,REDACTED PERSONAL DATA,629809,Social Community Care,CAREFIRST DIRECT PAYMENTS     
SHEFFIELD CITY COUNCIL        ,COMMUNITIES                   ,42034,PURCHASING LEARNING DISABILITI,9190,FUNDED HOME SUPPORT           ,04/10/2016,4087248,J1666415                 ,254.00,REDACTED PERSONAL DATA,629809,Social Community Care,CAREFIRST DIRECT PAYMENTS     
SHEFFIELD CITY COUNCIL        ,COMMUNITIES                   ,46039,ADULT SOCIAL CARE PURCHASING  ,9190,DIRECT PAYMENTS               ,04/10/2016,4087249,J1666415                 ,434.72,REDACTED PERSONAL DATA,629844,Social Community Care,CAREFIRST DIRECT PAYMENTS     
SHEFFIELD CITY COUNCIL        ,COMMUNITIES                   ,42034,PURCHASING LEARNING DISABILITI,9190,DIRECT PAYMENTS               ,04/10/2016,4087251,J1666415                 ,410.40,REDACTED PERSONAL DATA,629852,Social Community Care,CAREFIRST DIRECT PAYMENTS     
SHEFFIELD CITY COUNCIL        ,COMMUNITIES                   ,46039,ADULT SOCIAL CARE PURCHASING  ,9190,DIRECT PAYMENTS               ,04/10/2016,4087254,J1666415                 ,"1,523.24",REDACTED PERSONAL DATA,630119,Social Community Care,CAREFIRST DIRECT PAYMENTS     
SHEFFIELD CITY COUNCIL        ,COMMUNITIES                   ,46039,ADULT SOCIAL CARE PURCHASING  ,9190,DIRECT PAYMENTS               ,04/10/2016,4087256,J1666415                 ,"1,641.24",REDACTED PERSONAL DATA,420033,Social Community Care,CAREFIRST DIRECT PAYMENTS     
SHEFFIELD CITY COUNCIL        ,COMMUNITIES                   ,46039,ADULT SOCIAL CARE PURCHASING  ,9190,FUNDED HOME SUPPORT           ,04/10/2016,4087256,J1666415                 ,"1,250.84",REDACTED PERSONAL DATA,420033,Social Community Care,CAREFIRST DIRECT PAYMENTS     
SHEFFIELD CITY COUNCIL        ,COMMUNITIES                   ,46039,ADULT SOCIAL CARE PURCHASING  ,9190,DIRECT PAYMENTS               ,04/10/2016,4087257,J1666415                 ,383.92,REDACTED PERSONAL DATA,630261,Social Community Care,CAREFIRST DIRECT PAYMENTS     
SHEFFIELD CITY COUNCIL        ,COMMUNITIES                   ,42034,PURCHASING LEARNING DISABILITI,9190,DIRECT PAYMENTS               ,04/10/2016,4087258,J1666415                 ,479.96,REDACTED PERSONAL DATA,630264,Social Community Care,CAREFIRST DIRECT PAYMENTS     
SHEFFIELD CITY COUNCIL        ,COMMUNITIES                   ,46039,ADULT SOCIAL CARE PURCHASING  ,9190,DIRECT PAYMENTS               ,04/10/2016,4087259,J1666415                 ,"1,264.20",REDACTED PERSONAL DATA,630265,Social Community Care,CAREFIRST DIRECT PAYMENTS     
SHEFFIELD CITY COUNCIL        ,COMMUNITIES                   ,46039,ADULT SOCIAL CARE PURCHASING  ,9190,DIRECT PAYMENTS               ,04/10/2016,4087260,J1666415                 ,925.00,REDACTED PERSONAL DATA,630481,Social Community Care,CAREFIRST DIRECT PAYMENTS     
SHEFFIELD CITY COUNCIL        ,COMMUNITIES                   ,46039,ADULT SOCIAL CARE PURCHASING  ,9190,DIRECT PAYMENTS               ,04/10/2016,4087262,J1666415                 ,"4,270.68",CUSTOM HOME CARE LTD                    ,630522,Social Community Care,CAREFIRST DIRECT PAYMENTS     
SHEFFIELD CITY COUNCIL        ,COMMUNITIES                   ,42034,PURCHASING LEARNING DISABILITI,9190,FUNDED HOME SUPPORT           ,04/10/2016,4087264,J1666415                 ,"1,554.00",REDACTED PERSONAL DATA,630700,Social Community Care,CAREFIRST DIRECT PAYMENTS     
SHEFFIELD CITY COUNCIL        ,COMMUNITIES                   ,42034,PURCHASING LEARNING DISABILITI,9190,DIRECT PAYMENTS               ,04/10/2016,4087264,J1666415                 ,"5,128.20",REDACTED PERSONAL DATA,630700,Social Community Care,CAREFIRST DIRECT PAYMENTS     
SHEFFIELD CITY COUNCIL        ,COMMUNITIES                   ,46039,ADULT SOCIAL CARE PURCHASING  ,9190,DIRECT PAYMENTS               ,04/10/2016,4087266,J1666415                 ,"1,708.08",REDACTED PERSONAL DATA,630914,Social Community Care,CAREFIRST DIRECT PAYMENTS     
SHEFFIELD CITY COUNCIL        ,COMMUNITIES                   ,46039,ADULT SOCIAL CARE PURCHASING  ,9190,DIRECT PAYMENTS               ,04/10/2016,4087267,J1666415                 ,573.56,REDACTED PERSONAL DATA,420601,Social Community Care,CAREFIRST DIRECT PAYMENTS     
SHEFFIELD CITY COUNCIL        ,COMMUNITIES                   ,46039,ADULT SOCIAL CARE PURCHASING  ,9190,DIRECT PAYMENTS               ,04/10/2016,4087269,J1666415                 ,"1,174.96",REDACTED PERSONAL DATA,630970,Social Community Care,CAREFIRST DIRECT PAYMENTS     
SHEFFIELD CITY COUNCIL        ,COMMUNITIES                   ,46039,ADULT SOCIAL CARE PURCHASING  ,9190,DIRECT PAYMENTS               ,04/10/2016,4087270,J1666415                 ,532.20,REDACTED PERSONAL DATA,630978,Social Community Care,CAREFIRST DIRECT PAYMENTS     
SHEFFIELD CITY COUNCIL        ,COMMUNITIES                   ,46039,ADULT SOCIAL CARE PURCHASING  ,9190,DIRECT PAYMENTS               ,04/10/2016,4087271,J1666415                 ,731.80,REDACTED PERSONAL DATA,631032,Unclassified Non Trade,OUT OF SCOPE FOR SIC MONITORIN
SHEFFIELD CITY COUNCIL        ,COMMUNITIES                   ,42034,PURCHASING LEARNING DISABILITI,9190,DIRECT PAYMENTS               ,04/10/2016,4087272,J1666415                 ,"3,626.48",REDACTED PERSONAL DATA,631135,Social Community Care,CAREFIRST DIRECT PAYMENTS     
SHEFFIELD CITY COUNCIL        ,COMMUNITIES                   ,46039,ADULT SOCIAL CARE PURCHASING  ,9190,DIRECT PAYMENTS               ,04/10/2016,4087273,J1666415                 ,"1,680.00",REDACTED PERSONAL DATA,631136,Social Community Care,CAREFIRST DIRECT PAYMENTS     
SHEFFIELD CITY COUNCIL        ,COMMUNITIES                   ,42034,PURCHASING LEARNING DISABILITI,9190,DIRECT PAYMENTS               ,04/10/2016,4087274,J1666415                 ,"3,331.36",REDACTED PERSONAL DATA,631141,Social Community Care,CAREFIRST DIRECT PAYMENTS     
SHEFFIELD CITY COUNCIL        ,CYPF                          ,39148,DIRECT PAYMENTS               ,9190,DIRECT PAYMENTS               ,04/10/2016,4087276,J1666415                 ,331.84,REDACTED PERSONAL DATA,631145,Social Community Care,CAREFIRST DIRECT PAYMENTS     
SHEFFIELD CITY COUNCIL        ,COMMUNITIES                   ,42034,PURCHASING LEARNING DISABILITI,9190,DIRECT PAYMENTS               ,04/10/2016,4087277,J1666415                 ,"1,246.56",REDACTED PERSONAL DATA,631170,Social Community Care,CAREFIRST DIRECT PAYMENTS     
SHEFFIELD CITY COUNCIL        ,COMMUNITIES                   ,42034,PURCHASING LEARNING DISABILITI,9190,DIRECT PAYMENTS               ,04/10/2016,4087278,J1666415                 ,"1,299.72",REDACTED PERSONAL DATA,421185,Social Community Care,CAREFIRST DIRECT PAYMENTS     
SHEFFIELD CITY COUNCIL        ,COMMUNITIES                   ,44001,PURCHASING                    ,9190,DIRECT PAYMENTS               ,04/10/2016,4087279,J1666415                 ,"8,460.71",RETHINK MHREC                           ,631266,Social Community Care,CAREFIRST DIRECT PAYMENTS     
SHEFFIELD CITY COUNCIL        ,COMMUNITIES                   ,46039,ADULT SOCIAL CARE PURCHASING  ,9190,DIRECT PAYMENTS               ,04/10/2016,4087280,J1666415                 ,"1,707.16",REDACTED PERSONAL DATA,631280,Social Community Care,CAREFIRST DIRECT PAYMENTS     
SHEFFIELD CITY COUNCIL        ,COMMUNITIES                   ,46039,ADULT SOCIAL CARE PURCHASING  ,9190,DIRECT PAYMENTS               ,04/10/2016,4087281,J1666415                 ,"1,079.96",REDACTED PERSONAL DATA,631281,Social Community Care,CAREFIRST DIRECT PAYMENTS     
SHEFFIELD CITY COUNCIL        ,COMMUNITIES                   ,46039,ADULT SOCIAL CARE PURCHASING  ,9190,DIRECT PAYMENTS               ,04/10/2016,4087282,J1666415                 ,854.00,REDACTED PERSONAL DATA,631304,Social Community Care,CAREFIRST DIRECT PAYMENTS     
SHEFFIELD CITY COUNCIL        ,COMMUNITIES                   ,44001,PURCHASING                    ,9190,DIRECT PAYMENTS               ,04/10/2016,4087283,J1666415                 ,"14,812.79",SHEFFIELD HEALTH & SOCIAL CARE          ,631483,Unclassified Non Trade,OUT OF SCOPE FOR SIC MONITORIN
SHEFFIELD CITY COUNCIL        ,COMMUNITIES                   ,46039,ADULT SOCIAL CARE PURCHASING  ,9190,DIRECT PAYMENTS               ,04/10/2016,4087283,J1666415                 ,308.92,SHEFFIELD HEALTH & SOCIAL CARE          ,631483,Unclassified Non Trade,OUT OF SCOPE FOR SIC MONITORIN
SHEFFIELD CITY COUNCIL        ,COMMUNITIES                   ,44001,PURCHASING                    ,9190,DIRECT PAYMENTS               ,04/10/2016,4087284,J1666415                 ,"10,413.74",SHEFFIELD MIND                          ,631484,Unclassified Non Trade,OUT OF SCOPE FOR SIC MONITORIN
SHEFFIELD CITY COUNCIL        ,COMMUNITIES                   ,44001,PURCHASING                    ,9190,DIRECT PAYMENTS               ,04/10/2016,4087285,J1666415                 ,"11,027.94",SOUTH YORKSHIRE HOUSING ASSOCIATION     ,631485,Unclassified Non Trade,OUT OF SCOPE FOR SIC MONITORIN
SHEFFIELD CITY COUNCIL        ,COMMUNITIES                   ,46039,ADULT SOCIAL CARE PURCHASING  ,9190,DIRECT PAYMENTS               ,04/10/2016,4087286,J1666415                 ,703.48,REDACTED PERSONAL DATA,631748,Social Community Care,CAREFIRST DIRECT PAYMENTS     
SHEFFIELD CITY COUNCIL        ,COMMUNITIES                   ,46039,ADULT SOCIAL CARE PURCHASING  ,9190,DIRECT PAYMENTS               ,04/10/2016,4087287,J1666415                 ,"1,050.00",REDACTED PERSONAL DATA,631751,Social Community Care,CAREFIRST DIRECT PAYMENTS     
SHEFFIELD CITY COUNCIL        ,COMMUNITIES                   ,46039,ADULT SOCIAL CARE PURCHASING  ,9190,DIRECT PAYMENTS               ,04/10/2016,4087288,J1666415                 ,711.28,REDACTED PERSONAL DATA,631955,Social Community Care,CAREFIRST DIRECT PAYMENTS     
SHEFFIELD CITY COUNCIL        ,COMMUNITIES                   ,46039,ADULT SOCIAL CARE PURCHASING  ,9190,DIRECT PAYMENTS               ,04/10/2016,4087289,J1666415                 ,607.28,REDACTED PERSONAL DATA,422698,Social Community Care,CAREFIRST DIRECT PAYMENTS     
SHEFFIELD CITY COUNCIL        ,COMMUNITIES                   ,46039,ADULT SOCIAL CARE PURCHASING  ,9190,DIRECT PAYMENTS               ,04/10/2016,4087290,J1666415                 ,"1,016.48",REDACTED PERSONAL DATA,631999,Social Community Care,CAREFIRST DIRECT PAYMENTS     
SHEFFIELD CITY COUNCIL        ,COMMUNITIES                   ,46039,ADULT SOCIAL CARE PURCHASING  ,9190,DIRECT PAYMENTS               ,04/10/2016,4087291,J1666415                 ,595.20,REDACTED PERSONAL DATA,632107,Social Community Care,CAREFIRST DIRECT PAYMENTS     
SHEFFIELD CITY COUNCIL        ,COMMUNITIES                   ,46039,ADULT SOCIAL CARE PURCHASING  ,9190,DIRECT PAYMENTS               ,04/10/2016,4087292,J1666415                 ,680.52,REDACTED PERSONAL DATA,632111,Social Community Care,CAREFIRST DIRECT PAYMENTS     
SHEFFIELD CITY COUNCIL        ,COMMUNITIES                   ,46039,ADULT SOCIAL CARE PURCHASING  ,9190,DIRECT PAYMENTS               ,04/10/2016,4087294,J1666415                 ,396.00,REDACTED PERSONAL DATA,632366,Social Community Care,CAREFIRST DIRECT PAYMENTS     
SHEFFIELD CITY COUNCIL        ,COMMUNITIES                   ,42034,PURCHASING LEARNING DISABILITI,9190,FUNDED HOME SUPPORT           ,04/10/2016,4087295,J1666415                 ,421.72,REDACTED PERSONAL DATA,632369,Social Community Care,CAREFIRST DIRECT PAYMENTS     
SHEFFIELD CITY COUNCIL        ,COMMUNITIES                   ,42034,PURCHASING LEARNING DISABILITI,9190,DIRECT PAYMENTS               ,04/10/2016,4087295,J1666415                 ,"1,068.80",REDACTED PERSONAL DATA,632369,Social Community Care,CAREFIRST DIRECT PAYMENTS     
SHEFFIELD CITY COUNCIL        ,COMMUNITIES                   ,46039,ADULT SOCIAL CARE PURCHASING  ,9190,DIRECT PAYMENTS               ,04/10/2016,4087296,J1666415                 ,819.20,REDACTED PERSONAL DATA,632370,Social Community Care,CAREFIRST DIRECT PAYMENTS     
SHEFFIELD CITY COUNCIL        ,COMMUNITIES                   ,42034,PURCHASING LEARNING DISABILITI,9190,DIRECT PAYMENTS               ,04/10/2016,4087297,J1666415                 ,480.20,REDACTED PERSONAL DATA,632631,Social Community Care,CAREFIRST DIRECT PAYMENTS     
SHEFFIELD CITY COUNCIL        ,COMMUNITIES                   ,46039,ADULT SOCIAL CARE PURCHASING  ,9190,DIRECT PAYMENTS               ,04/10/2016,4087299,J1666415                 ,367.84,REDACTED PERSONAL DATA,632633,Social Community Care,CAREFIRST DIRECT PAYMENTS     
SHEFFIELD CITY COUNCIL        ,COMMUNITIES                   ,46039,ADULT SOCIAL CARE PURCHASING  ,9190,DIRECT PAYMENTS               ,04/10/2016,4087300,J1666415                 ,598.28,REDACTED PERSONAL DATA,423152,Social Community Care,CAREFIRST DIRECT PAYMENTS     
SHEFFIELD CITY COUNCIL        ,CYPF                          ,39148,DIRECT PAYMENTS               ,9190,DIRECT PAYMENTS               ,04/10/2016,4087301,J1666415                 ,611.76,REDACTED PERSONAL DATA,632634,Social Community Care,CAREFIRST DIRECT PAYMENTS     
SHEFFIELD CITY COUNCIL        ,COMMUNITIES                   ,46039,ADULT SOCIAL CARE PURCHASING  ,9190,DIRECT PAYMENTS               ,04/10/2016,4087302,J1666415                 ,448.00,REDACTED PERSONAL DATA,632642,Social Community Care,CAREFIRST DIRECT PAYMENTS     
SHEFFIELD CITY COUNCIL        ,COMMUNITIES                   ,46039,ADULT SOCIAL CARE PURCHASING  ,9190,DIRECT PAYMENTS               ,04/10/2016,4087305,J1666415                 ,513.32,REDACTED PERSONAL DATA,632660,Social Community Care,CAREFIRST DIRECT PAYMENTS     
SHEFFIELD CITY COUNCIL        ,COMMUNITIES                   ,46039,ADULT SOCIAL CARE PURCHASING  ,9190,DIRECT PAYMENTS               ,04/10/2016,4087306,J1666415                 ,"1,365.24",REDACTED PERSONAL DATA,632662,Social Community Care,CAREFIRST DIRECT PAYMENTS     
SHEFFIELD CITY COUNCIL        ,COMMUNITIES                   ,46039,ADULT SOCIAL CARE PURCHASING  ,9190,FUNDED HOME SUPPORT           ,04/10/2016,4087306,J1666415                 ,392.00,REDACTED PERSONAL DATA,632662,Social Community Care,CAREFIRST DIRECT PAYMENTS     
SHEFFIELD CITY COUNCIL        ,COMMUNITIES                   ,42034,PURCHASING LEARNING DISABILITI,9190,DIRECT PAYMENTS               ,04/10/2016,4087307,J1666415                 ,943.84,BARRIE BOOKKEEPING & PAYROLL SOLUTIO    ,632671,Social Community Care,CAREFIRST DIRECT PAYMENTS     
SHEFFIELD CITY COUNCIL        ,COMMUNITIES                   ,42034,PURCHASING LEARNING DISABILITI,9190,DIRECT PAYMENTS               ,04/10/2016,4087309,J1666415                 ,257.00,REDACTED PERSONAL DATA,632716,Social Community Care,CAREFIRST DIRECT PAYMENTS     
SHEFFIELD CITY COUNCIL        ,COMMUNITIES                   ,46039,ADULT SOCIAL CARE PURCHASING  ,9190,DIRECT PAYMENTS               ,04/10/2016,4087310,J1666415                 ,657.20,REDACTED PERSONAL DATA,632717,Social Community Care,CAREFIRST DIRECT PAYMENTS     
SHEFFIELD CITY COUNCIL        ,COMMUNITIES                   ,42034,PURCHASING LEARNING DISABILITI,9190,DIRECT PAYMENTS               ,04/10/2016,4087311,J1666415                 ,"2,145.44",REDACTED PERSONAL DATA,423985,Social Community Care,CAREFIRST DIRECT PAYMENTS     
SHEFFIELD CITY COUNCIL        ,COMMUNITIES                   ,46039,ADULT SOCIAL CARE PURCHASING  ,9190,DIRECT PAYMENTS               ,04/10/2016,4087313,J1666415                 ,392.00,REDACTED PERSONAL DATA,632738,Social Community Care,CAREFIRST DIRECT PAYMENTS     
SHEFFIELD CITY COUNCIL        ,COMMUNITIES                   ,46039,ADULT SOCIAL CARE PURCHASING  ,9190,DIRECT PAYMENTS               ,04/10/2016,4087314,J1666415                 ,491.84,REDACTED PERSONAL DATA,632812,Social Community Care,CAREFIRST DIRECT PAYMENTS     
SHEFFIELD CITY COUNCIL        ,COMMUNITIES                   ,46039,ADULT SOCIAL CARE PURCHASING  ,9190,DIRECT PAYMENTS               ,04/10/2016,4087316,J1666415                 ,745.20,REDACTED PERSONAL DATA,632834,Social Community Care,CAREFIRST DIRECT PAYMENTS     
SHEFFIELD CITY COUNCIL        ,COMMUNITIES                   ,46039,ADULT SOCIAL CARE PURCHASING  ,9190,DIRECT PAYMENTS               ,04/10/2016,4087318,J1666415                 ,"1,204.76",REDACTED PERSONAL DATA,632955,Social Community Care,CAREFIRST DIRECT PAYMENTS     
SHEFFIELD CITY COUNCIL        ,COMMUNITIES                   ,42034,PURCHASING LEARNING DISABILITI,9190,DIRECT PAYMENTS               ,04/10/2016,4087319,J1666415                 ,464.00,REDACTED PERSONAL DATA,632956,Social Community Care,CAREFIRST DIRECT PAYMENTS     
SHEFFIELD CITY COUNCIL        ,COMMUNITIES                   ,46039,ADULT SOCIAL CARE PURCHASING  ,9190,DIRECT PAYMENTS               ,04/10/2016,4087320,J1666415                 ,421.40,REDACTED PERSONAL DATA,632958,Social Community Care,CAREFIRST DIRECT PAYMENTS     
SHEFFIELD CITY COUNCIL        ,COMMUNITIES                   ,42034,PURCHASING LEARNING DISABILITI,9190,DIRECT PAYMENTS               ,04/10/2016,4087321,J1666415                 ,580.00,REDACTED PERSONAL DATA,632959,Social Community Care,CAREFIRST DIRECT PAYMENTS     
SHEFFIELD CITY COUNCIL        ,COMMUNITIES                   ,46039,ADULT SOCIAL CARE PURCHASING  ,9190,DIRECT PAYMENTS               ,04/10/2016,4087322,J1666415                 ,501.08,REDACTED PERSONAL DATA,424001,Social Community Care,CAREFIRST DIRECT PAYMENTS     
SHEFFIELD CITY COUNCIL        ,COMMUNITIES                   ,42034,PURCHASING LEARNING DISABILITI,9190,DIRECT PAYMENTS               ,04/10/2016,4087323,J1666415                 ,258.92,REDACTED PERSONAL DATA,632961,Social Community Care,CAREFIRST DIRECT PAYMENTS     
SHEFFIELD CITY COUNCIL        ,COMMUNITIES                   ,46039,ADULT SOCIAL CARE PURCHASING  ,9190,DIRECT PAYMENTS               ,04/10/2016,4087324,J1666415                 ,533.04,REDACTED PERSONAL DATA,632963,Social Community Care,CAREFIRST DIRECT PAYMENTS     
SHEFFIELD CITY COUNCIL        ,COMMUNITIES                   ,42034,PURCHASING LEARNING DISABILITI,9190,DIRECT PAYMENTS               ,04/10/2016,4087325,J1666415                 ,283.08,REDACTED PERSONAL DATA,632970,Social Community Care,CAREFIRST DIRECT PAYMENTS     
SHEFFIELD CITY COUNCIL        ,COMMUNITIES                   ,46039,ADULT SOCIAL CARE PURCHASING  ,9190,DIRECT PAYMENTS               ,04/10/2016,4087327,J1666415                 ,553.32,REDACTED PERSONAL DATA,633203,Social Community Care,CAREFIRST DIRECT PAYMENTS     
SHEFFIELD CITY COUNCIL        ,COMMUNITIES                   ,42034,PURCHASING LEARNING DISABILITI,9190,DIRECT PAYMENTS               ,04/10/2016,4087330,J1666415                 ,"2,182.40",REDACTED PERSONAL DATA,633284,Social Community Care,CAREFIRST DIRECT PAYMENTS     
SHEFFIELD CITY COUNCIL        ,COMMUNITIES                   ,46039,ADULT SOCIAL CARE PURCHASING  ,9190,DIRECT PAYMENTS               ,04/10/2016,4087331,J1666415                 ,633.76,REDACTED PERSONAL DATA,633393,Social Community Care,CAREFIRST DIRECT PAYMENTS     
SHEFFIELD CITY COUNCIL        ,COMMUNITIES                   ,46039,ADULT SOCIAL CARE PURCHASING  ,9190,DIRECT PAYMENTS               ,04/10/2016,4087333,J1666415                 ,420.00,REDACTED PERSONAL DATA,425210,Social Community Care,CAREFIRST DIRECT PAYMENTS     
SHEFFIELD CITY COUNCIL        ,COMMUNITIES                   ,46039,ADULT SOCIAL CARE PURCHASING  ,9190,DIRECT PAYMENTS               ,04/10/2016,4087334,J1666415                 ,399.92,REDACTED PERSONAL DATA,633408,Social Community Care,CAREFIRST DIRECT PAYMENTS     
SHEFFIELD CITY COUNCIL        ,COMMUNITIES                   ,46039,ADULT SOCIAL CARE PURCHASING  ,9190,DIRECT PAYMENTS               ,04/10/2016,4087335,J1666415                 ,415.04,REDACTED PERSONAL DATA,633467,Social Community Care,CAREFIRST DIRECT PAYMENTS     
SHEFFIELD CITY COUNCIL        ,CYPF                          ,39148,DIRECT PAYMENTS               ,9190,DIRECT PAYMENTS               ,04/10/2016,4087337,J1666415                 ,"1,160.00",REDACTED PERSONAL DATA,633794,Social Community Care,CAREFIRST DIRECT PAYMENTS     
SHEFFIELD CITY COUNCIL        ,COMMUNITIES                   ,46039,ADULT SOCIAL CARE PURCHASING  ,9190,DIRECT PAYMENTS               ,04/10/2016,4087338,J1666415                 ,453.24,REDACTED PERSONAL DATA,633796,Social Community Care,CAREFIRST DIRECT PAYMENTS     
SHEFFIELD CITY COUNCIL        ,COMMUNITIES                   ,46039,ADULT SOCIAL CARE PURCHASING  ,9190,DIRECT PAYMENTS               ,04/10/2016,4087340,J1666415                 ,"1,315.40",REDACTED PERSONAL DATA,633947,Social Community Care,CAREFIRST DIRECT PAYMENTS     
SHEFFIELD CITY COUNCIL        ,COMMUNITIES                   ,46039,ADULT SOCIAL CARE PURCHASING  ,9190,DIRECT PAYMENTS               ,04/10/2016,4087342,J1666415                 ,336.00,REDACTED PERSONAL DATA,633983,Social Community Care,CAREFIRST DIRECT PAYMENTS     
SHEFFIELD CITY COUNCIL        ,COMMUNITIES                   ,42034,PURCHASING LEARNING DISABILITI,9190,DIRECT PAYMENTS               ,04/10/2016,4087344,J1666415                 ,"1,180.32",REDACTED PERSONAL DATA,426317,Social Community Care,CAREFIRST DIRECT PAYMENTS     
SHEFFIELD CITY COUNCIL        ,COMMUNITIES                   ,46039,ADULT SOCIAL CARE PURCHASING  ,9190,DIRECT PAYMENTS               ,04/10/2016,4087345,J1666415                 ,359.28,REDACTED PERSONAL DATA,634015,Social Community Care,CAREFIRST DIRECT PAYMENTS     
SHEFFIELD CITY COUNCIL        ,COMMUNITIES                   ,46039,ADULT SOCIAL CARE PURCHASING  ,9190,DIRECT PAYMENTS               ,04/10/2016,4087348,J1666415                 ,343.00,REDACTED PERSONAL DATA,634081,Social Community Care,CAREFIRST DIRECT PAYMENTS     
SHEFFIELD CITY COUNCIL        ,COMMUNITIES                   ,42034,PURCHASING LEARNING DISABILITI,9190,DIRECT PAYMENTS               ,04/10/2016,4087349,J1666415                 ,720.00,REDACTED PERSONAL DATA,634082,Unclassified Non Trade,OUT OF SCOPE FOR SIC MONITORIN
SHEFFIELD CITY COUNCIL        ,COMMUNITIES                   ,46039,ADULT SOCIAL CARE PURCHASING  ,9190,DIRECT PAYMENTS               ,04/10/2016,4087350,J1666415                 ,380.88,REDACTED PERSONAL DATA,634234,Social Community Care,CAREFIRST DIRECT PAYMENTS     
SHEFFIELD CITY COUNCIL        ,COMMUNITIES                   ,46039,ADULT SOCIAL CARE PURCHASING  ,9190,DIRECT PAYMENTS               ,04/10/2016,4087351,J1666415                 ,687.12,REDACTED PERSONAL DATA,634238,Social Community Care,CAREFIRST DIRECT PAYMENTS     
SHEFFIELD CITY COUNCIL        ,COMMUNITIES                   ,46039,ADULT SOCIAL CARE PURCHASING  ,9190,DIRECT PAYMENTS               ,04/10/2016,4087353,J1666415                 ,507.80,REDACTED PERSONAL DATA,634375,Social Community Care,CAREFIRST DIRECT PAYMENTS     
SHEFFIELD CITY COUNCIL        ,COMMUNITIES                   ,42034,PURCHASING LEARNING DISABILITI,9190,DIRECT PAYMENTS               ,04/10/2016,4087354,J1666415                 ,430.52,REDACTED PERSONAL DATA,634386,Social Community Care,CAREFIRST DIRECT PAYMENTS     
SHEFFIELD CITY COUNCIL        ,COMMUNITIES                   ,46039,ADULT SOCIAL CARE PURCHASING  ,9190,DIRECT PAYMENTS               ,04/10/2016,4087355,J1666415                 ,408.00,REDACTED PERSONAL DATA,427186,Social Community Care,CAREFIRST DIRECT PAYMENTS     
SHEFFIELD CITY COUNCIL        ,COMMUNITIES                   ,42034,PURCHASING LEARNING DISABILITI,9190,DIRECT PAYMENTS               ,04/10/2016,4087356,J1666415                 ,591.60,REDACTED PERSONAL DATA,634387,Social Community Care,CAREFIRST DIRECT PAYMENTS     
SHEFFIELD CITY COUNCIL        ,COMMUNITIES                   ,46039,ADULT SOCIAL CARE PURCHASING  ,9190,DIRECT PAYMENTS               ,04/10/2016,4087357,J1666415                 ,"1,668.64",REDACTED PERSONAL DATA,634641,Social Community Care,CAREFIRST DIRECT PAYMENTS     
SHEFFIELD CITY COUNCIL        ,COMMUNITIES                   ,46039,ADULT SOCIAL CARE PURCHASING  ,9190,DIRECT PAYMENTS               ,04/10/2016,4087358,J1666415                 ,506.16,REDACTED PERSONAL DATA,634704,Social Community Care,CAREFIRST DIRECT PAYMENTS     
SHEFFIELD CITY COUNCIL        ,COMMUNITIES                   ,42034,PURCHASING LEARNING DISABILITI,9190,DIRECT PAYMENTS               ,04/10/2016,4087359,J1666415                 ,486.00,REDACTED PERSONAL DATA,634708,Social Community Care,CAREFIRST DIRECT PAYMENTS     
SHEFFIELD CITY COUNCIL        ,COMMUNITIES                   ,42034,PURCHASING LEARNING DISABILITI,9190,DIRECT PAYMENTS               ,04/10/2016,4087360,J1666415                 ,572.28,REDACTED PERSONAL DATA,634709,Social Community Care,CAREFIRST DIRECT PAYMENTS     
